date,department/service,beneficiary,amount,summary of purpose,category,transaction number,SAP vendor number
02.09.2020,ADULT SOCIAL CARE,MUNGO WENBAN-SMITH,"1,250.00",AAD TEAM,LEGAL FEES & COURT COSTS,2103140331,1000059994
02.09.2020,ADULT SOCIAL CARE,REDACTED PERSONAL DATA,395.2,APPOINTEESHIPS,OTHER PAYMENTS FOR CLIENTS,REDACTED,REDACTED
02.09.2020,ADULT SOCIAL CARE,BEVAN BRITTAN LLP,475.1,DIR OF ASC,LEGAL FEES & COURT COSTS,2103140290,1000047779
02.09.2020,ADULT SOCIAL CARE,SWK DISABLEMENT ASSN,"1,218.36",DISCHARGE TO ACCESS,HOMECARE - SPOT,2103140828,1000011698
02.09.2020,ADULT SOCIAL CARE,SWK DISABLEMENT ASSN,"1,310.66",DISCHARGE TO ACCESS,SUPPORTED LIVING,2103140841,1000011698
02.09.2020,ADULT SOCIAL CARE,SWK DISABLEMENT ASSN,"1,350.96",LD LTS 18-64,HOMECARE - C&V,2103140815,1000011698
02.09.2020,ADULT SOCIAL CARE,SWK DISABLEMENT ASSN,332.28,LD LTS 18-64,SUPPORTED LIVING,2103140829,1000011698
02.09.2020,ADULT SOCIAL CARE,SWK DISABLEMENT ASSN,424.58,LD LTS 18-64,SUPPORTED LIVING,2103140778,1000011698
02.09.2020,ADULT SOCIAL CARE,SWK DISABLEMENT ASSN,443.04,LD LTS 18-64,SUPPORTED LIVING,2103140791,1000011698
02.09.2020,ADULT SOCIAL CARE,SWK DISABLEMENT ASSN,443.04,LD LTS 18-64,SUPPORTED LIVING,2103140794,1000011698
02.09.2020,ADULT SOCIAL CARE,SWK DISABLEMENT ASSN,664.56,LD LTS 18-64,SUPPORTED LIVING,2103140844,1000011698
02.09.2020,ADULT SOCIAL CARE,SWK DISABLEMENT ASSN,738.4,LD LTS 18-64,SUPPORTED LIVING,2103140809,1000011698
02.09.2020,ADULT SOCIAL CARE,SWK DISABLEMENT ASSN,"1,144.52",LD LTS 18-64,SUPPORTED LIVING,2103140806,1000011698
02.09.2020,ADULT SOCIAL CARE,SWK DISABLEMENT ASSN,"1,255.28",LD LTS 18-64,SUPPORTED LIVING,2103140792,1000011698
02.09.2020,ADULT SOCIAL CARE,SWK DISABLEMENT ASSN,"1,550.64",LD LTS 65+,SUPPORTED LIVING,2103140784,1000011698
02.09.2020,ADULT SOCIAL CARE,COLLINGWOOD COURT (BUPA CARE HOMES),"70,386.58",MEM LTS 65+,HOMECARE - C&V,2103140282,11042563
02.09.2020,ADULT SOCIAL CARE,SWK DISABLEMENT ASSN,295.36,MH LTS 18-64,HOMECARE - SPOT,2103140781,1000011698
02.09.2020,ADULT SOCIAL CARE,SWK DISABLEMENT ASSN,886.08,MH LTS 18-64,HOMECARE - SPOT,2103140816,1000011698
02.09.2020,ADULT SOCIAL CARE,SWK DISABLEMENT ASSN,289.92,MH LTS 18-64,SUPPORTED LIVING,2103140817,1000011698
02.09.2020,ADULT SOCIAL CARE,SWK DISABLEMENT ASSN,295.36,MH LTS 18-64,SUPPORTED LIVING,2103140799,1000011698
02.09.2020,ADULT SOCIAL CARE,SWK DISABLEMENT ASSN,295.36,MH LTS 18-64,SUPPORTED LIVING,2103140820,1000011698
02.09.2020,ADULT SOCIAL CARE,SWK DISABLEMENT ASSN,295.36,MH LTS 18-64,SUPPORTED LIVING,2103140838,1000011698
02.09.2020,ADULT SOCIAL CARE,SWK DISABLEMENT ASSN,369.2,MH LTS 18-64,SUPPORTED LIVING,2103140796,1000011698
02.09.2020,ADULT SOCIAL CARE,SWK DISABLEMENT ASSN,443.04,MH LTS 18-64,SUPPORTED LIVING,2103140830,1000011698
02.09.2020,ADULT SOCIAL CARE,SWK DISABLEMENT ASSN,479.96,MH LTS 18-64,SUPPORTED LIVING,2103140807,1000011698
02.09.2020,ADULT SOCIAL CARE,SWK DISABLEMENT ASSN,516.88,MH LTS 18-64,SUPPORTED LIVING,2103140762,1000011698
02.09.2020,ADULT SOCIAL CARE,SWK DISABLEMENT ASSN,590.72,MH LTS 18-64,SUPPORTED LIVING,2103140779,1000011698
02.09.2020,ADULT SOCIAL CARE,SWK DISABLEMENT ASSN,664.56,MH LTS 18-64,SUPPORTED LIVING,2103140770,1000011698
02.09.2020,ADULT SOCIAL CARE,SWK DISABLEMENT ASSN,821.47,MH LTS 18-64,SUPPORTED LIVING,2103140811,1000011698
02.09.2020,ADULT SOCIAL CARE,SWK DISABLEMENT ASSN,"1,624.48",MH LTS 18-64,SUPPORTED LIVING,2103140787,1000011698
02.09.2020,ADULT SOCIAL CARE,SWK DISABLEMENT ASSN,295.36,MH LTS 65+,SUPPORTED LIVING,2103140764,1000011698
02.09.2020,ADULT SOCIAL CARE,SIAN DAVIES,"1,000.00",MH PREMISES COSTS,LEGAL FEES & COURT COSTS,2103140346,1000042111
02.09.2020,ADULT SOCIAL CARE,SWK DISABLEMENT ASSN,311.76,PHY LTS 18-64,HOMECARE - SPOT,2103140789,1000011698
02.09.2020,ADULT SOCIAL CARE,SWK DISABLEMENT ASSN,381.04,PHY LTS 18-64,HOMECARE - SPOT,2103140788,1000011698
02.09.2020,ADULT SOCIAL CARE,SWK DISABLEMENT ASSN,484.96,PHY LTS 18-64,HOMECARE - SPOT,2103140813,1000011698
02.09.2020,ADULT SOCIAL CARE,SWK DISABLEMENT ASSN,969.92,PHY LTS 18-64,HOMECARE - SPOT,2103140800,1000011698
02.09.2020,ADULT SOCIAL CARE,SWK DISABLEMENT ASSN,"1,108.48",PHY LTS 18-64,HOMECARE - SPOT,2103140814,1000011698
02.09.2020,ADULT SOCIAL CARE,SWK DISABLEMENT ASSN,"1,177.76",PHY LTS 18-64,HOMECARE - SPOT,2103140836,1000011698
02.09.2020,ADULT SOCIAL CARE,SWK DISABLEMENT ASSN,"1,749.32",PHY LTS 18-64,HOMECARE - SPOT,2103140824,1000011698
02.09.2020,ADULT SOCIAL CARE,SWK DISABLEMENT ASSN,"2,203.97",PHY LTS 18-64,HOMECARE - SPOT,2103140768,1000011698
02.09.2020,ADULT SOCIAL CARE,SWK DISABLEMENT ASSN,"2,286.24",PHY LTS 18-64,HOMECARE - SPOT,2103140835,1000011698
02.09.2020,ADULT SOCIAL CARE,SWK DISABLEMENT ASSN,"2,606.66",PHY LTS 18-64,HOMECARE - SPOT,2103140767,1000011698
02.09.2020,ADULT SOCIAL CARE,SWK DISABLEMENT ASSN,"3,101.28",PHY LTS 18-64,HOMECARE - SPOT,2103140846,1000011698
02.09.2020,ADULT SOCIAL CARE,SWK DISABLEMENT ASSN,"3,472.66",PHY LTS 18-64,HOMECARE - SPOT,2103140780,1000011698
02.09.2020,ADULT SOCIAL CARE,SWK DISABLEMENT ASSN,516.88,PHY LTS 18-64,SUPPORTED LIVING,2103140821,1000011698
02.09.2020,ADULT SOCIAL CARE,SWK DISABLEMENT ASSN,346.4,PHY LTS 65+,HOMECARE - SPOT,2103140776,1000011698
02.09.2020,ADULT SOCIAL CARE,SWK DISABLEMENT ASSN,363.72,PHY LTS 65+,HOMECARE - SPOT,2103140775,1000011698
02.09.2020,ADULT SOCIAL CARE,SWK DISABLEMENT ASSN,372.38,PHY LTS 65+,HOMECARE - SPOT,2103140783,1000011698
02.09.2020,ADULT SOCIAL CARE,SWK DISABLEMENT ASSN,381.04,PHY LTS 65+,HOMECARE - SPOT,2103140827,1000011698
02.09.2020,ADULT SOCIAL CARE,SWK DISABLEMENT ASSN,710.12,PHY LTS 65+,HOMECARE - SPOT,2103140804,1000011698
02.09.2020,ADULT SOCIAL CARE,SWK DISABLEMENT ASSN,853.01,PHY LTS 65+,HOMECARE - SPOT,2103140777,1000011698
02.09.2020,ADULT SOCIAL CARE,SWK DISABLEMENT ASSN,866,PHY LTS 65+,HOMECARE - SPOT,2103140790,1000011698
02.09.2020,ADULT SOCIAL CARE,SWK DISABLEMENT ASSN,"1,160.44",PHY LTS 65+,HOMECARE - SPOT,2103140837,1000011698
02.09.2020,ADULT SOCIAL CARE,SWK DISABLEMENT ASSN,"1,177.76",PHY LTS 65+,HOMECARE - SPOT,2103140802,1000011698
02.09.2020,ADULT SOCIAL CARE,SWK DISABLEMENT ASSN,"1,385.60",PHY LTS 65+,HOMECARE - SPOT,2103140766,1000011698
02.09.2020,ADULT SOCIAL CARE,SWK DISABLEMENT ASSN,"1,506.84",PHY LTS 65+,HOMECARE - SPOT,2103140839,1000011698
02.09.2020,ADULT SOCIAL CARE,SWK DISABLEMENT ASSN,"1,905.20",PHY LTS 65+,HOMECARE - SPOT,2103140823,1000011698
02.09.2020,ADULT SOCIAL CARE,SWK DISABLEMENT ASSN,"2,009.12",PHY LTS 65+,HOMECARE - SPOT,2103140786,1000011698
02.09.2020,ADULT SOCIAL CARE,SWK DISABLEMENT ASSN,"2,182.32",PHY LTS 65+,HOMECARE - SPOT,2103140840,1000011698
02.09.2020,ADULT SOCIAL CARE,SWK DISABLEMENT ASSN,"2,416.14",PHY LTS 65+,HOMECARE - SPOT,2103140801,1000011698
02.09.2020,ADULT SOCIAL CARE,SWK DISABLEMENT ASSN,"2,814.50",PHY LTS 65+,HOMECARE - SPOT,2103140826,1000011698
02.09.2020,ADULT SOCIAL CARE,SWK DISABLEMENT ASSN,"3,386.06",PHY LTS 65+,HOMECARE - SPOT,2103140822,1000011698
02.09.2020,ADULT SOCIAL CARE,SWK DISABLEMENT ASSN,311.76,SOCIAL ISOLATION,HOMECARE - SPOT,2103140825,1000011698
02.09.2020,ADULT SOCIAL CARE,SWK DISABLEMENT ASSN,"1,229.72",SOCIAL ISOLATION,HOMECARE - SPOT,2103140765,1000011698
02.09.2020,ASSET MANAGEMENT,ASHFORDS LLP,"1,726.27",DISREPAIR,PAYMENTS FOR LEGAL SERVICES,2103140382,1000055865
02.09.2020,ASSET MANAGEMENT,GT STEWART LTD,"22,750.00",DISREPAIR,PAYMENTS FOR LEGAL SERVICES,2103140381,1000061213
02.09.2020,ASSET MANAGEMENT,UNIVERSA LAW LTD,"1,000.00",DISREPAIR,PAYMENTS FOR LEGAL SERVICES,2103140379,1000081466
02.09.2020,ASSET MANAGEMENT,DRISCOLL KINGSTON SOLICITORS,"1,500.00",DISREPAIR,PAYMENTS FOR LEGAL SERVICES,2103140383,1000082357
02.09.2020,ASSET MANAGEMENT,MALONE & WHITE SOLICITORS LTD,"2,000.00",DISREPAIR,PAYMENTS FOR LEGAL SERVICES,2103140378,1000083893
02.09.2020,ASSET MANAGEMENT,REDACTED PERSONAL DATA,332.41,DISREPAIR,PAYMENTS FOR LEGAL SERVICES,REDACTED,REDACTED
02.09.2020,ASSET MANAGEMENT,LONDON FIRE BRIGADE,339,ENG CONTRACTS (NORTH),LIFTS,5902430937,1000083629
02.09.2020,ASSET MANAGEMENT,LONDON FIRE BRIGADE,339,ENG CONTRACTS (NORTH),LIFTS,5902430938,1000083629
02.09.2020,ASSET MANAGEMENT,LONDON FIRE BRIGADE,339,ENG CONTRACTS (NORTH),LIFTS,5902430939,1000083629
02.09.2020,ASSET MANAGEMENT,LONDON FIRE BRIGADE,339,ENG CONTRACTS (NORTH),LIFTS,5902430940,1000083629
02.09.2020,ASSET MANAGEMENT,LONDON FIRE BRIGADE,339,ENG CONTRACTS (NORTH),LIFTS,5902430941,1000083629
02.09.2020,CENTRAL FUNCTIONS,FAISEL SADIQ,"2,850.00",OPERATIONAL TEAM,LEGAL FEES & COURT COSTS,2103140309,1000052426
02.09.2020,CHIEF EXECUTIVE,4 FUTURES LIMITED,"200,000.00",CAPITAL PS (LEISURE),CONSTRUCTION FEES,5902430822,1000060908
02.09.2020,CHIEF EXECUTIVE,VIRGIN MEDIA LIMITED,441.4,CAPITAL PS (REGEN),UTILITIES INSTALLATION,5902431039,1000061418
02.09.2020,CHIEF EXECUTIVE'S OFFICE,J C CONSULTANT SERVICES LTD,"7,682.00",CHIEF EXECUTIVE'S OFFICE,EXTERNAL AGENCIES AND BODIES,5902431012,1000042476
02.09.2020,CHIEF EXECUTIVE'S OFFICE,DOWNSIDE FISHER YOUTH CLUB,"25,000.00",DISCRETIONARY GRANTS,GRANTS,2103140369,1000041805
02.09.2020,CHIEF EXECUTIVE'S OFFICE,THE REDEEMED ASSEMBLIES TRUST,"10,000.00",DISCRETIONARY GRANTS,GRANTS,2103140370,1000084332
02.09.2020,CHIEF EXECUTIVE'S OFFICE,JV BRIGHT TAXI PARTS  LTD,"5,000.00",DISCRETIONARY GRANTS,GRANTS,2103140377,1000084725
02.09.2020,CHIEF EXECUTIVE'S OFFICE,THE OTHER MEDIA LIMITED,"25,000.00",DISCRETIONARY GRANTS,GRANTS,2103140375,1000085340
02.09.2020,CHIEF EXECUTIVE'S OFFICE,NICK  TUDOR,"2,500.00",DISCRETIONARY GRANTS,GRANTS,2103140374,1000085341
02.09.2020,CHIEF EXECUTIVE'S OFFICE,0-TWO MAINTENANCE LTD,"25,000.00",DISCRETIONARY GRANTS,GRANTS,2103140373,1000085342
02.09.2020,CHIEF EXECUTIVE'S OFFICE,WORLD CHILD CANCER UK,"25,000.00",DISCRETIONARY GRANTS,GRANTS,2103140368,1000085344
02.09.2020,CHIEF EXECUTIVE'S OFFICE,JAMES  MOLLOY,791.46,DISCRETIONARY GRANTS,GRANTS,2103140372,1000085345
02.09.2020,CHIEF EXECUTIVE'S OFFICE,LONDON AUDIO VISUAL LTD,"25,000.00",DISCRETIONARY GRANTS,GRANTS,2103140376,1000085350
02.09.2020,CHIEF EXECUTIVE'S OFFICE,APA PUBLICATIONS (UK) LTD,"25,000.00",DISCRETIONARY GRANTS,GRANTS,2103140371,1000085352
02.09.2020,CHIEF EXECUTIVE'S OFFICE,LXA HOSPITALITY SERVICES LIMITED,"10,000.00",SOUTHWARK PIONEER FUND,GRANTS,2103140364,1000085204
02.09.2020,CHIEF EXECUTIVE'S OFFICE,THE RAVEN PUB LTD,"5,000.00",SOUTHWARK PIONEER FUND,GRANTS,2103140367,1000085353
02.09.2020,CHIEF EXECUTIVE'S OFFICE,SPOKEN INK LTD,"10,000.00",SOUTHWARK PIONEER FUND,GRANTS,2103140366,1000085357
02.09.2020,CHIEF EXECUTIVE'S OFFICE,THE LONDON CAT CLINIC,"10,000.00",SOUTHWARK PIONEER FUND,GRANTS,2103140363,1000085358
02.09.2020,CHIEF EXECUTIVE'S OFFICE,1ST ONLINE SOLUTIONS LTD,"5,000.00",SOUTHWARK PIONEER FUND,GRANTS,2103140365,1000085359
02.09.2020,CHILDREN'S SERVICES,REDACTED PERSONAL DATA,400,DISABILITY & HIV,ADDITIONAL PAYMENTS TO AGENCIES/CARERS,REDACTED,REDACTED
02.09.2020,CHILDREN'S SERVICES,REDACTED PERSONAL DATA,400,DISABILITY & HIV,ADDITIONAL PAYMENTS TO AGENCIES/CARERS,REDACTED,REDACTED
02.09.2020,CHILDREN'S SERVICES,REDACTED PERSONAL DATA,400,DISABILITY & HIV,ADDITIONAL PAYMENTS TO AGENCIES/CARERS,REDACTED,REDACTED
02.09.2020,CHILDREN'S SERVICES,REDACTED PERSONAL DATA,360,DISABILITY & HIV,PAYMENTS TO CARERS,REDACTED,REDACTED
02.09.2020,CHILDREN'S SERVICES,REDACTED PERSONAL DATA,"1,828.57",DISABILITY & HIV,PAYMENTS TO CARERS,REDACTED,REDACTED
02.09.2020,CHILDREN'S SERVICES,LOGICOUS LTD,"1,296.25",FRIENDS &FAMILY FOST,NURSING PLACEMENTS FEES,5902431038,1000073852
02.09.2020,CHILDREN'S SERVICES,RICHARD LITTLE,342.71,SFS MANAGEMENT & SUPPORT,LEGAL FEES & COURT COSTS,2103140340,1000031320
02.09.2020,CHILDREN'S SERVICES,IAIN JAMES DANIELS,"1,225.00",SFS MANAGEMENT & SUPPORT,LEGAL FEES & COURT COSTS,2103140317,1000053473
02.09.2020,CHILDREN'S SERVICES,TIM PARKER,475,SFS MANAGEMENT & SUPPORT,LEGAL FEES & COURT COSTS,2103140350,1000061949
02.09.2020,CHILDREN'S SERVICES,TOM RESTALL,300,SFS MANAGEMENT & SUPPORT,LEGAL FEES & COURT COSTS,2103140354,1000063020
02.09.2020,CHILDREN'S SERVICES,TOM RESTALL,750,SFS MANAGEMENT & SUPPORT,LEGAL FEES & COURT COSTS,2103140352,1000063020
02.09.2020,CHILDREN'S SERVICES,TOM RESTALL,750,SFS MANAGEMENT & SUPPORT,LEGAL FEES & COURT COSTS,2103140353,1000063020
02.09.2020,CHILDREN'S SERVICES,TOM RESTALL,"1,875.00",SFS MANAGEMENT & SUPPORT,LEGAL FEES & COURT COSTS,2103140351,1000063020
02.09.2020,CHILDREN'S SERVICES,KATE LAMONT,400,SFS MANAGEMENT & SUPPORT,LEGAL FEES & COURT COSTS,2103140326,1000064216
02.09.2020,CHILDREN'S SERVICES,KATE LAMONT,600,SFS MANAGEMENT & SUPPORT,LEGAL FEES & COURT COSTS,2103140325,1000064216
02.09.2020,CHILDREN'S SERVICES,PSYCHOLOGY DIRECT LTD,624,SFS MANAGEMENT & SUPPORT,LEGAL FEES & COURT COSTS,2103140338,1000065197
02.09.2020,CHILDREN'S SERVICES,JULIAN DATE,800,SFS MANAGEMENT & SUPPORT,LEGAL FEES & COURT COSTS,2103140324,1000068743
02.09.2020,CHILDREN'S SERVICES,NAIRN PURSS,950,SFS MANAGEMENT & SUPPORT,LEGAL FEES & COURT COSTS,2103140333,1000068948
02.09.2020,CHILDREN'S SERVICES,DAVID BANNOCKS,475,SFS MANAGEMENT & SUPPORT,LEGAL FEES & COURT COSTS,2103140301,1000068951
02.09.2020,CHILDREN'S SERVICES,DAVID BANNOCKS,495,SFS MANAGEMENT & SUPPORT,LEGAL FEES & COURT COSTS,2103140300,1000068951
02.09.2020,CHILDREN'S SERVICES,DAVID BANNOCKS,650,SFS MANAGEMENT & SUPPORT,LEGAL FEES & COURT COSTS,2103140302,1000068951
02.09.2020,CHILDREN'S SERVICES,DAVID BANNOCKS,650,SFS MANAGEMENT & SUPPORT,LEGAL FEES & COURT COSTS,2103140303,1000068951
02.09.2020,CHILDREN'S SERVICES,BEN ZURAWEL,400,SFS MANAGEMENT & SUPPORT,LEGAL FEES & COURT COSTS,2103140286,1000069468
02.09.2020,CHILDREN'S SERVICES,SARAH HUNWICK,275,SFS MANAGEMENT & SUPPORT,LEGAL FEES & COURT COSTS,2103140343,1000073789
02.09.2020,CHILDREN'S SERVICES,SARAH HUNWICK,325,SFS MANAGEMENT & SUPPORT,LEGAL FEES & COURT COSTS,2103140342,1000073789
02.09.2020,CHILDREN'S SERVICES,GAYLE BISBEY,450,SFS MANAGEMENT & SUPPORT,LEGAL FEES & COURT COSTS,2103140313,1000074738
02.09.2020,CHILDREN'S SERVICES,LAURA HIBBERD,275,SFS MANAGEMENT & SUPPORT,LEGAL FEES & COURT COSTS,2103140330,1000076749
02.09.2020,CHILDREN'S SERVICES,PHILIPPA PARRY-JONES,375,SFS MANAGEMENT & SUPPORT,LEGAL FEES & COURT COSTS,2103140337,1000081285
02.09.2020,CHILDREN'S SERVICES,NICHOLAS GOODWIN,"83,333.33",SFS MANAGEMENT & SUPPORT,LEGAL FEES & COURT COSTS,2103140334,1000082473
02.09.2020,CHILDREN'S SERVICES,REDACTED PERSONAL DATA,388.04,SPECIAL GUARDIANSHIP,PAYMENTS TO CARERS,REDACTED,REDACTED
02.09.2020,CHILDREN'S SERVICES,REDACTED PERSONAL DATA,342.45,SPECIAL GUARDIANSHIP,PAYMENTS TO CARERS,REDACTED,REDACTED
02.09.2020,CHILDREN'S SERVICES,REDACTED PERSONAL DATA,389.34,SPECIAL GUARDIANSHIP,PAYMENTS TO CARERS,REDACTED,REDACTED
02.09.2020,CHILDREN'S SERVICES,REDACTED PERSONAL DATA,356.15,SPECIAL GUARDIANSHIP,PAYMENTS TO CARERS,REDACTED,REDACTED
02.09.2020,CHILDREN'S SERVICES,REDACTED PERSONAL DATA,403.04,SPECIAL GUARDIANSHIP,PAYMENTS TO CARERS,REDACTED,REDACTED
02.09.2020,CHILDREN'S SERVICES,REDACTED PERSONAL DATA,343.05,SPECIAL GUARDIANSHIP,PAYMENTS TO CARERS,REDACTED,REDACTED
02.09.2020,CHILDREN'S SERVICES,REDACTED PERSONAL DATA,525,SPECIAL GUARDIANSHIP,PAYMENTS TO CARERS,REDACTED,REDACTED
02.09.2020,CHILDREN'S SERVICES,REDACTED PERSONAL DATA,525,SPECIAL GUARDIANSHIP,PAYMENTS TO CARERS,REDACTED,REDACTED
02.09.2020,CHILDREN'S SERVICES,REDACTED PERSONAL DATA,395,SPECIAL GUARDIANSHIP,PAYMENTS TO CARERS,REDACTED,REDACTED
02.09.2020,CHILDREN'S SERVICES,REDACTED PERSONAL DATA,341.15,SPECIAL GUARDIANSHIP,PAYMENTS TO CARERS,REDACTED,REDACTED
02.09.2020,COMMISSIONING & CENTRAL,SHOWCASE INTERIORS LTD,"21,177.76",COMMISSIONING TEAM,BUILDING R&M,5902430966,1000081880
02.09.2020,CUSTOMER EXPERIENCE,KENT COUNTY COUNCIL - LASER,"2,170.12",CUSTOMER SUPPORT,ELECTRICITY,5902431035,1000012926
02.09.2020,CUSTOMER EXPERIENCE HGF,BROOKS ESTATE AGENTS LTD,"3,000.00",HOMELESS PROJECTS,GRANTS,5902430965,1000085234
02.09.2020,CUSTOMER EXPERIENCE HGF,SJS LEGAL,"3,800.00",HOMELESS PROJECTS,LEGAL FEES & COURT COSTS,5902431034,1000082655
02.09.2020,CUSTOMER EXPERIENCE HGF,SOUTH OF THE RIVER INVESTMENTS LTD,"1,046.50",NIGHTLY TA (NSC),EXTERNAL AGENCIES AND BODIES,5902430950,1000073638
02.09.2020,CUSTOMER EXPERIENCE HGF,NORBURY PROPERTY SERVICES (LONDON) LTD,"35,181.70",NIGHTLY TA (NSC),EXTERNAL AGENCIES AND BODIES,5902430930,1000075566
02.09.2020,CUSTOMER EXPERIENCE HGF,ZFA ACCOMMODATION LTD,"28,693.00",NIGHTLY TA (NSC),EXTERNAL AGENCIES AND BODIES,5902430957,1000082620
02.09.2020,DIRECTOR'S OFFICE,PETER LINSTEAD,900,CENTRAL COSTS,LEGAL FEES & COURT COSTS,2103140335,1000063417
02.09.2020,ENVIRONMENT AND LEISURE,CONWAY AECOM LTD,"8,296.36",CAPITAL PS (LEISURE),CONSTR'N SUB CONTRACT - NON CERTIFICATED,5902431033,1000071205
02.09.2020,ENVIRONMENT AND LEISURE,LBOX COMMUNICATIONS,"1,497.00",CAPITAL PS (LEISURE),CONSTRUCTION FEES  - EXTERNAL,5902430970,1000044844
02.09.2020,ENVIRONMENT DIRECTORATE,GEORGE WILLS,350,ENFORCEMENT,LEGAL FEES & COURT COSTS,2103140314,1000079988
02.09.2020,ENVIRONMENT DIRECTORATE,JOSEF CANNON,460,LICENSING,LEGAL FEES & COURT COSTS,2103140323,1000069109
02.09.2020,ENVIRONMENT DIRECTORATE,CONTEGO SAFETY SOLUTIONS LTD,511.75,MANAGEMENT TEAM,MATERIALS,5902431043,1000077673
02.09.2020,ENVIRONMENT DIRECTORATE,CONTEGO SAFETY SOLUTIONS LTD,"1,112.50",MANAGEMENT TEAM,MATERIALS,5902431022,1000077673
02.09.2020,ENVIRONMENT DIRECTORATE,STOCKSIGNS LTD,"5,227.50",PUBLIC LIGHTING,MATERIALS,5902430845,1000044377
02.09.2020,ENVIRONMENT DIRECTORATE,JARED NORMAN,375,SASBU,LEGAL FEES & COURT COSTS,2103140319,1000064080
02.09.2020,ENVIRONMENT DIRECTORATE,JARED NORMAN,450,SASBU,LEGAL FEES & COURT COSTS,2103140320,1000064080
02.09.2020,ENVIRONMENT DIRECTORATE,JARED NORMAN,900,SASBU,LEGAL FEES & COURT COSTS,2103140322,1000064080
02.09.2020,ENVIRONMENT DIRECTORATE,FRANCIS HOAR,900,SASBU,LEGAL FEES & COURT COSTS,2103140312,1000068759
02.09.2020,ENVIRONMENT DIRECTORATE,RYAN THOMPSON,350,TRADING STANDARDS,LEGAL FEES & COURT COSTS,2103140341,1000068997
02.09.2020,HOUSING HRA,POTTER RAPER LTD,663.37,CAPITAL PS (HRA),CONSTRUCTION FEES  - EXTERNAL,5902430943,1009369
02.09.2020,HOUSING HRA,POTTER RAPER LTD,"1,750.00",CAPITAL PS (HRA),CONSTRUCTION FEES  - EXTERNAL,5902430944,1009369
02.09.2020,LAW & DEMOCRACY,FINANCIAL DATA MANAGEMENT PLC,348.31,ELECTORAL REGISTRATION,POSTAGES,2103140310,1000031759
02.09.2020,LAW & DEMOCRACY,FINANCIAL DATA MANAGEMENT PLC,"41,653.56",ELECTORAL REGISTRATION,POSTAGES,2103140311,1000031759
02.09.2020,LAW & DEMOCRACY,DATAHUB TECH LTD,"7,000.00",ELECTORAL REGISTRATION,SOFTWARE,2103140299,1000081586
02.09.2020,LAW & DEMOCRACY,BEVAN BRITTAN LLP,"1,267.50",LEGAL CORP.CHARGES,LEGAL FEES & COURT COSTS,2103140288,1000047779
02.09.2020,LAW & DEMOCRACY,BEVAN BRITTAN LLP,"8,474.30",LEGAL CORP.CHARGES,LEGAL FEES & COURT COSTS,2103140287,1000047779
02.09.2020,LAW & DEMOCRACY,PETER LINSTEAD,"1,900.00",LEGAL CORP.CHARGES,LEGAL FEES & COURT COSTS,2103140336,1000063417
02.09.2020,LEISURE DIRECTORATE,WESTMINSTER WASTE,916,CEMETERIES,OTHER CONTRACTORS,5902430658,1000080933
02.09.2020,LEISURE DIRECTORATE,TECHNICAL SURFACES,390,DAMILOLA TAYLOR CENTRE,EQUIPMENT PURCHASE & REPAIR,5902430929,1000011451
02.09.2020,LEISURE DIRECTORATE,THE SALMON YOUTH CENTRE,"7,740.75",GRANTS COMMISSIONING,GRANTS,5902430979,1000040686
02.09.2020,MODERNISATION HGF,RP2 LTD,343.95,ORG TRANSFORMATION,MARKETING & PUBLICITY SERVICES,5902430977,1000063096
02.09.2020,MODERNISATION HGF,KENT COUNTY COUNCIL - LASER,"1,333.98",QUEENS ROAD 2 (BLOCK J),ELECTRICITY,5902431032,1000012926
02.09.2020,MODERNISATION HGF,PIONEER PRODUCTS,"6,740.00",TSFM CONTINGENCY,INTEGRATED FACILITIES MANAGEMENT CONTRACT,5902430936,1000084131
02.09.2020,NEW BUILD,TRANSPORT FOR LONDON BUSES,270,DEVELOPMENT DELIVERY,LEGAL FEES & COURT COSTS,2103140355,1000033685
02.09.2020,NEW BUILD,TRANSPORT FOR LONDON BUSES,270,DEVELOPMENT DELIVERY,LEGAL FEES & COURT COSTS,2103140356,1000033685
02.09.2020,NEW BUILD,TRANSPORT FOR LONDON BUSES,270,DEVELOPMENT DELIVERY,LEGAL FEES & COURT COSTS,2103140357,1000033685
02.09.2020,NEW BUILD,TRANSPORT FOR LONDON BUSES,270,DEVELOPMENT DELIVERY,LEGAL FEES & COURT COSTS,2103140358,1000033685
02.09.2020,NEW BUILD,TRANSPORT FOR LONDON BUSES,270,DEVELOPMENT DELIVERY,LEGAL FEES & COURT COSTS,2103140359,1000033685
02.09.2020,NEW BUILD,DAVID ROGERSON,375,DEVELOPMENT DELIVERY,PROFESSIONAL FEES,5902430935,1753617
02.09.2020,PLANNING AND TRANSPORT,FAITHFUL & GOULD,"2,610.00",PECKHAM TOWNSCAPE HERITAGE INITIATIVE,PROFESSIONAL FEES,5902431028,1000061390
02.09.2020,PLANNING AND TRANSPORT,ISABELLA TAFUR,500,S106 & CIL ADMINISTRATION,LEGAL FEES & COURT COSTS,2103140318,1000068894
02.09.2020,RESIDENT SERVICES,BRITISH GAS TRADING LTD,302.52,OPERATIONS/OFFICES ACCOMMODATION,ELECTRICITY,5902431026,1000055977
02.09.2020,RESIDENT SERVICES,ALEXANDER KINGSTON-SPLATT,685,TA ESTATE VOIDS,LEGAL FEES & COURT COSTS,2103140284,1000079846
02.09.2020,SBS OPERATIONS,TRAVIS PERKINS TRADING COMPANY LTD,"1,429.12",SBS AIDS AND ADAPTATIONS,MATERIALS,5902431010,1514319
02.09.2020,SBS SUPPORT,SHARPE PRITCHARD LLP,848,REORGANISATION COSTS,LEGAL FEES & COURT COSTS,2103140345,1790085
02.09.2020,SBS SUPPORT,SHARPE PRITCHARD LLP,"1,024.00",REORGANISATION COSTS,LEGAL FEES & COURT COSTS,2103140344,1790085
02.09.2020,SBS SUPPORT,SANDERSONS BUILDING SERVICES LTD,"179,714.72",SBS - HOLDING ACCOUNT,OTHER CONTRACTORS,2103140850,3000002065
02.09.2020,SUSTAINABILITY & BUSINESS DEVELOPMENT,STEPHANIE LOVEGROVE,800,HOUSING MANAGEMENT RECHARGE,LEGAL FEES & COURT COSTS,2103140347,1000079610
03.09.2020,ADULT SOCIAL CARE,OPTIVO,387,APPOINTEESHIPS,OTHER PAYMENTS FOR CLIENTS,2103140924,1000085186
03.09.2020,ADULT SOCIAL CARE,OPTIVO,626.46,APPOINTEESHIPS,OTHER PAYMENTS FOR CLIENTS,2103140923,1000085186
03.09.2020,ADULT SOCIAL CARE,REDACTED PERSONAL DATA,400,APPOINTEESHIPS,OTHER PAYMENTS FOR CLIENTS,REDACTED,REDACTED
03.09.2020,ADULT SOCIAL CARE,REDACTED PERSONAL DATA,356.6,APPOINTEESHIPS,OTHER PAYMENTS FOR CLIENTS,REDACTED,REDACTED
03.09.2020,ADULT SOCIAL CARE,NORTHGATE PUBLIC SERVICES (UK) LTD,"17,684.75",DEBT TASK FORCE,COMMS & COMPUTING CONTRACT CHARGES,5902431140,1000037405
03.09.2020,ADULT SOCIAL CARE,CARE DIRECT UK LTD,355.09,LD LTS 18-64,SUPPORTED LIVING,2103140873,1000066322
03.09.2020,ADULT SOCIAL CARE,CARE DIRECT UK LTD,355.09,LD LTS 18-64,SUPPORTED LIVING,2103140877,1000066322
03.09.2020,ADULT SOCIAL CARE,CARE DIRECT UK LTD,424.04,LD LTS 18-64,SUPPORTED LIVING,2103140875,1000066322
03.09.2020,ADULT SOCIAL CARE,CARE DIRECT UK LTD,424.04,LD LTS 18-64,SUPPORTED LIVING,2103140879,1000066322
03.09.2020,ADULT SOCIAL CARE,BRISEN COMPANY LTD,571.2,LD LTS 18-64,SUPPORTED LIVING,2103140886,1000083000
03.09.2020,ADULT SOCIAL CARE,BRISEN COMPANY LTD,"1,428.00",LD LTS 18-64,SUPPORTED LIVING,2103140881,1000083000
03.09.2020,ADULT SOCIAL CARE,BRISEN COMPANY LTD,"8,234.48",LD LTS 18-64,SUPPORTED LIVING,2103140884,1000083000
03.09.2020,ADULT SOCIAL CARE,BUDDI LTD,420,PHY LTS 18-64,EQUIPMENT PURCHASE & REPAIR,2103140894,1000067243
03.09.2020,ADULT SOCIAL CARE,BUDDI LTD,370,PHY LTS 65+,EQUIPMENT PURCHASE & REPAIR,2103140892,1000067243
03.09.2020,ADULT SOCIAL CARE,CAPITAL HOMECARE (UK) LTD,758.45,PHY LTS 65+,HOMECARE - SPOT,2103140890,1000042589
03.09.2020,ADULT SOCIAL CARE,CAPITAL HOMECARE (UK) LTD,758.45,PHY LTS 65+,HOMECARE - SPOT,2103140891,1000042589
03.09.2020,ADULT SOCIAL CARE,SNOWBALL CARE UK LTD,912,PHY LTS 65+,HOMECARE - SPOT,2103140889,1000081483
03.09.2020,ADULT SOCIAL CARE,SNOWBALL CARE UK LTD,"1,696.00",PHY LTS 65+,HOMECARE - SPOT,2103140888,1000081483
03.09.2020,CENTRAL FUNCTIONS,NPOWER LTD,567.83,HEATING ACCOUNT,ELECTRICITY,5902431251,1000078994
03.09.2020,CENTRAL FUNCTIONS,NPOWER LTD,"1,467.68",HEATING ACCOUNT,ELECTRICITY,5902431255,1000078994
03.09.2020,CENTRAL FUNCTIONS,NPOWER LTD,"3,596.81",HEATING ACCOUNT,ELECTRICITY,5902431255,1000078994
03.09.2020,CENTRAL FUNCTIONS,NPOWER LTD,"12,713.14",HEATING ACCOUNT,ELECTRICITY,5902431255,1000078994
03.09.2020,CENTRAL FUNCTIONS,ARENAL PROPERTIES LTD,"3,456.40",HOME OWNERSHIP INCOME,HOUSING RESIDENTIAL RENTS,2103140919,1000085371
03.09.2020,CENTRAL FUNCTIONS,1ST ACE SECURITY LTD,"46,032.00",LEDBURY ESTATE,MISCELLANEOUS EXPENSES,5902430489,1000006992
03.09.2020,CHIEF EXECUTIVE,KN NETWORK SERVICES LTD,"111,722.40",CAPITAL PS (REGEN),CONSTRUCTION MAIN CONTRACT -CERTIFICATED,2103140859,3000002134
03.09.2020,CHIEF EXECUTIVE'S OFFICE,WELLFAIR2WORK LTD,"30,187.84",CHIEF EXECUTIVE'S OFFICE,EXTERNAL AGENCIES AND BODIES,5902431273,1000078927
03.09.2020,CHILDREN'S SERVICES,J & M OASIS LTD,714,TEMP ACCOM FOR IH,EXTERNAL AGENCIES AND BODIES,5902431279,1000072169
03.09.2020,CHILDREN'S SERVICES,J & M OASIS LTD,867,TEMP ACCOM FOR IH,EXTERNAL AGENCIES AND BODIES,5902431276,1000072169
03.09.2020,COMMUNITIES,BROOK,"36,437.50",YOUNG PEOPLES SERVICE,OTHER CONTRACTORS,5902431173,1000076901
03.09.2020,COMMUNITIES,BROOK,"36,437.50",YOUNG PEOPLES SERVICE,OTHER CONTRACTORS,5902431174,1000076901
03.09.2020,CORPORATE BUDGETS,COMENSURA LTD,"553,951.19",WEEKLY PAYMENTS,AGENCY STAFF,5902431196,1000051261
03.09.2020,CUSTOMER EXPERIENCE HGF,CAIR UK LTD,"5,850.00",LAMBETH RESPONSE,EQUIPMENT PURCHASE & REPAIR,5902430856,1000084348
03.09.2020,CUSTOMER EXPERIENCE HGF,J & M OASIS LTD,5703.6,NIGHTLY TA (NSC),EXTERNAL AGENCIES AND BODIES,5902431270,1000072169
03.09.2020,CUSTOMER EXPERIENCE HGF,J & M OASIS LTD,"5,792.32",NIGHTLY TA (NSC),EXTERNAL AGENCIES AND BODIES,5902431274,1000072169
03.09.2020,CUSTOMER EXPERIENCE HGF,TFL TELESALES / OYSTER FULFILMENT,300,RAPID REHOUSING,PUBLIC TRANSPORT,5902431282,1000059727
03.09.2020,ENVIRONMENT AND LEISURE,WATERMAN INFRASTRUCTURE & ENVIRONMENT LTD,"1,000.00",CAPITAL PS (LEISURE),CONSTR'N SUB CONTRACT - NON CERTIFICATED,5902431210,1000060529
03.09.2020,ENVIRONMENT AND LEISURE,RH WROUGHT IRON,"1,720.00",CAPITAL PS (LEISURE),CONSTRUCTION MAIN CONTRACT -CERTIFICATED,2103140863,3000000680
03.09.2020,ENVIRONMENT AND LEISURE,RH WROUGHT IRON,"2,300.00",CAPITAL PS (LEISURE),CONSTRUCTION MAIN CONTRACT -CERTIFICATED,2103140864,3000000680
03.09.2020,ENVIRONMENT DIRECTORATE,PERFORMANCE CHEMICALS LTD,"1,053.90",ESTATE CLEANING-GENERAL,MATERIALS,5902431242,1000037129
03.09.2020,ENVIRONMENT DIRECTORATE,FAROL LTD,"6,600.00",ICC SPECIAL TEAMS,EQUIPMENT PURCHASE & REPAIR,5902430632,1000078940
03.09.2020,ENVIRONMENT DIRECTORATE,CONWAY AECOM LTD,"5,496.00",PARKING OVERHEADS,OTHER CONTRACTORS,5902431229,1000071205
03.09.2020,ENVIRONMENT DIRECTORATE,CROMWELL POLYTHENE LTD,876.83,STREET CLEANING-GENERAL,MATERIALS,5902431280,1000021159
03.09.2020,ENVIRONMENT DIRECTORATE,CITI LOGIK LTD,"21,000.00",STREET WORKS OVERHEADS,SOFTWARE,5902431064,1000083676
03.09.2020,EXCHEQUER SERVICES,WESTMINSTER HOUSE YOUTH CLUB,"3,500.00",SESS,OTHER PAYMENTS FOR CLIENTS,2103140897,11088645
03.09.2020,EXCHEQUER SERVICES,MUSLIM ASSOCIATION OF NIGERIA UK,"1,000.00",SESS,OTHER PAYMENTS FOR CLIENTS,2103140898,1000031380
03.09.2020,EXCHEQUER SERVICES,NUNHEADS VOICE LTD,"2,000.00",SESS,OTHER PAYMENTS FOR CLIENTS,2103140896,1000053009
03.09.2020,HOUSING,OCO LIMITED,"138,474.17",PAYMENTS CONTROL ACCOUNT - OCO,I-WORLD CONTRACTORS HOLDING ACCOUNT,5902431176,1006066
03.09.2020,HOUSING,SMITH & BYFORD LTD,"113,765.58",SMITH AND BYFORD,I-WORLD CONTRACTORS HOLDING ACCOUNT,5902431177,11212119
03.09.2020,HOUSING GENERAL FUND,INTERSERVE CONSTRUCTION LTD,"40,552.39",CAPITAL PS (REGEN),CONSTRUCTION MAIN CONTRACT,2103140860,3000002084
03.09.2020,HOUSING HRA,PROFILE CONSTRUCTION CONSULTANTS LTD,630,CAPITAL PS (HRA),CONSTRUCTION FEES,5902431164,1000062440
03.09.2020,HOUSING HRA,POTTER RAPER LTD,"1,947.19",CAPITAL PS (HRA),CONSTRUCTION FEES  - EXTERNAL,5902431224,1009369
03.09.2020,LEISURE DIRECTORATE,COMPLETE ECOLOGY LTD,"1,150.00",BURGESS AREA TEAM,GROUNDS MAINTENANCE,2103140861,3000001840
03.09.2020,LEISURE DIRECTORATE,CASTLE WATER LTD,685.56,BURGESS AREA TEAM,WATER,5902431078,1000078867
03.09.2020,LEISURE DIRECTORATE,NPOWER,546.78,DULWICH AREA TEAM,ELECTRICITY,5902431233,1000032342
03.09.2020,LEISURE DIRECTORATE,NPOWER,549.74,DULWICH AREA TEAM,ELECTRICITY,5902431239,1000032342
03.09.2020,LEISURE DIRECTORATE,NPOWER,"1,098.58",DULWICH AREA TEAM,ELECTRICITY,5902431236,1000032342
03.09.2020,LEISURE DIRECTORATE,NPOWER LTD,404.81,SOUTHWARK AREA TEAM,ELECTRICITY,5902431247,1000078994
03.09.2020,LEISURE DIRECTORATE,NPOWER LTD,"1,429.37",SOUTHWARK AREA TEAM,ELECTRICITY,5902431252,1000078994
03.09.2020,LEISURE DIRECTORATE,ASKEWS & HOLTS LIBRARY SERVICES LTD,676.74,STOCK SERVICES,BOOKS & PUBLICATIONS,5902430924,1494168
03.09.2020,LEISURE DIRECTORATE,ASKEWS & HOLTS LIBRARY SERVICES LTD,"11,255.28",STOCK SERVICES,BOOKS & PUBLICATIONS,5902430923,1494168
03.09.2020,MODERNISATION HGF,NEOPOST LTD,"4,273.88",160 TOOLEY ST.,POSTAGES,5902431304,1000051984
03.09.2020,REGENERATION,MEANWHILE SPACE CIC,"25,000.00",MASTER PLAN-H/WAY & TRANS INTERCHANGE,GRANTS,5902431257,1000080134
03.09.2020,RESIDENT SERVICES,BRITISH GAS,"2,260.15",EXTRA CARE,ELECTRICITY,5902431243,1000054825
03.09.2020,SBS OPERATIONS,TRAVIS PERKINS TRADING COMPANY LTD,715.5,SBS AIDS AND ADAPTATIONS,MATERIALS,5902431054,1514319
03.09.2020,SBS OPERATIONS,LAKEDALE POWER TOOLS,477,SBS IN-HOUR EMERGENCIES,MATERIALS,5902431184,1015368
03.09.2020,SBS SUPPORT,OFFICE DEPOT UK LTD,"1,078.07",R & M OVERHEADS,STATIONERY,5902431222,1109426
03.09.2020,SOUTHWARK BUILDING SERVICES,AGENTIS WORKWEAR LTD,298.5,STORES/LOGISTICS,CREDITORS -GR/IR CLEARING ACCOUNT,5902431182,1000065833
03.09.2020,SOUTHWARK BUILDING SERVICES,AGENTIS WORKWEAR LTD,298.5,STORES/LOGISTICS,CREDITORS -GR/IR CLEARING ACCOUNT,5902431182,1000065833
03.09.2020,SOUTHWARK BUILDING SERVICES,AGENTIS WORKWEAR LTD,597,STORES/LOGISTICS,CREDITORS -GR/IR CLEARING ACCOUNT,5902431182,1000065833
03.09.2020,SOUTHWARK SCHOOL FOR FUTURE,MORLEYS BICESTER LTD,"1,003.27",CAPITAL PS (REGEN),FIT-OUT,5902430654,1050697
03.09.2020,SUSTAINABILITY & BUSINESS DEVELOPMENT,RELIANCE HIGH-TECH LTD,"1,731.95",SERVICE DEVELOPMENT TEAM,OFFICE EXPENSES,5902431221,1000079374
04.09.2020,ADULT SOCIAL CARE,QUEENSOAK CARE HOME,"50,730.00",DIR OF ASC,EXTERNAL AGENCIES AND BODIES,5902431261,1000085333
04.09.2020,ADULT SOCIAL CARE,QUEENSOAK CARE HOME,"50,730.00",DIR OF ASC,EXTERNAL AGENCIES AND BODIES,5902431265,1000085333
04.09.2020,ADULT SOCIAL CARE,CREATING CARE CHOICES LTD,"18,600.00",DISABILITIES LAC,EXTERNAL AGENCIES AND BODIES,2103141029,1000076738
04.09.2020,ADULT SOCIAL CARE,REDACTED PERSONAL DATA,303.36,DISCHARGE TO ACCESS,SUPPORTED LIVING,REDACTED,REDACTED
04.09.2020,ADULT SOCIAL CARE,ACCESS MOBILITY TRANSPORT LTD,"2,333.20",LD LTS 18-64,CLIENT TRANSPORT,2103140979,1000074637
04.09.2020,ADULT SOCIAL CARE,SURREY DOCKS FARM PROVIDENT SOCIETY,480,LD LTS 18-64,DAYCARE,2103141025,1000000958
04.09.2020,ADULT SOCIAL CARE,SURREY DOCKS FARM PROVIDENT SOCIETY,487.5,LD LTS 18-64,DAYCARE,2103141027,1000000958
04.09.2020,ADULT SOCIAL CARE,SURREY DOCKS FARM PROVIDENT SOCIETY,720,LD LTS 18-64,DAYCARE,2103141026,1000000958
04.09.2020,ADULT SOCIAL CARE,CONTACT PROFESSIONALS,465,LD LTS 18-64,SUPPORTED LIVING,2103140981,1000057263
04.09.2020,ADULT SOCIAL CARE,ABILITY FOCUS LTD,"2,142.00",LD LTS 18-64,SUPPORTED LIVING,2103140982,1000084199
04.09.2020,ADULT SOCIAL CARE,REDACTED PERSONAL DATA,"3,682.28",LD LTS 18-64,SUPPORTED LIVING,REDACTED,REDACTED
04.09.2020,ADULT SOCIAL CARE,REDACTED PERSONAL DATA,404.4,LD LTS 18-64,SUPPORTED LIVING,REDACTED,REDACTED
04.09.2020,ADULT SOCIAL CARE,REDACTED PERSONAL DATA,606.6,LD LTS 18-64,SUPPORTED LIVING,REDACTED,REDACTED
04.09.2020,ADULT SOCIAL CARE,REDACTED PERSONAL DATA,269.6,MH LTS 18-64,SUPPORTED LIVING,REDACTED,REDACTED
04.09.2020,ADULT SOCIAL CARE,REDACTED PERSONAL DATA,337,MH LTS 18-64,SUPPORTED LIVING,REDACTED,REDACTED
04.09.2020,ADULT SOCIAL CARE,REDACTED PERSONAL DATA,337,MH LTS 18-64,SUPPORTED LIVING,REDACTED,REDACTED
04.09.2020,ADULT SOCIAL CARE,REDACTED PERSONAL DATA,404.4,MH LTS 18-64,SUPPORTED LIVING,REDACTED,REDACTED
04.09.2020,ADULT SOCIAL CARE,REDACTED PERSONAL DATA,438.1,MH LTS 18-64,SUPPORTED LIVING,REDACTED,REDACTED
04.09.2020,ADULT SOCIAL CARE,REDACTED PERSONAL DATA,471.8,MH LTS 18-64,SUPPORTED LIVING,REDACTED,REDACTED
04.09.2020,ADULT SOCIAL CARE,REDACTED PERSONAL DATA,606.6,MH LTS 18-64,SUPPORTED LIVING,REDACTED,REDACTED
04.09.2020,ADULT SOCIAL CARE,PHOENIX HEALTHCARE & RECRUITMENT,431.36,PHY LTS 18-64,DAYCARE,2103140973,1000065636
04.09.2020,ADULT SOCIAL CARE,PHOENIX HEALTHCARE & RECRUITMENT,431.36,PHY LTS 18-64,DAYCARE,2103140975,1000065636
04.09.2020,ADULT SOCIAL CARE,LONDON CARE LTD,"38,756.00",PHY LTS 65+,HOMECARE - C&V,5902430859,1000003398
04.09.2020,ADULT SOCIAL CARE,SAGECARE LTD,"28,180.00",PHY LTS 65+,HOMECARE - C&V,5902430857,1000080924
04.09.2020,ADULT SOCIAL CARE,SAGECARE LTD,800.4,PHY STS 18-64,HOMECARE - IC,2103141028,1000080924
04.09.2020,ADULT SOCIAL CARE,THAMES REACH,"75,227.25",S75 SUPHSG SCH LBS LEAD,EXTERNAL AGENCIES AND BODIES,5902431451,1723415
04.09.2020,ADULT SOCIAL CARE,SURREY DOCKS FARM PROVIDENT SOCIETY,500,SOCIAL ISOLATION,DAYCARE,2103141024,1000000958
04.09.2020,ADULT SOCIAL CARE,INTERSERVE HEALTHCARE,547.8,SPECIALIST CARE,SECTION 17 PAYMENTS TO AGENCIES/CARERS,2103141033,1000049612
04.09.2020,ADULT SOCIAL CARE,CONTACT PROFESSIONALS,494,SPECIALIST CARE,SECTION 17 PAYMENTS TO AGENCIES/CARERS,2103141032,1000057263
04.09.2020,ASSET MANAGEMENT,AJM ADAPTIONS LTD,"1,140.00",ADAPTATIONS,BUILDING R&M,5902431458,1000080297
04.09.2020,ASSET MANAGEMENT,SCCI ALPHATRACK LTD,309,ENG CONTRACTS (NORTH),TV AERIALS R&M,5902431447,1000071955
04.09.2020,CENTRAL FUNCTIONS,KENT COUNTY COUNCIL - LASER,"34,128.27",HEATING ACCOUNT,ELECTRICITY,5902430712,1000012926
04.09.2020,CENTRAL FUNCTIONS,KENT COUNTY COUNCIL - LASER,"39,113.04",HEATING ACCOUNT,ELECTRICITY,5902430712,1000012926
04.09.2020,CENTRAL FUNCTIONS,KENT COUNTY COUNCIL - LASER,"20,217.67",HEATING ACCOUNT,GAS,5902430710,1000012926
04.09.2020,CENTRAL FUNCTIONS,KENT COUNTY COUNCIL - LASER,"228,078.31",HEATING ACCOUNT,GAS,5902430710,1000012926
04.09.2020,CHIEF EXECUTIVE,KENT COUNTY COUNCIL - LASER,"1,902.41",CAPITAL PS (REGEN),CONSTRUCTION MAIN CONTRACT -CERTIFICATED,5902431383,1000012926
04.09.2020,CHIEF EXECUTIVE,SOMETHING & SON LTD,"2,166.66",CAPITAL PS (REGEN),LAND & BUILDINGS ACQUISITION FEES,5902431329,1000076291
04.09.2020,CHIEF EXECUTIVE,SOMETHING & SON LTD,"7,038.16",CAPITAL PS (REGEN),LAND & BUILDINGS ACQUISITION FEES,5902431333,1000076291
04.09.2020,CHIEF EXECUTIVE'S OFFICE,BAINBRIDGE PRINT STUDIO LTD,"2,500.00",DISCRETIONARY GRANTS,GRANTS,2103134926,1000085268
04.09.2020,CHIEF EXECUTIVE'S OFFICE,PINNACLE RECRUITMENT LTD,"25,000.00",DISCRETIONARY GRANTS,GRANTS,2103141080,1000085366
04.09.2020,CHIEF EXECUTIVE'S OFFICE,SARAH PEARCE,"2,455.00",DISCRETIONARY GRANTS,GRANTS,2103141081,1000085368
04.09.2020,CHIEF EXECUTIVE'S OFFICE,JOEL SERVICES UK LTD,"3,000.00",DISCRETIONARY GRANTS,GRANTS,2103141060,1000085377
04.09.2020,CHIEF EXECUTIVE'S OFFICE,CRATUS COMMUNICATIONS LTD,"25,000.00",DISCRETIONARY GRANTS,GRANTS,2103141069,1000085378
04.09.2020,CHIEF EXECUTIVE'S OFFICE,TADBERRY EVEDALE LTD,"5,000.00",DISCRETIONARY GRANTS,GRANTS,2103141074,1000085379
04.09.2020,CHIEF EXECUTIVE'S OFFICE,THE SKILLS CENTRE LONDON LTD,"25,000.00",DISCRETIONARY GRANTS,GRANTS,2103141075,1000085381
04.09.2020,CHIEF EXECUTIVE'S OFFICE,NICO CREATIVE LTD,"2,000.00",DISCRETIONARY GRANTS,GRANTS,2103141064,1000085383
04.09.2020,CHIEF EXECUTIVE'S OFFICE,ICAN INNOVATIONS LTD,"25,000.00",DISCRETIONARY GRANTS,GRANTS,2103141068,1000085384
04.09.2020,CHIEF EXECUTIVE'S OFFICE,GLOBAL INSIGHT CONFERENCES LTD,"25,000.00",DISCRETIONARY GRANTS,GRANTS,2103141062,1000085385
04.09.2020,CHIEF EXECUTIVE'S OFFICE,LEVEON ACCOUNTING SOLUTIONS LTD,"5,000.00",DISCRETIONARY GRANTS,GRANTS,2103141071,1000085386
04.09.2020,CHIEF EXECUTIVE'S OFFICE,FRAN BUSS,"1,295.64",DISCRETIONARY GRANTS,GRANTS,2103141072,1000085387
04.09.2020,CHIEF EXECUTIVE'S OFFICE,GARAVI GUJARAT (PUBLICATIONS) LTD,"25,000.00",DISCRETIONARY GRANTS,GRANTS,2103141073,1000085388
04.09.2020,CHIEF EXECUTIVE'S OFFICE,CITY SPORTS MASSAGE,"2,500.00",DISCRETIONARY GRANTS,GRANTS,2103141061,1000085389
04.09.2020,CHIEF EXECUTIVE'S OFFICE,RICHARD BRAMBLE,"2,500.00",DISCRETIONARY GRANTS,GRANTS,2103141065,1000085391
04.09.2020,CHIEF EXECUTIVE'S OFFICE,ZEIGO LTD,"25,000.00",DISCRETIONARY GRANTS,GRANTS,2103141066,1000085392
04.09.2020,CHIEF EXECUTIVE'S OFFICE,LAST SUPPER UK LTD,"25,000.00",DISCRETIONARY GRANTS,GRANTS,2103141067,1000085393
04.09.2020,CHIEF EXECUTIVE'S OFFICE,LIVEJOLI LTD T/A JOLI,"5,000.00",DISCRETIONARY GRANTS,GRANTS,2103141082,1000085394
04.09.2020,CHIEF EXECUTIVE'S OFFICE,PAPER DOG LTD,"9,150.00",DISCRETIONARY GRANTS,GRANTS,2103141070,1000085395
04.09.2020,CHIEF EXECUTIVE'S OFFICE,FILKIM LTD,"5,000.00",DISCRETIONARY GRANTS,GRANTS,2103141063,1000085396
04.09.2020,CHIEF EXECUTIVE'S OFFICE,STOOKI LIMITED,"2,500.00",DISCRETIONARY GRANTS,GRANTS,2103141079,1000085401
04.09.2020,CHIEF EXECUTIVE'S OFFICE,VIMESVC LIMITED,"2,500.00",DISCRETIONARY GRANTS,GRANTS,2103141083,1000085402
04.09.2020,CHIEF EXECUTIVE'S OFFICE,K2 CONSULTANCY LTD,"25,000.00",DISCRETIONARY GRANTS,GRANTS,2103141077,1000085404
04.09.2020,CHIEF EXECUTIVE'S OFFICE,LIAM NEWNHAM,"2,500.00",DISCRETIONARY GRANTS,GRANTS,2103141076,1000085405
04.09.2020,CHIEF EXECUTIVE'S OFFICE,ADUKUS LAW LIMITED,"5,000.00",DISCRETIONARY GRANTS,GRANTS,2103141078,1000085406
04.09.2020,CHILDREN'S SERVICES,ZENITH CARS LTD,265,AI TEAMS E-G & KFT,HIRED VEHICLES,5902431462,1000070570
04.09.2020,CHILDREN'S SERVICES,REDACTED PERSONAL DATA,"4,000.00",ASSISSTANT DIRECTOR (CHILDREN),LEGAL FEES & COURT COSTS,REDACTED,REDACTED
04.09.2020,CHILDREN'S SERVICES,REDACTED PERSONAL DATA,500,CARE LEAVERS SERVICES 16+,OTHER PAYMENTS FOR CLIENTS,REDACTED,REDACTED
04.09.2020,CHILDREN'S SERVICES,ST CHRISTOPHER FELLOWSHIP,"14,571.30",CHILDREN�S RESID,RESIDENTIAL CARE,2103141031,1000045269
04.09.2020,CHILDREN'S SERVICES,HOLIBROOK HOUSE LTD,"24,290.71",CHILDREN�S RESID,RESIDENTIAL CARE,2103141030,1000067873
04.09.2020,CHILDREN'S SERVICES,EAST SUSSEX COUNTY COUNCIL,"2,031.16",FRIENDS & FAMILY FOSTERING,EXTERNAL AGENCIES AND BODIES,2103141036,1000015148
04.09.2020,CHILDREN'S SERVICES,EAST SUSSEX COUNTY COUNCIL,"2,031.16",FRIENDS & FAMILY FOSTERING,EXTERNAL AGENCIES AND BODIES,2103141053,1000015148
04.09.2020,CHILDREN'S SERVICES,EAST SUSSEX COUNTY COUNCIL,"2,297.32",FRIENDS & FAMILY FOSTERING,EXTERNAL AGENCIES AND BODIES,2103141048,1000015148
04.09.2020,CHILDREN'S SERVICES,EAST SUSSEX COUNTY COUNCIL,"2,297.32",FRIENDS & FAMILY FOSTERING,EXTERNAL AGENCIES AND BODIES,2103141052,1000015148
04.09.2020,CHILDREN'S SERVICES,ORANGE GROVE FOSTERCARE LTD,"3,751.62",FRIENDS & FAMILY FOSTERING,EXTERNAL AGENCIES AND BODIES,2103141051,1000078716
04.09.2020,CHILDREN'S SERVICES,LIKA FAMILY FOSTERING,"3,800.00",FRIENDS & FAMILY FOSTERING,EXTERNAL AGENCIES AND BODIES,2103141045,1000080099
04.09.2020,CHILDREN'S SERVICES,FOSTERING FOR YOU LTD,"3,271.21",FRIENDS & FAMILY FOSTERING,EXTERNAL AGENCIES AND BODIES,2103141040,1000080380
04.09.2020,CHILDREN'S SERVICES,FOSTERING FOR YOU LTD,"3,271.21",FRIENDS & FAMILY FOSTERING,EXTERNAL AGENCIES AND BODIES,2103141047,1000080380
04.09.2020,CHILDREN'S SERVICES,FOSTERING FOR YOU LTD,"3,443.39",FRIENDS & FAMILY FOSTERING,EXTERNAL AGENCIES AND BODIES,2103141037,1000080380
04.09.2020,CHILDREN'S SERVICES,FOSTERING FOR YOU LTD,"3,443.39",FRIENDS & FAMILY FOSTERING,EXTERNAL AGENCIES AND BODIES,2103141041,1000080380
04.09.2020,CHILDREN'S SERVICES,FOSTERING FOR YOU LTD,"3,443.39",FRIENDS & FAMILY FOSTERING,EXTERNAL AGENCIES AND BODIES,2103141042,1000080380
04.09.2020,CHILDREN'S SERVICES,FOSTERING FOR YOU LTD,"3,443.39",FRIENDS & FAMILY FOSTERING,EXTERNAL AGENCIES AND BODIES,2103141043,1000080380
04.09.2020,CHILDREN'S SERVICES,FOSTERING FOR YOU LTD,"3,443.39",FRIENDS & FAMILY FOSTERING,EXTERNAL AGENCIES AND BODIES,2103141044,1000080380
04.09.2020,CHILDREN'S SERVICES,DIVERSITY FOSTER CARE LTD,"4,108.69",FRIENDS & FAMILY FOSTERING,EXTERNAL AGENCIES AND BODIES,2103141038,1000081399
04.09.2020,CHILDREN'S SERVICES,DIVERSITY FOSTER CARE LTD,"4,108.69",FRIENDS & FAMILY FOSTERING,EXTERNAL AGENCIES AND BODIES,2103141049,1000081399
04.09.2020,CHILDREN'S SERVICES,FLOURISH FOSTERING LTD,"2,635.27",FRIENDS & FAMILY FOSTERING,EXTERNAL AGENCIES AND BODIES,2103141039,1000084796
04.09.2020,CHILDREN'S SERVICES,FLOURISH FOSTERING LTD,"2,635.27",FRIENDS & FAMILY FOSTERING,EXTERNAL AGENCIES AND BODIES,2103141046,1000084796
04.09.2020,CHILDREN'S SERVICES,RG SOUND SOLUTIONS LTD,"1,500.81",HEARING AND VISUAL IMPAIRMENT TEAM,OP LEASE/HIRE CHARGES:PLANT/EQUIP/FURNIT,5902431475,1000081824
04.09.2020,CHILDREN'S SERVICES,RG SOUND SOLUTIONS LTD,"1,510.31",HEARING AND VISUAL IMPAIRMENT TEAM,OP LEASE/HIRE CHARGES:PLANT/EQUIP/FURNIT,5902431474,1000081824
04.09.2020,CHILDREN'S SERVICES,PORTSEA ISLAND LTD,400,P & R CARE TEAM,OTHER PAYMENTS FOR CLIENTS,5902431428,1000085408
04.09.2020,CHILDREN'S SERVICES,ALLPAY LTD (0-25),"50,000.00",SCH TRANS - CONTRACT COST,OTHER PAYMENTS FOR CLIENTS,5902431469,1000083062
04.09.2020,CHILDREN'S SERVICES,LOOK AHEAD CARE AND SUPPORT LTD,"2,505.24",SEMI INDEPENDENT CARE LEAVERS,EXTERNAL AGENCIES AND BODIES,2103140990,1000047299
04.09.2020,CHILDREN'S SERVICES,OWNLIFE LTD,621.42,SEMI INDEPENDENT CARE LEAVERS,EXTERNAL AGENCIES AND BODIES,2103140994,1000056219
04.09.2020,CHILDREN'S SERVICES,OWNLIFE LTD,"3,808.57",SEMI INDEPENDENT CARE LEAVERS,EXTERNAL AGENCIES AND BODIES,2103140992,1000056219
04.09.2020,CHILDREN'S SERVICES,OWNLIFE LTD,"4,598.56",SEMI INDEPENDENT CARE LEAVERS,EXTERNAL AGENCIES AND BODIES,2103140993,1000056219
04.09.2020,CHILDREN'S SERVICES,HEARTWOOD OUTREACH SERVICES LTD,"1,887.59",SEMI INDEPENDENT CARE LEAVERS,EXTERNAL AGENCIES AND BODIES,2103140997,1000075021
04.09.2020,CHILDREN'S SERVICES,FAMILY FOSTERING LTD,971.38,SEMI INDEPENDENT CARE LEAVERS,EXTERNAL AGENCIES AND BODIES,2103140991,1000075179
04.09.2020,CHILDREN'S SERVICES,FINEFAIR LTD,"1,687.33",SEMI INDEPENDENT CARE LEAVERS,EXTERNAL AGENCIES AND BODIES,2103140995,1000075570
04.09.2020,CHILDREN'S SERVICES,TRANSFORMING LIVES COMPANY LTD,"3,739.92",SEMI INDEPENDENT CARE LEAVERS,EXTERNAL AGENCIES AND BODIES,2103140989,1000083352
04.09.2020,CHILDREN'S SERVICES,OWNLIFE LTD,"3,542.87",SEMI INDEPENDENT LAC,EXTERNAL AGENCIES AND BODIES,2103140985,1000056219
04.09.2020,CHILDREN'S SERVICES,SUPPORTING POSITIVE OUTCOMES LTD,"3,980.00",SEMI INDEPENDENT LAC,EXTERNAL AGENCIES AND BODIES,2103140987,1000083918
04.09.2020,CHILDREN'S SERVICES,FLOURISHGATE CARE SERVICES LTD,"6,620.00",SEMI INDEPENDENT LAC,EXTERNAL AGENCIES AND BODIES,2103140984,1000085263
04.09.2020,CHILDREN'S SERVICES,ARC COMMUNITY TRUSTEES,650,SPECIAL GUARDIANSHIP,EXTERNAL AGENCIES AND BODIES,5902431324,1000046206
04.09.2020,CHILDREN'S SERVICES,REDACTED PERSONAL DATA,495,SPECIAL GUARDIANSHIP,EXTERNAL AGENCIES AND BODIES,REDACTED,REDACTED
04.09.2020,CHILDREN'S SERVICES,ZENITH CARS LTD,"1,150.00",TEAM D,HIRED VEHICLES,5902431462,1000070570
04.09.2020,CHILDREN'S SERVICES,NATIONWIDE ACCOMMODATION,"1,833.00",TEMP ACCOM FOR IH,EXTERNAL AGENCIES AND BODIES,5902431460,1000076112
04.09.2020,CHILDREN'S SERVICES,LOOK AHEAD CARE AND SUPPORT LTD,"2,909.65",UASC CARE LEAVERS,EXTERNAL AGENCIES AND BODIES,2103140996,1000047299
04.09.2020,CHILDREN'S SERVICES,OWNLIFE LTD,750,UASC LAC,EXTERNAL AGENCIES AND BODIES,2103140986,1000056219
04.09.2020,CHILDREN'S SERVICES,OWNLIFE LTD,"2,640.00",UASC LAC,EXTERNAL AGENCIES AND BODIES,2103140988,1000056219
04.09.2020,CHILDREN'S SERVICES,ROADWORKS MEDIA,"1,250.00",YOS SUPPORT,EXTERNAL AGENCIES AND BODIES,5902431484,1000081375
04.09.2020,COMMISSIONING & CENTRAL,UNIFIED CONSULTANCY LTD,"1,099.77",COMMISSIONING TEAM,DATA COMMUNICATIONS,5902430725,1000081827
04.09.2020,CUSTOMER EXPERIENCE HGF,GOLDSPRING MANAGEMENT CO. LTD,"1,680.00",HOMELESS PROJECTS,GRANTS,5902431398,1000062925
04.09.2020,CUSTOMER EXPERIENCE HGF,FRESHVIEW ESTATES LTD,"2,117.28",HOMELESS PROJECTS,GRANTS,5902431334,1000081189
04.09.2020,CUSTOMER EXPERIENCE HGF,PREMIER PROPERTY MANAGEMENT COMPANY,"2,700.00",HOMELESS PROJECTS,GRANTS,5902431332,1000083430
04.09.2020,CUSTOMER EXPERIENCE HGF,ACORN PROPERTY MANAGEMENT,"2,585.00",HOMELESS PROJECTS,GRANTS,5902430927,1000084989
04.09.2020,CUSTOMER EXPERIENCE HGF,CAXTONS COMMERCIAL LTD,"2,500.00",HOMELESS PROJECTS,GRANTS,5902431397,1000085283
04.09.2020,CUSTOMER EXPERIENCE HGF,BALWINDER NAZRAN,"2,117.28",HOMELESS PROJECTS,GRANTS,5902431481,1000085382
04.09.2020,CUSTOMER EXPERIENCE HGF,KINDLY PROPERTIES LTD,"25,624.75",NIGHTLY TA (NSC),EXTERNAL AGENCIES AND BODIES,5902431448,1000060734
04.09.2020,ENVIRONMENT AND LEISURE,GOOD WITH DEVICES LTD,"69,708.94",CAPITAL PS (LEISURE),ICT ACQUISITION,5902431483,1000085257
04.09.2020,ENVIRONMENT DIRECTORATE,EDF ENERGY PLC,394.39,SANDGATE STREET,ELECTRICITY,5902431438,1008746
04.09.2020,ENVIRONMENT DIRECTORATE,KENT COUNTY COUNCIL - LASER,"1,896.18",SANDGATE STREET,ELECTRICITY,5902431466,1000012926
04.09.2020,ENVIRONMENT DIRECTORATE,IVIE SOCIAL CARE SYSTEM CONSULTANCY,"39,000.00",STREET WORKS OVERHEADS,SOFTWARE,5902431331,1000083092
04.09.2020,ENVIRONMENT DIRECTORATE,WSP UK LTD,"3,345.30",TRANSPORT PROJECTS,CONSULTANTS SERVICES,5902430842,1000054214
04.09.2020,EXCHEQUER SERVICES,ARCUS GLOBAL LTD,"1,800.00",ADMINISTRATIVE SUPPORT,SOFTWARE,5902431455,1000080110
04.09.2020,EXCHEQUER SERVICES,CIPFA BUSINESS LTD,345,ADMINISTRATIVE SUPPORT,TRAINING,5902431482,1000024688
04.09.2020,EXCHEQUER SERVICES,ZALARIS CONSULTING UK LTD,"2,487.50",GM SAP,SOFTWARE,5902431424,1000062505
04.09.2020,HOUSING HRA,MLM CONSULTING ENGINEERS LTD,500,CAPITAL PS (HRA),CONSTRUCTION FEES  - EXTERNAL,5902430928,1000059806
04.09.2020,HOUSING HRA,RUSSELL GILES PARTNERSHIP LTD,"1,000.00",CAPITAL PS (HRA),CONSTRUCTION FEES  - EXTERNAL,5902431468,1000077585
04.09.2020,HOUSING HRA,ENGIE REGENERATION (APOLLO) LTD,"565,941.52",CAPITAL PS (HRA),CONSTRUCTION MAIN CONTRACT -CERTIFICATED,2103141059,4000449
04.09.2020,HOUSING HRA,VITAL ENERGI UTILITIES LTD,"96,893.39",CAPITAL PS (HRA),CONSTRUCTION MAIN CONTRACT -CERTIFICATED,2103140927,3000001040
04.09.2020,HOUSING HRA,VITAL ENERGI UTILITIES LTD,"119,935.11",CAPITAL PS (HRA),CONSTRUCTION MAIN CONTRACT -CERTIFICATED,2103140926,3000001040
04.09.2020,HOUSING HRA,KEEGANS LTD,900,CAPITAL PS (HRA),UTILITIES INSTALLATION,5902431426,1000039674
04.09.2020,HOUSING HRA,KEEGANS LTD,900,CAPITAL PS (HRA),UTILITIES INSTALLATION,5902431427,1000039674
04.09.2020,MODERNISATION HGF,KENT COUNTY COUNCIL - LASER,"8,504.19",34 PECKHAM ROAD,ELECTRICITY,5902431337,1000012926
04.09.2020,MODERNISATION HGF,MITEL NETWORKS LTD,"74,750.00",SHARED SERVICES,SOFTWARE,5902431431,1000031852
04.09.2020,REGENERATION,PIPE SCAFFOLDING LTD,"1,844.00",MISC INDUSTRIAL PROPERTIES,BUILDING R&M,5902430848,1000083894
04.09.2020,REGENERATION,BPS CHARTERED SURVEYORS,"2,240.00",OKR MASTER PLANNING,PROFESSIONAL FEES,5902431477,1000077923
04.09.2020,RESIDENT SERVICES,DEVONSHIRES SOLICITORS,500,HOARDING,PREMISES CLEANING,5902431453,1000002790
04.09.2020,RESIDENT SERVICES,BRITISH GAS TRADING LTD,323.83,OPERATIONS/OFFICES ACCOMMODATION,ELECTRICITY,5902431342,1000055977
04.09.2020,RESIDENT SERVICES,HOMELESS LINK,660,SUPPORTED HOSTELS,SECURITY SERVICES,5902431459,1904651
05.09.2020,CHILDREN'S SERVICES,AIDHOUR LIMITED,"1,583.00",CHILD PROTECTION UNIT,PROFESSIONAL FEES,5902430744,1000057345
05.09.2020,CUSTOMER EXPERIENCE HGF,IMPERIAL COLLEGE PROJECTS LTD,312,CORONER'S,PROFESSIONAL FEES,5902431414,1000080106
05.09.2020,CUSTOMER EXPERIENCE HGF,IMPERIAL COLLEGE PROJECTS LTD,336,CORONER'S,PROFESSIONAL FEES,5902431412,1000080106
05.09.2020,CUSTOMER EXPERIENCE HGF,IMPERIAL COLLEGE PROJECTS LTD,356,CORONER'S,PROFESSIONAL FEES,5902431411,1000080106
05.09.2020,CUSTOMER EXPERIENCE HGF,IMPERIAL COLLEGE PROJECTS LTD,448,CORONER'S,PROFESSIONAL FEES,5902431415,1000080106
05.09.2020,CUSTOMER EXPERIENCE HGF,IMPERIAL COLLEGE PROJECTS LTD,472,CORONER'S,PROFESSIONAL FEES,5902431413,1000080106
05.09.2020,CUSTOMER EXPERIENCE HGF,HIAM ALI LTD,"6,373.00",CORONER'S,PROFESSIONAL FEES,5902431472,1000084044
05.09.2020,HOUSING HRA,AJMADAPTIONS LTD,"6,535.00",CAPITAL PS (HRA),CONST'N MAIN CONTRACT - NON CERTIFICATED,2103140862,3000002056
05.09.2020,HOUSING HRA,A & E ELKINS LTD,"80,413.29",CAPITAL PS (HRA),CONSTRUCTION MAIN CONTRACT -CERTIFICATED,2103140852,4012501
05.09.2020,HOUSING HRA,THOMAS SINDEN CONSTRUCTION,"58,196.80",CAPITAL PS (HRA),CONSTRUCTION MAIN CONTRACT -CERTIFICATED,2103140928,3000000605
05.09.2020,HOUSING HRA,GUILDMORE LTD,"85,598.14",CAPITAL PS (HRA),CONSTRUCTION MAIN CONTRACT -CERTIFICATED,2103140851,3000002150
05.09.2020,LEISURE DIRECTORATE,PHS GROUP PLC,"2,175.24",SDM BUDGET,PREMISES CLEANING,5902430988,1851993
05.09.2020,REGENERATION,GIA,"2,950.00",OKR MASTER PLANNING,PROFESSIONAL FEES,5902431250,1000054892
05.09.2020,RESIDENT SERVICES,CARLISLE SECURITY SERVICES LTD,"12,779.52",CAMBERWELL,SECURITY SERVICES,5902431349,11212342
06.09.2020,ASSET MANAGEMENT,JUDGE AND PRIESTLEY SOLICITORS,945.33,DISREPAIR,PAYMENTS FOR LEGAL SERVICES,5902430954,1472217
06.09.2020,ASSET MANAGEMENT,JUDGE AND PRIESTLEY SOLICITORS,"1,590.00",DISREPAIR,PAYMENTS FOR LEGAL SERVICES,5902430953,1472217
06.09.2020,ASSET MANAGEMENT,JUDGE AND PRIESTLEY SOLICITORS,"22,693.50",DISREPAIR,PAYMENTS FOR LEGAL SERVICES,5902430954,1472217
06.09.2020,ASSET MANAGEMENT,JUDGE AND PRIESTLEY SOLICITORS,"35,346.40",DISREPAIR,PAYMENTS FOR LEGAL SERVICES,5902430953,1472217
06.09.2020,CHIEF EXECUTIVE,PLAYLE & PARTNERS,"1,039.50",CAPITAL PS (REGEN),CONSTRUCTION FEES,5902431437,1000043982
06.09.2020,COMMISSIONING & CENTRAL,MAGPIE LTD,"25,570.60",STRATEGIC DIRECTOR OF C&AS,EXTERNAL AGENCIES AND BODIES,5902431260,1000084487
06.09.2020,ENVIRONMENT AND LEISURE,THOMAS FORD & PARTNERS LTD,"2,600.00",CAPITAL PS (LEISURE),CONSTRUCTION FEES  - EXTERNAL,5902430967,1000037686
06.09.2020,ENVIRONMENT DIRECTORATE,CHERRY PICKER HIRE LTD,450,NON HOUSING GROUNDS,EQUIPMENT PURCHASE & REPAIR,5902431150,1000077442
06.09.2020,EXCHEQUER SERVICES,DSI BILLING SERVICES LTD,"9,624.59",ADMINISTRATIVE SUPPORT,POSTAGES,5902431361,1000058640
06.09.2020,HOUSING,LIFTEC LIFTS LTD,"190,171.05",PAYMENTS CONTROL ACCOUNT - LIFTEC,I-WORLD CONTRACTORS HOLDING ACCOUNT,5902430955,1000057278
06.09.2020,HOUSING HRA,PHILIP PANK PARTNERSHIP,"6,438.60",CAPITAL PS (HRA),CONSTRUCTION FEES  - EXTERNAL,5902431019,1015501
06.09.2020,HOUSING HRA,CALFORD SEADEN LLP,"2,450.00",CAPITAL PS (HRA),CONSTRUCTION FEES  - EXTERNAL,5902431423,1061592
06.09.2020,HOUSING HRA,CALFORD SEADEN LLP,"4,896.00",CAPITAL PS (HRA),CONSTRUCTION FEES  - EXTERNAL,5902431216,1061592
06.09.2020,HOUSING HRA,CALFORD SEADEN LLP,"4,900.00",CAPITAL PS (HRA),CONSTRUCTION FEES  - EXTERNAL,5902431219,1061592
06.09.2020,INSURANCE FUNDS,JOHNSON AUSTIN LTD,375,PROPERTY RELATED INSURANCE,PROFESSIONAL FEES,5902431354,1000040202
06.09.2020,REGENERATION,MAKOWER ARCHITECTS LTD,750,OKR MASTER PLANNING,PROFESSIONAL FEES,5902431041,1000080274
07.09.2020,ADULT SOCIAL CARE,REDACTED PERSONAL DATA,279.85,APPOINTEESHIPS,OTHER PAYMENTS FOR CLIENTS,REDACTED,REDACTED
07.09.2020,ADULT SOCIAL CARE,EDGE TRAINING AND CONSULTANCY LTD,"2,100.00",ASW - PROFESSIONAL DEVELOPMENT,TRAINING,5902431590,1000057249
07.09.2020,ADULT SOCIAL CARE,SOUTH EAST LONDON BAPTIST HOME,"14,820.00",DIR OF ASC,EXTERNAL AGENCIES AND BODIES,5902431660,1670766
07.09.2020,ADULT SOCIAL CARE,WE ARE BEAMS LTD,980,DISABILITIES LAC,EXTERNAL AGENCIES AND BODIES,5902431639,1000083431
07.09.2020,ADULT SOCIAL CARE,THAMES HOMECARE SERVICE LTD,367.94,DISCHARGE TO ACCESS,HOMECARE - C&V,2103141295,1000079295
07.09.2020,ADULT SOCIAL CARE,THAMES HOMECARE SERVICE LTD,536.02,DISCHARGE TO ACCESS,HOMECARE - C&V,2103141251,1000079295
07.09.2020,ADULT SOCIAL CARE,CARE O LINE,"1,320.00",LD LTS 18-64,SUPPORTED LIVING,2103141306,11241743
07.09.2020,ADULT SOCIAL CARE,CARE O LINE,"1,821.90",LD LTS 18-64,SUPPORTED LIVING,2103141310,11241743
07.09.2020,ADULT SOCIAL CARE,CONTACT PROFESSIONALS,465,LD LTS 18-64,SUPPORTED LIVING,2103141304,1000057263
07.09.2020,ADULT SOCIAL CARE,DARETHEALTHCARE UK LTD,455.1,LD LTS 18-64,SUPPORTED LIVING,2103141309,1000059149
07.09.2020,ADULT SOCIAL CARE,THAMES HOMECARE SERVICE LTD,472.42,MH LTS 65+,HOMECARE - SPOT,2103141263,1000079295
07.09.2020,ADULT SOCIAL CARE,THAMES HOMECARE SERVICE LTD,508.76,MH LTS 65+,HOMECARE - SPOT,2103141211,1000079295
07.09.2020,ADULT SOCIAL CARE,OFFICE REALITY LTD,989.94,ORIENT ST � RESPITE,EQUIPMENT PURCHASE & REPAIR,5902431621,1000055600
07.09.2020,ADULT SOCIAL CARE,THAMES HOMECARE SERVICE LTD,685.92,PHY LTS 18-64,HOMECARE - C&V,2103141293,1000079295
07.09.2020,ADULT SOCIAL CARE,THAMES HOMECARE SERVICE LTD,286.18,PHY LTS 18-64,HOMECARE - SPOT,2103141302,1000079295
07.09.2020,ADULT SOCIAL CARE,THAMES HOMECARE SERVICE LTD,290.72,PHY LTS 18-64,HOMECARE - SPOT,2103141254,1000079295
07.09.2020,ADULT SOCIAL CARE,THAMES HOMECARE SERVICE LTD,327.06,PHY LTS 18-64,HOMECARE - SPOT,2103141269,1000079295
07.09.2020,ADULT SOCIAL CARE,THAMES HOMECARE SERVICE LTD,349.77,PHY LTS 18-64,HOMECARE - SPOT,2103141291,1000079295
07.09.2020,ADULT SOCIAL CARE,THAMES HOMECARE SERVICE LTD,386.11,PHY LTS 18-64,HOMECARE - SPOT,2103141244,1000079295
07.09.2020,ADULT SOCIAL CARE,THAMES HOMECARE SERVICE LTD,572.36,PHY LTS 18-64,HOMECARE - SPOT,2103141282,1000079295
07.09.2020,ADULT SOCIAL CARE,THAMES HOMECARE SERVICE LTD,572.36,PHY LTS 18-64,HOMECARE - SPOT,2103141298,1000079295
07.09.2020,ADULT SOCIAL CARE,THAMES HOMECARE SERVICE LTD,635.95,PHY LTS 18-64,HOMECARE - SPOT,2103141255,1000079295
07.09.2020,ADULT SOCIAL CARE,THAMES HOMECARE SERVICE LTD,649.58,PHY LTS 18-64,HOMECARE - SPOT,2103141261,1000079295
07.09.2020,ADULT SOCIAL CARE,THAMES HOMECARE SERVICE LTD,726.8,PHY LTS 18-64,HOMECARE - SPOT,2103141223,1000079295
07.09.2020,ADULT SOCIAL CARE,THAMES HOMECARE SERVICE LTD,935.76,PHY LTS 18-64,HOMECARE - SPOT,2103141300,1000079295
07.09.2020,ADULT SOCIAL CARE,THAMES HOMECARE SERVICE LTD,281.64,PHY LTS 65+,HOMECARE - C&V,2103141286,1000079295
07.09.2020,ADULT SOCIAL CARE,THAMES HOMECARE SERVICE LTD,645.04,PHY LTS 65+,HOMECARE - C&V,2103141296,1000079295
07.09.2020,ADULT SOCIAL CARE,THAMES HOMECARE SERVICE LTD,763.14,PHY LTS 65+,HOMECARE - C&V,2103141276,1000079295
07.09.2020,ADULT SOCIAL CARE,THAMES HOMECARE SERVICE LTD,254.38,PHY LTS 65+,HOMECARE - SPOT,2103141280,1000079295
07.09.2020,ADULT SOCIAL CARE,THAMES HOMECARE SERVICE LTD,268.01,PHY LTS 65+,HOMECARE - SPOT,2103141248,1000079295
07.09.2020,ADULT SOCIAL CARE,THAMES HOMECARE SERVICE LTD,286.18,PHY LTS 65+,HOMECARE - SPOT,2103141250,1000079295
07.09.2020,ADULT SOCIAL CARE,THAMES HOMECARE SERVICE LTD,295.26,PHY LTS 65+,HOMECARE - SPOT,2103141258,1000079295
07.09.2020,ADULT SOCIAL CARE,THAMES HOMECARE SERVICE LTD,327.06,PHY LTS 65+,HOMECARE - SPOT,2103141287,1000079295
07.09.2020,ADULT SOCIAL CARE,THAMES HOMECARE SERVICE LTD,349.77,PHY LTS 65+,HOMECARE - SPOT,2103141243,1000079295
07.09.2020,ADULT SOCIAL CARE,THAMES HOMECARE SERVICE LTD,413.37,PHY LTS 65+,HOMECARE - SPOT,2103141235,1000079295
07.09.2020,ADULT SOCIAL CARE,THAMES HOMECARE SERVICE LTD,508.76,PHY LTS 65+,HOMECARE - SPOT,2103141231,1000079295
07.09.2020,ADULT SOCIAL CARE,THAMES HOMECARE SERVICE LTD,572.36,PHY LTS 65+,HOMECARE - SPOT,2103141252,1000079295
07.09.2020,ADULT SOCIAL CARE,THAMES HOMECARE SERVICE LTD,572.36,PHY LTS 65+,HOMECARE - SPOT,2103141270,1000079295
07.09.2020,ADULT SOCIAL CARE,THAMES HOMECARE SERVICE LTD,576.9,PHY LTS 65+,HOMECARE - SPOT,2103141217,1000079295
07.09.2020,ADULT SOCIAL CARE,THAMES HOMECARE SERVICE LTD,608.7,PHY LTS 65+,HOMECARE - SPOT,2103141265,1000079295
07.09.2020,ADULT SOCIAL CARE,THAMES HOMECARE SERVICE LTD,635.95,PHY LTS 65+,HOMECARE - SPOT,2103141289,1000079295
07.09.2020,ADULT SOCIAL CARE,THAMES HOMECARE SERVICE LTD,640.49,PHY LTS 65+,HOMECARE - SPOT,2103141285,1000079295
07.09.2020,ADULT SOCIAL CARE,THAMES HOMECARE SERVICE LTD,663.21,PHY LTS 65+,HOMECARE - SPOT,2103141266,1000079295
07.09.2020,ADULT SOCIAL CARE,THAMES HOMECARE SERVICE LTD,699.55,PHY LTS 65+,HOMECARE - SPOT,2103141246,1000079295
07.09.2020,ADULT SOCIAL CARE,THAMES HOMECARE SERVICE LTD,699.55,PHY LTS 65+,HOMECARE - SPOT,2103141277,1000079295
07.09.2020,ADULT SOCIAL CARE,THAMES HOMECARE SERVICE LTD,713.17,PHY LTS 65+,HOMECARE - SPOT,2103141239,1000079295
07.09.2020,ADULT SOCIAL CARE,THAMES HOMECARE SERVICE LTD,799.48,PHY LTS 65+,HOMECARE - SPOT,2103141237,1000079295
07.09.2020,ADULT SOCIAL CARE,THAMES HOMECARE SERVICE LTD,808.57,PHY LTS 65+,HOMECARE - SPOT,2103141283,1000079295
07.09.2020,ADULT SOCIAL CARE,THAMES HOMECARE SERVICE LTD,"1,480.86",PHY LTS 65+,HOMECARE - SPOT,2103141299,1000079295
07.09.2020,ADULT SOCIAL CARE,METRO HOMECARE LTD,296.82,PHY STS 18-64,HOMECARE - IC,2103141305,1000070695
07.09.2020,ADULT SOCIAL CARE,METRO HOMECARE LTD,296.82,PHY STS 18-64,HOMECARE - IC,2103141307,1000070695
07.09.2020,ADULT SOCIAL CARE,THAMES HOMECARE SERVICE LTD,272.55,PHY STS 65+,HOMECARE - IC,2103141301,1000079295
07.09.2020,ADULT SOCIAL CARE,THAMES HOMECARE SERVICE LTD,304.35,SEN LTS 65+,HOMECARE - SPOT,2103141215,1000079295
07.09.2020,ADULT SOCIAL CARE,FREEDOM RECOVERY CENTRE,"1,540.00",SUB LTS 18-64,PLACEMENTS - REHAB,2103141312,1000046185
07.09.2020,ASSET MANAGEMENT,STANNAH LIFT SERVICES LTD,"2,640.00",ADAPTATIONS,BUILDING R&M,5902431608,1063595
07.09.2020,ASSET MANAGEMENT,SOUTHWARK LAW CENTRE,"15,000.00",DISREPAIR,PAYMENTS FOR LEGAL SERVICES,2103141188,1931684
07.09.2020,ASSET MANAGEMENT,BARNES SOLICITORS LLP,500,DISREPAIR,PAYMENTS FOR LEGAL SERVICES,2103141187,1000083820
07.09.2020,ASSET MANAGEMENT,BOND TURNER  SOLICITORS,"1,750.00",DISREPAIR,PAYMENTS FOR LEGAL SERVICES,2103141186,1000085362
07.09.2020,ASSET MANAGEMENT,P J COFFEY LTD,"11,100.00",REPAIRS OPERATIONS,PROFESSIONAL FEES,5902431625,1000084701
07.09.2020,CENTRAL FUNCTIONS,COMPLETE SERVICES LONDON LTD,"2,400.00",COMMERCIAL PROPERTIES,BUILDING R&M,2103141088,3000002160
07.09.2020,CHIEF EXECUTIVE,DRAIN SCAN,280,CAPITAL PS (REGEN),CONSTR'N SUB CONTRACT - NON CERTIFICATED,5902431628,1908746
07.09.2020,CHIEF EXECUTIVE,DRAIN SCAN,280,CAPITAL PS (REGEN),CONSTR'N SUB CONTRACT - NON CERTIFICATED,5902431631,1908746
07.09.2020,CHIEF EXECUTIVE,DRAIN SCAN,280,CAPITAL PS (REGEN),CONSTR'N SUB CONTRACT - NON CERTIFICATED,5902431633,1908746
07.09.2020,CHIEF EXECUTIVE,HAYATSU ARCHITECTS LTD,"9,611.00",CAPITAL PS (REGEN),CONSTRUCTION FEES,5902431535,1000082843
07.09.2020,CHIEF EXECUTIVE,SPA EDUCATION TRUST,"1,574.10",CAPITAL PS (REGEN),FIT-OUT,5902431654,1000081600
07.09.2020,CHIEF EXECUTIVE,SPA EDUCATION TRUST,"1,790.50",CAPITAL PS (REGEN),FIT-OUT,5902431652,1000081600
07.09.2020,CHILDREN'S SERVICES,WALWORTH GARDEN FARM,300,ADULT SKILLS BUDGET,GRANTS,5902431505,1000042204
07.09.2020,CHILDREN'S SERVICES,WALWORTH GARDEN FARM,"2,940.00",ADULT SKILLS BUDGET,GRANTS,5902431505,1000042204
07.09.2020,CHILDREN'S SERVICES,THE PSHE ASSOCIATION,350,MENTAL HEALTH AND RESILIENCE,PROFESSIONAL FEES,5902431541,1000077387
07.09.2020,CHILDREN'S SERVICES,TRINITY CHILD CARE,"23,910.30",NURSERY ED GRANT 3 AND 4 YR OLDS,GRANTS,2103141182,1151305
07.09.2020,CHILDREN'S SERVICES,S R C COMMUNITY NURSERY,"45,167.85",NURSERY ED GRANT 3 AND 4 YR OLDS,GRANTS,2103141175,1414681
07.09.2020,CHILDREN'S SERVICES,PLAYSHACK PLAYGROUP,"13,814.58",NURSERY ED GRANT 3 AND 4 YR OLDS,GRANTS,2103141164,1608859
07.09.2020,CHILDREN'S SERVICES,DULWICH VILLAGE PRE-SCHOOL,"20,443.80",NURSERY ED GRANT 3 AND 4 YR OLDS,GRANTS,2103141116,11171932
07.09.2020,CHILDREN'S SERVICES,PUDDLEDUCK NURSERY,"22,038.90",NURSERY ED GRANT 3 AND 4 YR OLDS,GRANTS,2103141166,11210722
07.09.2020,CHILDREN'S SERVICES,PLAYDAYS UK LTD,"10,319.40",NURSERY ED GRANT 3 AND 4 YR OLDS,GRANTS,2103141171,11210767
07.09.2020,CHILDREN'S SERVICES,MUSTARD SEED PRE-SCHOOL,"21,408.84",NURSERY ED GRANT 3 AND 4 YR OLDS,GRANTS,2103141156,11210829
07.09.2020,CHILDREN'S SERVICES,THE BEECHES NURSERY GROUP LTD,"33,768.15",NURSERY ED GRANT 3 AND 4 YR OLDS,GRANTS,2103141124,11215743
07.09.2020,CHILDREN'S SERVICES,MOTHER GOOSE NURSERIES T/A MOTHER GOOSE NURSERIES (UPLAND ) LTD,"16,243.50",NURSERY ED GRANT 3 AND 4 YR OLDS,GRANTS,2103141155,11216072
07.09.2020,CHILDREN'S SERVICES,A MEEHAN T/A HALFMOON MONTESSORI NURSERY,"35,295.00",NURSERY ED GRANT 3 AND 4 YR OLDS,GRANTS,2103141134,11219161
07.09.2020,CHILDREN'S SERVICES,HERMAN WHYTE T/A LITTLE CLIMBERS DAYCARE PROJECT,"12,513.15",NURSERY ED GRANT 3 AND 4 YR OLDS,GRANTS,2103141143,11230367
07.09.2020,CHILDREN'S SERVICES,THE CHERRY TREE MONTESSORI NURSERY,"17,093.85",NURSERY ED GRANT 3 AND 4 YR OLDS,GRANTS,2103141111,11255353
07.09.2020,CHILDREN'S SERVICES,KINGS COLLEGE NHS FOUNDATION TRUST,"13,554.45",NURSERY ED GRANT 3 AND 4 YR OLDS,GRANTS,2103141137,11255665
07.09.2020,CHILDREN'S SERVICES,DYASON PRE-SCHOOL,"23,554.05",NURSERY ED GRANT 3 AND 4 YR OLDS,GRANTS,2103141117,11255736
07.09.2020,CHILDREN'S SERVICES,BRIGHT HORIZONS FAMILY SOLUTIONS,"57,589.35",NURSERY ED GRANT 3 AND 4 YR OLDS,GRANTS,2103141162,11294322
07.09.2020,CHILDREN'S SERVICES,CEDAR HOUSE DAY NURSERY,"16,851.90",NURSERY ED GRANT 3 AND 4 YR OLDS,GRANTS,2103141110,11298694
07.09.2020,CHILDREN'S SERVICES,ELEPHANT & CASTLE DAY NURSERY LTD,"56,499.30",NURSERY ED GRANT 3 AND 4 YR OLDS,GRANTS,2103141121,11329999
07.09.2020,CHILDREN'S SERVICES,MIATA EDUCATIONAL SERVICES LTD,"48,067.50",NURSERY ED GRANT 3 AND 4 YR OLDS,GRANTS,2103141119,1000003741
07.09.2020,CHILDREN'S SERVICES,THE VILLA SCHOOL & NURSERY LTD,"116,241.15",NURSERY ED GRANT 3 AND 4 YR OLDS,GRANTS,2103141181,1000003742
07.09.2020,CHILDREN'S SERVICES,HALFPINTS PRE-SCHOOL,"12,558.00",NURSERY ED GRANT 3 AND 4 YR OLDS,GRANTS,2103141133,1000012294
07.09.2020,CHILDREN'S SERVICES,ST JOHNS PRE SCHOOL,"40,020.15",NURSERY ED GRANT 3 AND 4 YR OLDS,GRANTS,2103141176,1000013380
07.09.2020,CHILDREN'S SERVICES,LITTLE ACORNS DAY NURSERY,"49,684.05",NURSERY ED GRANT 3 AND 4 YR OLDS,GRANTS,2103141140,1000015844
07.09.2020,CHILDREN'S SERVICES,CRYSTAL NURSERY (UK),"17,635.80",NURSERY ED GRANT 3 AND 4 YR OLDS,GRANTS,2103141131,1000016621
07.09.2020,CHILDREN'S SERVICES,MOTHER GOOSE NURSERIES T/A MOTHER GOOSE,"25,697.10",NURSERY ED GRANT 3 AND 4 YR OLDS,GRANTS,2103141154,1000017311
07.09.2020,CHILDREN'S SERVICES,ALLEYNS JUNIOR SCHOOL,"23,752.95",NURSERY ED GRANT 3 AND 4 YR OLDS,GRANTS,2103141095,1000020848
07.09.2020,CHILDREN'S SERVICES,DULWICH MONTESSORI NURSERY SCHOOL,"44,255.25",NURSERY ED GRANT 3 AND 4 YR OLDS,GRANTS,2103141114,1000020859
07.09.2020,CHILDREN'S SERVICES,MOTHER GOOSE NURSERIES - GREENDALE FIELDS LTD,"42,246.90",NURSERY ED GRANT 3 AND 4 YR OLDS,GRANTS,2103141153,1000025888
07.09.2020,CHILDREN'S SERVICES,BASCULE LTD,"15,506.40",NURSERY ED GRANT 3 AND 4 YR OLDS,GRANTS,2103141158,1000037268
07.09.2020,CHILDREN'S SERVICES,BASCULE LTD,"22,980.30",NURSERY ED GRANT 3 AND 4 YR OLDS,GRANTS,2103141159,1000037268
07.09.2020,CHILDREN'S SERVICES,LITTLE WINNERS DAY NURSERY 1,"32,038.50",NURSERY ED GRANT 3 AND 4 YR OLDS,GRANTS,2103141149,1000041814
07.09.2020,CHILDREN'S SERVICES,NEW VISION DAY NURSERY,"21,354.45",NURSERY ED GRANT 3 AND 4 YR OLDS,GRANTS,2103141160,1000041971
07.09.2020,CHILDREN'S SERVICES,FOUNTAIN CHILDRENS CENTRE LIMITED,"25,141.35",NURSERY ED GRANT 3 AND 4 YR OLDS,GRANTS,2103141125,1000042265
07.09.2020,CHILDREN'S SERVICES,MAGIC ROUNDABOUT NURSERIES LTD,"44,435.85",NURSERY ED GRANT 3 AND 4 YR OLDS,GRANTS,2103141150,1000045128
07.09.2020,CHILDREN'S SERVICES,NICKI DAY NURSERY LTD,"32,414.20",NURSERY ED GRANT 3 AND 4 YR OLDS,GRANTS,2103141161,1000045363
07.09.2020,CHILDREN'S SERVICES,ARC COMMUNITY TRUSTEES,"22,953.45",NURSERY ED GRANT 3 AND 4 YR OLDS,GRANTS,2103141097,1000046206
07.09.2020,CHILDREN'S SERVICES,THE BOSCO CENTRE,"12,526.80",NURSERY ED GRANT 3 AND 4 YR OLDS,GRANTS,2103141102,1000046317
07.09.2020,CHILDREN'S SERVICES,1ST PLACE CHILDREN & PARENTS CENTRE,"47,659.95",NURSERY ED GRANT 3 AND 4 YR OLDS,GRANTS,2103141093,1000049952
07.09.2020,CHILDREN'S SERVICES,1ST PLACE CHILDREN & PARENTS CENTRE,"48,586.20",NURSERY ED GRANT 3 AND 4 YR OLDS,GRANTS,2103141094,1000049952
07.09.2020,CHILDREN'S SERVICES,1ST PLACE CHILDREN & PARENTS CENTRE,"55,972.80",NURSERY ED GRANT 3 AND 4 YR OLDS,GRANTS,2103141092,1000049952
07.09.2020,CHILDREN'S SERVICES,CAMBERWELL AFTER SCHOOL PROJECT,"18,166.20",NURSERY ED GRANT 3 AND 4 YR OLDS,GRANTS,2103141109,1000051625
07.09.2020,CHILDREN'S SERVICES,BRIGHT HORIZONS FAMILY SOLUTIONS,"27,352.65",NURSERY ED GRANT 3 AND 4 YR OLDS,GRANTS,2103141104,1000052087
07.09.2020,CHILDREN'S SERVICES,JULIE THOMPSON,"25,257.70",NURSERY ED GRANT 3 AND 4 YR OLDS,GRANTS,2103141101,1000054116
07.09.2020,CHILDREN'S SERVICES,OLUYEMISI EKAGHA SHALOM - DESTINY DAY NURSERY,"21,239.40",NURSERY ED GRANT 3 AND 4 YR OLDS,GRANTS,2103141170,1000054464
07.09.2020,CHILDREN'S SERVICES,SMART START NURSERY,"112,836.75",NURSERY ED GRANT 3 AND 4 YR OLDS,GRANTS,2103141173,1000056317
07.09.2020,CHILDREN'S SERVICES,GERMAN KINDERGARTEN LTD,"8,792.55",NURSERY ED GRANT 3 AND 4 YR OLDS,GRANTS,2103141126,1000058090
07.09.2020,CHILDREN'S SERVICES,GERMAN KINDERGARTEN LTD,"11,602.50",NURSERY ED GRANT 3 AND 4 YR OLDS,GRANTS,2103141127,1000058090
07.09.2020,CHILDREN'S SERVICES,VICTORY IN COMMUNITY RESOURCE CENTRE,"51,665.25",NURSERY ED GRANT 3 AND 4 YR OLDS,GRANTS,2103141184,1000058383
07.09.2020,CHILDREN'S SERVICES,TINU ODEKU T/A LITTLE ANGELS CHILDCARE SERVICES,"18,735.60",NURSERY ED GRANT 3 AND 4 YR OLDS,GRANTS,2103141141,1000058464
07.09.2020,CHILDREN'S SERVICES,ARK SCHOOLS T/A GLOBE ACADEMY,"45,776.25",NURSERY ED GRANT 3 AND 4 YR OLDS,GRANTS,2103141128,1000060008
07.09.2020,CHILDREN'S SERVICES,SUCCESS ASSOCIATES,"44,484.70",NURSERY ED GRANT 3 AND 4 YR OLDS,GRANTS,2103141138,1000060300
07.09.2020,CHILDREN'S SERVICES,EXCEL CHILD CARE SERVICES LTD,"37,943.10",NURSERY ED GRANT 3 AND 4 YR OLDS,GRANTS,2103141123,1000060429
07.09.2020,CHILDREN'S SERVICES,MINI TREASURES NURSERY,"36,972.00",NURSERY ED GRANT 3 AND 4 YR OLDS,GRANTS,2103141152,1000062250
07.09.2020,CHILDREN'S SERVICES,CTY NURSERY LTD,"27,563.25",NURSERY ED GRANT 3 AND 4 YR OLDS,GRANTS,2103141113,1000063131
07.09.2020,CHILDREN'S SERVICES,K & O CHILDCARE LTD,"43,017.00",NURSERY ED GRANT 3 AND 4 YR OLDS,GRANTS,2103141136,1000065113
07.09.2020,CHILDREN'S SERVICES,SURE AND FIRM FOUNDATIONS,"10,442.25",NURSERY ED GRANT 3 AND 4 YR OLDS,GRANTS,2103141157,1000066223
07.09.2020,CHILDREN'S SERVICES,LITTLE JUNGLE NURSERY LIMITED,"44,393.70",NURSERY ED GRANT 3 AND 4 YR OLDS,GRANTS,2103141145,1000067064
07.09.2020,CHILDREN'S SERVICES,REDRIFF PRIMARY SCHOOL,"93,964.65",NURSERY ED GRANT 3 AND 4 YR OLDS,GRANTS,2103141167,1000067877
07.09.2020,CHILDREN'S SERVICES,SANDRA LITCHMORE,"28,683.60",NURSERY ED GRANT 3 AND 4 YR OLDS,GRANTS,2103141122,1000067981
07.09.2020,CHILDREN'S SERVICES,HARRIS PRIMARY ACADEMY PECKHAM PARK,"35,595.30",NURSERY ED GRANT 3 AND 4 YR OLDS,GRANTS,2103141135,1000068029
07.09.2020,CHILDREN'S SERVICES,GOOSE GREEN PRIMARY AND NURSERY SCHOOL,"29,834.15",NURSERY ED GRANT 3 AND 4 YR OLDS,GRANTS,2103141130,1000070613
07.09.2020,CHILDREN'S SERVICES,PIPLINGS NURSERY ED,"15,264.60",NURSERY ED GRANT 3 AND 4 YR OLDS,GRANTS,2103141163,1000070644
07.09.2020,CHILDREN'S SERVICES,DULWICH OAKS MONTESSORI NURSERY SCHOOL,"92,145.95",NURSERY ED GRANT 3 AND 4 YR OLDS,GRANTS,2103141115,1000070726
07.09.2020,CHILDREN'S SERVICES,UNDER THE WILLOW NURSERY,"24,852.75",NURSERY ED GRANT 3 AND 4 YR OLDS,GRANTS,2103141183,1000071830
07.09.2020,CHILDREN'S SERVICES,MINI TREASURES NURSERY LTD,"31,494.45",NURSERY ED GRANT 3 AND 4 YR OLDS,GRANTS,2103141151,1000071834
07.09.2020,CHILDREN'S SERVICES,THE FRUIT TREE DAY NURSERY,"56,631.30",NURSERY ED GRANT 3 AND 4 YR OLDS,GRANTS,2103141180,1000072492
07.09.2020,CHILDREN'S SERVICES,GODS GRACE DAYCARE,"1,462.50",NURSERY ED GRANT 3 AND 4 YR OLDS,GRANTS,2103141129,1000072790
07.09.2020,CHILDREN'S SERVICES,JOHN DONNE PRIMARY SCHOOL,"66,315.60",NURSERY ED GRANT 3 AND 4 YR OLDS,GRANTS,2103141185,1000073253
07.09.2020,CHILDREN'S SERVICES,LITTLE FINGERS MONTESSORI 2,"21,067.80",NURSERY ED GRANT 3 AND 4 YR OLDS,GRANTS,2103141144,1000073415
07.09.2020,CHILDREN'S SERVICES,LOGICOUS LTD,"21,995.55",NURSERY ED GRANT 3 AND 4 YR OLDS,GRANTS,2103141098,1000073852
07.09.2020,CHILDREN'S SERVICES,BRIGHT EXPLORERS DAY NURSERY,"30,203.55",NURSERY ED GRANT 3 AND 4 YR OLDS,GRANTS,2103141103,1000074268
07.09.2020,CHILDREN'S SERVICES,SMART KIDS DAY NURSERY,"26,892.00",NURSERY ED GRANT 3 AND 4 YR OLDS,GRANTS,2103141172,1000074580
07.09.2020,CHILDREN'S SERVICES,JOY ALLI,"17,887.35",NURSERY ED GRANT 3 AND 4 YR OLDS,GRANTS,2103141169,1000074965
07.09.2020,CHILDREN'S SERVICES,FIRST CHOICE DAY NURSERY,"26,716.95",NURSERY ED GRANT 3 AND 4 YR OLDS,GRANTS,2103141091,1000075368
07.09.2020,CHILDREN'S SERVICES,ANGEL OAK ACADEMY,"19,663.80",NURSERY ED GRANT 3 AND 4 YR OLDS,GRANTS,2103141096,1000075379
07.09.2020,CHILDREN'S SERVICES,HEAVENLY ANGELS LTD T/A BANANA MOON DAY NURSERY,"25,213.50",NURSERY ED GRANT 3 AND 4 YR OLDS,GRANTS,2103141099,1000076197
07.09.2020,CHILDREN'S SERVICES,EAST DULWICH GROVE NURSERY LTD,"31,481.40",NURSERY ED GRANT 3 AND 4 YR OLDS,GRANTS,2103141120,1000077140
07.09.2020,CHILDREN'S SERVICES,LONDON EARLY YEARS FOUNDATION,"21,740.55",NURSERY ED GRANT 3 AND 4 YR OLDS,GRANTS,2103141108,1000077919
07.09.2020,CHILDREN'S SERVICES,LONDON EARLY YEARS FOUNDATION,"27,124.50",NURSERY ED GRANT 3 AND 4 YR OLDS,GRANTS,2103141100,1000077919
07.09.2020,CHILDREN'S SERVICES,LONDON EARLY YEARS FOUNDATION,"27,545.05",NURSERY ED GRANT 3 AND 4 YR OLDS,GRANTS,2103141174,1000077919
07.09.2020,CHILDREN'S SERVICES,LONDON EARLY YEARS FOUNDATION,"54,145.00",NURSERY ED GRANT 3 AND 4 YR OLDS,GRANTS,2103141132,1000077919
07.09.2020,CHILDREN'S SERVICES,LONDON EARLY YEARS FOUNDATION,"55,873.35",NURSERY ED GRANT 3 AND 4 YR OLDS,GRANTS,2103141106,1000077919
07.09.2020,CHILDREN'S SERVICES,LILIES DAY NURSERY,"105,793.35",NURSERY ED GRANT 3 AND 4 YR OLDS,GRANTS,2103141139,1000078155
07.09.2020,CHILDREN'S SERVICES,EAGLES FLIGHT MONTESSORI NURSERY,"4,939.35",NURSERY ED GRANT 3 AND 4 YR OLDS,GRANTS,2103141118,1000079087
07.09.2020,CHILDREN'S SERVICES,LITTLEPIPS PRESCHOOL,"19,197.00",NURSERY ED GRANT 3 AND 4 YR OLDS,GRANTS,2103141147,1000079580
07.09.2020,CHILDREN'S SERVICES,POPPYS DAY NURSERY,"26,170.95",NURSERY ED GRANT 3 AND 4 YR OLDS,GRANTS,2103141165,1000080085
07.09.2020,CHILDREN'S SERVICES,BRIGHT SOJOURNER NURSERY LTD,"24,839.10",NURSERY ED GRANT 3 AND 4 YR OLDS,GRANTS,2103141105,1000080155
07.09.2020,CHILDREN'S SERVICES,BUTTERFLY LANE NURSERY LTD,"8,121.75",NURSERY ED GRANT 3 AND 4 YR OLDS,GRANTS,2103141107,1000080549
07.09.2020,CHILDREN'S SERVICES,SUNSHINE FRUITS NURSERY LTD,"19,831.50",NURSERY ED GRANT 3 AND 4 YR OLDS,GRANTS,2103141178,1000081059
07.09.2020,CHILDREN'S SERVICES,LITTLE RAINBOWS DAYCARE LTD,"9,691.50",NURSERY ED GRANT 3 AND 4 YR OLDS,GRANTS,2103141148,1000081433
07.09.2020,CHILDREN'S SERVICES,ST PAULS C OF E PRIMARY SCHOOL,"15,018.90",NURSERY ED GRANT 3 AND 4 YR OLDS,GRANTS,2103141177,1000082314
07.09.2020,CHILDREN'S SERVICES,LITTLE BEARS 4 LMITED T/A LITTLE BEARS IN ELEPHANT CENTRE,"14,429.70",NURSERY ED GRANT 3 AND 4 YR OLDS,GRANTS,2103141142,1000082505
07.09.2020,CHILDREN'S SERVICES,SURREY SQUARE PRIMARY SCHOOL,"73,047.00",NURSERY ED GRANT 3 AND 4 YR OLDS,GRANTS,2103141179,1000082648
07.09.2020,CHILDREN'S SERVICES,LITTLE ME CANADA WATER LTD,"6,804.75",NURSERY ED GRANT 3 AND 4 YR OLDS,GRANTS,2103141146,1000083348
07.09.2020,CHILDREN'S SERVICES,COLOURBOX CHILDCARE NURSERY LTD,"10,929.75",NURSERY ED GRANT 3 AND 4 YR OLDS,GRANTS,2103141112,1000085180
07.09.2020,CHILDREN'S SERVICES,HM PRISON & PROBATION SERVICE,"-15,360.00",REMAND - YDA STC & SCH,RESIDENTIAL CARE,5902431522,1000083827
07.09.2020,CHILDREN'S SERVICES,HM PRISON & PROBATION SERVICE,"14,043.00",REMAND - YDA STC & SCH,RESIDENTIAL CARE,5902431492,1000083827
07.09.2020,CHILDREN'S SERVICES,HM PRISON & PROBATION SERVICE,"14,043.00",REMAND - YDA STC & SCH,RESIDENTIAL CARE,5902431493,1000083827
07.09.2020,CHILDREN'S SERVICES,HM PRISON & PROBATION SERVICE,"14,043.00",REMAND - YDA STC & SCH,RESIDENTIAL CARE,5902431498,1000083827
07.09.2020,CHILDREN'S SERVICES,HM PRISON & PROBATION SERVICE,"14,043.00",REMAND - YDA STC & SCH,RESIDENTIAL CARE,5902431499,1000083827
07.09.2020,CHILDREN'S SERVICES,HM PRISON & PROBATION SERVICE,"23,622.00",REMAND - YDA STC & SCH,RESIDENTIAL CARE,5902431494,1000083827
07.09.2020,CHILDREN'S SERVICES,HM PRISON & PROBATION SERVICE,"23,622.00",REMAND - YDA STC & SCH,RESIDENTIAL CARE,5902431495,1000083827
07.09.2020,CHILDREN'S SERVICES,HM PRISON & PROBATION SERVICE,"2,247.00",REMAND - YDA YOI,RESIDENTIAL CARE,5902431491,1000083827
07.09.2020,CHILDREN'S SERVICES,HM PRISON & PROBATION SERVICE,"4,494.00",REMAND - YDA YOI,RESIDENTIAL CARE,5902431490,1000083827
07.09.2020,CHILDREN'S SERVICES,HM PRISON & PROBATION SERVICE,"9,951.00",REMAND - YDA YOI,RESIDENTIAL CARE,5902431489,1000083827
07.09.2020,CHILDREN'S SERVICES,HM PRISON & PROBATION SERVICE,"9,951.00",REMAND - YDA YOI,RESIDENTIAL CARE,5902431496,1000083827
07.09.2020,CHILDREN'S SERVICES,HM PRISON & PROBATION SERVICE,"9,951.00",REMAND - YDA YOI,RESIDENTIAL CARE,5902431497,1000083827
07.09.2020,CHILDREN'S SERVICES,BDO LLP,"2,383.00",SCHOOLS AUDIT,PAYMENTS FOR FINANCIAL SERVICES,5902431442,1000057898
07.09.2020,CHILDREN'S SERVICES,E4 LAW LTD,794,TEAM C,OTHER PAYMENTS FOR CLIENTS,5902431485,1000072222
07.09.2020,CHILDREN'S SERVICES,E4 LAW LTD,"1,076.00",TEAM C,OTHER PAYMENTS FOR CLIENTS,5902431486,1000072222
07.09.2020,CHILDREN'S SERVICES,KENT COUNTY SUPPLIES,"3,125.30",THOMAS CALTON CENTRE,GAS,5902431637,1000000291
07.09.2020,COMMUNITIES,THAMES HOMECARE SERVICE LTD,286.18,NO RECOURSE TO PUBLIC FUNDS,HOMECARE - C&V,2103141233,1000079295
07.09.2020,CUSTOMER EXPERIENCE,KENT COUNTY COUNCIL - LASER,476.26,MSHO,ELECTRICITY,5902431533,1000012926
07.09.2020,CUSTOMER EXPERIENCE HGF,ALLIED PUBLICITY SERVICES LTD,"1,194.36",BLUE BADGES,MATERIALS,5902431399,1000082115
07.09.2020,CUSTOMER EXPERIENCE HGF,SG PATH LTD,415.8,CORONER'S,PROFESSIONAL FEES,5902431545,1000077883
07.09.2020,CUSTOMER EXPERIENCE HGF,SG PATH LTD,415.8,CORONER'S,PROFESSIONAL FEES,5902431546,1000077883
07.09.2020,CUSTOMER EXPERIENCE HGF,SG PATH LTD,595.9,CORONER'S,PROFESSIONAL FEES,5902431540,1000077883
07.09.2020,CUSTOMER EXPERIENCE HGF,SG PATH LTD,595.9,CORONER'S,PROFESSIONAL FEES,5902431542,1000077883
07.09.2020,CUSTOMER EXPERIENCE HGF,REST UP,"8,400.00",COVID-19 SUPPORT,EXTERNAL AGENCIES AND BODIES,5902431525,1000084299
07.09.2020,CUSTOMER EXPERIENCE HGF,REST UP,"8,400.00",COVID-19 SUPPORT,EXTERNAL AGENCIES AND BODIES,5902431647,1000084299
07.09.2020,CUSTOMER EXPERIENCE HGF,REST UP,"39,900.00",COVID-19 SUPPORT,EXTERNAL AGENCIES AND BODIES,5902431524,1000084299
07.09.2020,CUSTOMER EXPERIENCE HGF,REST UP,"39,900.00",COVID-19 SUPPORT,EXTERNAL AGENCIES AND BODIES,5902431648,1000084299
07.09.2020,CUSTOMER EXPERIENCE HGF,SAMUEL / SIMONETTE SESAY,"1,300.00",HOMELESS PROJECTS,GRANTS,5902431602,1000085413
07.09.2020,CUSTOMER EXPERIENCE HGF,REDACTED PERSONAL DATA,"4,000.00",HOMELESS PROJECTS,GRANTS,REDACTED,REDACTED
07.09.2020,CUSTOMER EXPERIENCE HGF,REDACTED PERSONAL DATA,"4,000.00",HOMELESS PROJECTS,GRANTS,REDACTED,REDACTED
07.09.2020,CUSTOMER EXPERIENCE HGF,REDACTED PERSONAL DATA,"1,000.00",HOUSING OPTIONS,EXTERNAL AGENCIES AND BODIES,REDACTED,REDACTED
07.09.2020,CUSTOMER EXPERIENCE HGF,RUTH APPLEBY ALIS,525,HOUSING OPTIONS,PROFESSIONAL FEES,5902431565,1000084741
07.09.2020,CUSTOMER EXPERIENCE HGF,STONEWALL HOUSING ASSOCIATION,"17,000.00",HOUSING OPTIONS,PROFESSIONAL FEES,5902431537,1000085373
07.09.2020,CUSTOMER EXPERIENCE HGF,DOCUSIGN INC,"1,480.83",HOUSING OPTIONS,TRAINING,5902431510,1000084687
07.09.2020,CUSTOMER EXPERIENCE HGF,SITTARA LTD,"47,817.80",NIGHTLY TA (NSC),EXTERNAL AGENCIES AND BODIES,5902431531,1000080857
07.09.2020,CUSTOMER EXPERIENCE HGF,CENTENNIAL PROPERTY LIMITED,"1,705.00",NIGHTLY TA (NSC),EXTERNAL AGENCIES AND BODIES,5902431629,1000083022
07.09.2020,CUSTOMER EXPERIENCE HGF,WILLOW ESTATE AGENTS (LONDON) LTD,"2,040.42",PSL PLACEMENTS,EXTERNAL AGENCIES AND BODIES,5902431626,1000060607
07.09.2020,CUSTOMER EXPERIENCE HGF,SMARTSPACE PROPERTY SOLUTIONS LTD,"2,819.72",PSL PLACEMENTS,EXTERNAL AGENCIES AND BODIES,5902431581,1000082769
07.09.2020,CUSTOMER EXPERIENCE HGF,LTA DIRECT LTD,"7,726.02",PSL PLACEMENTS,EXTERNAL AGENCIES AND BODIES,5902431523,1000085314
07.09.2020,CUSTOMER EXPERIENCE HGF,LTA DIRECT LTD,"8,305.33",PSL PLACEMENTS,EXTERNAL AGENCIES AND BODIES,5902431530,1000085314
07.09.2020,CUSTOMER EXPERIENCE HGF,LTA DIRECT LTD,"2,000.00",PSL PLACEMENTS,GRANTS,5902431528,1000085314
07.09.2020,CUSTOMER EXPERIENCE HGF,INCONTRO LTD,"6,045.00",RAPID REHOUSING,CATERING MATERIALS & SUPPLIES,5902431518,1000084295
07.09.2020,CUSTOMER EXPERIENCE HGF,CYBERSTYLE LETTINGS LTD,"1,080.00",RAPID REHOUSING,EXTERNAL AGENCIES AND BODIES,5902431618,1000079319
07.09.2020,CUSTOMER EXPERIENCE HGF,CYBERSTYLE LETTINGS LTD,"1,116.00",RAPID REHOUSING,EXTERNAL AGENCIES AND BODIES,5902431613,1000079319
07.09.2020,CUSTOMER EXPERIENCE HGF,CYBERSTYLE LETTINGS LTD,"1,116.00",RAPID REHOUSING,EXTERNAL AGENCIES AND BODIES,5902431615,1000079319
07.09.2020,DEPT DORMANT AND DEAD CODES,CASTLE WATER LTD,473.38,PLAY CENTRAL,WATER,5902431594,1000078867
07.09.2020,ENVIRONMENT AND LEISURE,INSPIRE AT ST PETER'S LTD,"8,750.00",CAPITAL PS (LEISURE),CAPITAL GRANTS,5902431511,1000041565
07.09.2020,ENVIRONMENT AND LEISURE,SHAD THAMES RESIDENTS ASSOCIATION,"7,900.00",CAPITAL PS (LEISURE),CAPITAL GRANTS,5902431627,1000084358
07.09.2020,ENVIRONMENT AND LEISURE,ADAM THOMAS LANDSCAPE DESIGN LTD,"3,920.00",CAPITAL PS (LEISURE),CONST'N MAIN CONTRACT - NON CERTIFICATED,5902431504,1000080845
07.09.2020,ENVIRONMENT AND LEISURE,STANDAGE & CO LTD,"41,585.34",CAPITAL PS (LEISURE),CONSTRUCTION FEES  - EXTERNAL,2103141089,4002817
07.09.2020,ENVIRONMENT AND LEISURE,STREET TREE CARE LTD,"4,100.00",CAPITAL PS (LEISURE),CONSTRUCTION FEES  - EXTERNAL,5902431386,1000055901
07.09.2020,ENVIRONMENT DIRECTORATE,SOUTHWARK NEWSPAPER LTD,312,HIGHWAYS DEVELOPMENT,MARKETING & PUBLICITY SERVICES,5902430973,1556957
07.09.2020,ENVIRONMENT DIRECTORATE,SOUTHWARK NEWSPAPER LTD,564,HIGHWAYS DEVELOPMENT,MARKETING & PUBLICITY SERVICES,5902430972,1556957
07.09.2020,ENVIRONMENT DIRECTORATE,CHARTERED INST. OF ENVIRONMENTAL HEALTH,515,LICENSING,STATIONERY,5902431643,1605413
07.09.2020,ENVIRONMENT DIRECTORATE,ALPHA PARKING LTD,"3,500.00",PARKING MANAGEMENT OVERHEAD,PROFESSIONAL FEES,5902431582,1000063598
07.09.2020,ENVIRONMENT DIRECTORATE,APCOA PARKING (UK) LTD,"245,606.23",PARKING OVERHEADS,OTHER CONTRACTORS,5902431503,1718645
07.09.2020,ENVIRONMENT DIRECTORATE,BARRETTINE ENVIRONMENTAL HEALTH,491.18,PEST CONTROL,MATERIALS,5902431507,1000050556
07.09.2020,ENVIRONMENT DIRECTORATE,BARRETTINE ENVIRONMENTAL HEALTH,802.32,PEST CONTROL,MATERIALS,5902431508,1000050556
07.09.2020,ENVIRONMENT DIRECTORATE,FARTHEST GATE LTD,"6,250.00",STREET WORKS OVERHEADS,SOFTWARE,5902431548,1000084310
07.09.2020,ENVIRONMENT DIRECTORATE,FARTHEST GATE LTD,"6,250.00",STREET WORKS OVERHEADS,SOFTWARE,5902431553,1000084310
07.09.2020,ENVIRONMENT DIRECTORATE,FARTHEST GATE LTD,"15,000.00",STREET WORKS OVERHEADS,SOFTWARE,5902431551,1000084310
07.09.2020,EXCHEQUER SERVICES,NORTHGATE PUBLIC SERVICES (UK) LTD,289.54,ADMINISTRATIVE SUPPORT,POSTAGES,5902431516,1000037405
07.09.2020,EXCHEQUER SERVICES,NORTHGATE PUBLIC SERVICES (UK) LTD,"9,000.00",ADMINISTRATIVE SUPPORT,SOFTWARE,5902431514,1000037405
07.09.2020,EXCHEQUER SERVICES,LINDLEY ESTATE T&RA,"5,000.00",SESS,OTHER PAYMENTS FOR CLIENTS,2103141317,1000076661
07.09.2020,FINANCE DIRECTOR,BDO LLP,431,INTERNAL AUDIT CONTRACTS,PAYMENTS FOR FINANCIAL SERVICES,5902431442,1000057898
07.09.2020,FINANCE DIRECTOR,BDO LLP,"19,191.00",INTERNAL AUDIT CONTRACTS,PAYMENTS FOR FINANCIAL SERVICES,5902431442,1000057898
07.09.2020,FINANCIAL AND INFORMATION GOVERNANCE,BDO LLP,"2,083.33",RISK ADMIN,PROFESSIONAL FEES,5902430962,1000057898
07.09.2020,HOUSING,DUCTCLEAN (UK) LTD,"8,550.49",DUCTCLEAN,I-WORLD CONTRACTORS HOLDING ACCOUNT,2103141084,3000001635
07.09.2020,HOUSING,SILK & MACKMAN SERVICES LTD,"54,988.66",ENG CONTRACTS (NORTH),I-WORLD CONTRACTORS HOLDING ACCOUNT,5902431567,1000035282
07.09.2020,HOUSING GENERAL FUND,UNIFIED CONSULTANCY LTD,"2,811.80",CAPITAL PS (HOUSING GF),ICT ACQUISITION,5902431520,1000081827
07.09.2020,HOUSING GENERAL FUND,UNIFIED CONSULTANCY LTD,"9,022.95",CAPITAL PS (HOUSING GF),ICT ACQUISITION,5902431521,1000081827
07.09.2020,HOUSING GENERAL FUND,UNIFIED CONSULTANCY LTD,"15,433.82",CAPITAL PS (HOUSING GF),ICT ACQUISITION,5902431519,1000081827
07.09.2020,HOUSING HRA,PARS LTD,"2,273.00",CAPITAL PS (HRA),CONST'N MAIN CONTRACT - NON CERTIFICATED,2103141085,3000001275
07.09.2020,HOUSING HRA,A J MOODY T/A AJM,700,CAPITAL PS (HRA),CONST'N MAIN CONTRACT - NON CERTIFICATED,2103141087,3000002026
07.09.2020,HOUSING HRA,CALFORD SEADEN LLP,"1,470.00",CAPITAL PS (HRA),CONSTRUCTION FEES  - EXTERNAL,5902431029,1061592
07.09.2020,HOUSING HRA,CALFORD SEADEN LLP,"8,680.47",CAPITAL PS (HRA),CONSTRUCTION FEES  - EXTERNAL,5902431440,1061592
07.09.2020,HOUSING HRA,CALFORD SEADEN LLP,"1,470.00",CAPITAL PS (HRA),CONSTRUCTION FEES - EMPLOYERS AGENT,5902431249,1061592
07.09.2020,HOUSING HRA,PURELAKE NEW HOMES LTD,"678,077.23",CAPITAL PS (REGEN),CONSTRUCTION FEES,2103141090,3000002110
07.09.2020,HUMAN RESOURCES,WORKING ON WELLBEING LTD,920,HR PAYROLL COSTS,CONSULTANTS SERVICES,5902431592,1000077251
07.09.2020,HUMAN RESOURCES,WORKING ON WELLBEING LTD,"1,380.00",HR PAYROLL COSTS,CONSULTANTS SERVICES,5902431596,1000077251
07.09.2020,HUMAN RESOURCES,WORKING ON WELLBEING LTD,"2,760.00",HR PAYROLL COSTS,CONSULTANTS SERVICES,5902431612,1000077251
07.09.2020,HUMAN RESOURCES,WORKING ON WELLBEING LTD,"3,690.00",OPTIMA HEALTH,MEDICAL / HEALTH & SAFETY SERVICES,5902431587,1000077251
07.09.2020,LAW & DEMOCRACY,LEXISNEXIS UK,"2,850.00",LEGAL SVCES MANAGEMENT,PROFESSIONAL FEES,5902431502,11328752
07.09.2020,LEISURE DIRECTORATE,CASTLE WATER LTD,370.63,BURGESS AREA TEAM,WATER,5902431598,1000078867
07.09.2020,LEISURE DIRECTORATE,CASTLE WATER LTD,399.66,BURGESS AREA TEAM,WATER,5902431664,1000078867
07.09.2020,LEISURE DIRECTORATE,CASTLE WATER LTD,414.44,BURGESS AREA TEAM,WATER,5902431605,1000078867
07.09.2020,LEISURE DIRECTORATE,CASTLE WATER LTD,608.04,BURGESS AREA TEAM,WATER,5902431665,1000078867
07.09.2020,LEISURE DIRECTORATE,CASTLE WATER LTD,733.92,BURGESS AREA TEAM,WATER,5902431599,1000078867
07.09.2020,LEISURE DIRECTORATE,CASTLE WATER LTD,"2,531.41",BURGESS AREA TEAM,WATER,5902431604,1000078867
07.09.2020,LEISURE DIRECTORATE,CARL TURNER ARCHITECTS LTD,"7,350.00",PARKS SERVICES DEVELOPMENT,PROFESSIONAL FEES,5902431275,1000060355
07.09.2020,LEISURE DIRECTORATE,ARCHITECT DESIGNER MAKER,"1,500.00",SDM BUDGET,EQUIPMENT PURCHASE & REPAIR,5902431515,1000080234
07.09.2020,LEISURE DIRECTORATE,NPOWER LTD,-363.64,SOUTHWARK AREA TEAM,ELECTRICITY,5902431564,1000078994
07.09.2020,LEISURE DIRECTORATE,NPOWER LTD,-286.97,SOUTHWARK AREA TEAM,ELECTRICITY,5902431560,1000078994
07.09.2020,LEISURE DIRECTORATE,NPOWER LTD,-268.65,SOUTHWARK AREA TEAM,ELECTRICITY,5902431552,1000078994
07.09.2020,LEISURE DIRECTORATE,NPOWER LTD,"1,359.79",SOUTHWARK AREA TEAM,ELECTRICITY,5902431566,1000078994
07.09.2020,LEISURE DIRECTORATE,JCS ONLINE RESOURCES LTD,"1,994.32",STOCK SERVICES,SUBSCRIPTIONS,5902431619,1000085354
07.09.2020,MODERNISATION HGF,ANTALIS LTD,"1,255.75",QUEENS RD 1 (BLOCK F),STATIONERY,5902431603,1000066919
07.09.2020,NEW BUILD,BEACON PARTNERSHIP LLP,"6,396.25",DEVELOPMENT DELIVERY,PROFESSIONAL FEES,5902431580,1000082300
07.09.2020,RESIDENT SERVICES,BRITISH GAS TRADING LTD,886.55,OPERATIONS/OFFICES ACCOMMODATION,ELECTRICITY,5902431576,1000055977
07.09.2020,RESIDENT SERVICES,CHARTWELLS,"4,931.00",SUPPORTED HOSTELS,CATERING MATERIALS & SUPPLIES,5902431630,1000010625
07.09.2020,RESIDENT SERVICES,EURO HOTELS (THORNTON HEATH) LTD,560,TA PLACEMENTS,EXTERNAL AGENCIES AND BODIES,5902431672,1000057571
07.09.2020,RESIDENT SERVICES,EURO HOTELS (THORNTON HEATH) LTD,"1,600.00",TA PLACEMENTS,EXTERNAL AGENCIES AND BODIES,5902431670,1000057571
07.09.2020,RESIDENT SERVICES,RS REAL ESTATE LTD,"2,170.00",TA PLACEMENTS,EXTERNAL AGENCIES AND BODIES,5902431622,1000072485
07.09.2020,RESIDENT SERVICES,PROPERTYPLACEBOOK LTD,"3,335.00",TA PLACEMENTS,EXTERNAL AGENCIES AND BODIES,5902431585,1000077817
07.09.2020,RESIDENT SERVICES,APEX HOUSING SOLUTIONS LTD,"1,891.00",TA PLACEMENTS,EXTERNAL AGENCIES AND BODIES,5902431649,1000079786
07.09.2020,SBS SUPPORT,NPOWER LTD,812.57,R & M OVERHEADS,ELECTRICITY,5902431529,1000078994
07.09.2020,SBS SUPPORT,NPOWER LTD,"1,462.81",R & M OVERHEADS,ELECTRICITY,5902431529,1000078994
08.09.2020,ADULT SOCIAL CARE,HUNTERSJOY LTD,"1,300.00",ASW - PROFESSIONAL DEVELOPMENT,TRAINING,5902431781,1000077343
08.09.2020,ADULT SOCIAL CARE,SIDLOFF ASSOCIATES LTD,500,SAFEGUARDING & DOLS,EXTERNAL AGENCIES AND BODIES,5902431827,1000081744
08.09.2020,ASSET MANAGEMENT,STANNAH LIFT SERVICES LTD,"2,698.00",ADAPTATIONS,BUILDING R&M,5902431784,1063595
08.09.2020,ASSET MANAGEMENT,BELSHAW & CURTIN SOLICITORS,"5,000.00",DISREPAIR,PAYMENTS FOR LEGAL SERVICES,2103141324,1767379
08.09.2020,ASSET MANAGEMENT,ANTONY HODARI  SOLICITORS,"3,500.00",DISREPAIR,PAYMENTS FOR LEGAL SERVICES,2103141325,1000031040
08.09.2020,ASSET MANAGEMENT,ASHFORDS LLP,"6,000.00",DISREPAIR,PAYMENTS FOR LEGAL SERVICES,2103141327,1000055865
08.09.2020,ASSET MANAGEMENT,MATRIX SOLICITORS,"3,900.00",DISREPAIR,PAYMENTS FOR LEGAL SERVICES,2103141326,1000082248
08.09.2020,ASSET MANAGEMENT,ASHFORDS LLP OFFICE ACCOUNT,425,DISREPAIR,PAYMENTS FOR LEGAL SERVICES,5902431756,1000082695
08.09.2020,ASSET MANAGEMENT,ASHFORDS LLP OFFICE ACCOUNT,425,DISREPAIR,PAYMENTS FOR LEGAL SERVICES,5902431758,1000082695
08.09.2020,ASSET MANAGEMENT,ASHFORDS LLP OFFICE ACCOUNT,425,DISREPAIR,PAYMENTS FOR LEGAL SERVICES,5902431762,1000082695
08.09.2020,ASSET MANAGEMENT,ASHFORDS LLP OFFICE ACCOUNT,425,DISREPAIR,PAYMENTS FOR LEGAL SERVICES,5902431766,1000082695
08.09.2020,ASSET MANAGEMENT,ASHFORDS LLP OFFICE ACCOUNT,425,DISREPAIR,PAYMENTS FOR LEGAL SERVICES,5902431771,1000082695
08.09.2020,ASSET MANAGEMENT,ASHFORDS LLP OFFICE ACCOUNT,425,DISREPAIR,PAYMENTS FOR LEGAL SERVICES,5902431780,1000082695
08.09.2020,ASSET MANAGEMENT,ASHFORDS LLP OFFICE ACCOUNT,425,DISREPAIR,PAYMENTS FOR LEGAL SERVICES,5902431785,1000082695
08.09.2020,ASSET MANAGEMENT,ASHFORDS LLP OFFICE ACCOUNT,425,DISREPAIR,PAYMENTS FOR LEGAL SERVICES,5902431787,1000082695
08.09.2020,ASSET MANAGEMENT,ASHFORDS LLP OFFICE ACCOUNT,425,DISREPAIR,PAYMENTS FOR LEGAL SERVICES,5902431788,1000082695
08.09.2020,ASSET MANAGEMENT,ASHFORDS LLP OFFICE ACCOUNT,425,DISREPAIR,PAYMENTS FOR LEGAL SERVICES,5902431789,1000082695
08.09.2020,ASSET MANAGEMENT,ASHFORDS LLP OFFICE ACCOUNT,425,DISREPAIR,PAYMENTS FOR LEGAL SERVICES,5902431790,1000082695
08.09.2020,ASSET MANAGEMENT,ASHFORDS LLP OFFICE ACCOUNT,425,DISREPAIR,PAYMENTS FOR LEGAL SERVICES,5902431792,1000082695
08.09.2020,ASSET MANAGEMENT,ASHFORDS LLP OFFICE ACCOUNT,425,DISREPAIR,PAYMENTS FOR LEGAL SERVICES,5902431794,1000082695
08.09.2020,ASSET MANAGEMENT,ASHFORDS LLP OFFICE ACCOUNT,425,DISREPAIR,PAYMENTS FOR LEGAL SERVICES,5902431795,1000082695
08.09.2020,ASSET MANAGEMENT,ASHFORDS LLP OFFICE ACCOUNT,425,DISREPAIR,PAYMENTS FOR LEGAL SERVICES,5902431796,1000082695
08.09.2020,ASSET MANAGEMENT,ASHFORDS LLP OFFICE ACCOUNT,425,DISREPAIR,PAYMENTS FOR LEGAL SERVICES,5902431797,1000082695
08.09.2020,ASSET MANAGEMENT,ASHFORDS LLP OFFICE ACCOUNT,425,DISREPAIR,PAYMENTS FOR LEGAL SERVICES,5902431798,1000082695
08.09.2020,ASSET MANAGEMENT,ASHFORDS LLP OFFICE ACCOUNT,425,DISREPAIR,PAYMENTS FOR LEGAL SERVICES,5902431801,1000082695
08.09.2020,ASSET MANAGEMENT,ASHFORDS LLP OFFICE ACCOUNT,425,DISREPAIR,PAYMENTS FOR LEGAL SERVICES,5902431802,1000082695
08.09.2020,ASSET MANAGEMENT,ASHFORDS LLP OFFICE ACCOUNT,425,DISREPAIR,PAYMENTS FOR LEGAL SERVICES,5902431803,1000082695
08.09.2020,ASSET MANAGEMENT,ASHFORDS LLP OFFICE ACCOUNT,425,DISREPAIR,PAYMENTS FOR LEGAL SERVICES,5902431804,1000082695
08.09.2020,ASSET MANAGEMENT,ASHFORDS LLP OFFICE ACCOUNT,425,DISREPAIR,PAYMENTS FOR LEGAL SERVICES,5902431805,1000082695
08.09.2020,ASSET MANAGEMENT,ASHFORDS LLP OFFICE ACCOUNT,425,DISREPAIR,PAYMENTS FOR LEGAL SERVICES,5902431806,1000082695
08.09.2020,ASSET MANAGEMENT,ASHFORDS LLP OFFICE ACCOUNT,425,DISREPAIR,PAYMENTS FOR LEGAL SERVICES,5902431808,1000082695
08.09.2020,ASSET MANAGEMENT,ASHFORDS LLP OFFICE ACCOUNT,425,DISREPAIR,PAYMENTS FOR LEGAL SERVICES,5902431810,1000082695
08.09.2020,ASSET MANAGEMENT,ASHFORDS LLP OFFICE ACCOUNT,425,DISREPAIR,PAYMENTS FOR LEGAL SERVICES,5902431812,1000082695
08.09.2020,ASSET MANAGEMENT,ASHFORDS LLP OFFICE ACCOUNT,428.5,DISREPAIR,PAYMENTS FOR LEGAL SERVICES,5902431773,1000082695
08.09.2020,ASSET MANAGEMENT,ASHFORDS LLP OFFICE ACCOUNT,"1,325.00",DISREPAIR,PAYMENTS FOR LEGAL SERVICES,5902431754,1000082695
08.09.2020,ASSET MANAGEMENT,ASHFORDS LLP OFFICE ACCOUNT,"1,750.00",DISREPAIR,PAYMENTS FOR LEGAL SERVICES,5902431772,1000082695
08.09.2020,ASSET MANAGEMENT,LONDON FIRE BRIGADE,339,ENG CONTRACTS (NORTH),LIFTS,5902431765,1000083629
08.09.2020,ASSET MANAGEMENT,LONDON FIRE BRIGADE,339,ENG CONTRACTS (NORTH),LIFTS,5902431768,1000083629
08.09.2020,ASSET MANAGEMENT,LONDON FIRE BRIGADE,339,ENG CONTRACTS (NORTH),LIFTS,5902431769,1000083629
08.09.2020,ASSET MANAGEMENT,LONDON FIRE BRIGADE,339,ENG CONTRACTS (NORTH),LIFTS,5902431770,1000083629
08.09.2020,ASSET MANAGEMENT,AVONLINE PLC,727.5,ENG CONTRACTS (NORTH),TV AERIALS R&M,5902431708,1000068672
08.09.2020,CENTRAL FUNCTIONS,CAPITA BUSINESS SERVICES LTD,"26,257.43",EXCHEQUER RENTS,OTHER CONTRACTORS,5902431728,1000006291
08.09.2020,CENTRAL FUNCTIONS,SSE SOUTHERN ELECTRIC,"-1,190.42",HEATING ACCOUNT,ELECTRICITY,5902431715,1000085403
08.09.2020,CENTRAL FUNCTIONS,SSE SOUTHERN ELECTRIC,695.46,HEATING ACCOUNT,ELECTRICITY,5902431717,1000085403
08.09.2020,CENTRAL FUNCTIONS,SSE SOUTHERN ELECTRIC,700.59,HEATING ACCOUNT,ELECTRICITY,5902431716,1000085403
08.09.2020,CENTRAL FUNCTIONS,SSE SOUTHERN ELECTRIC,"3,552.39",HEATING ACCOUNT,ELECTRICITY,5902431714,1000085403
08.09.2020,CENTRAL FUNCTIONS,SSE SOUTHERN ELECTRIC,"3,553.69",HEATING ACCOUNT,ELECTRICITY,5902431712,1000085403
08.09.2020,CHIEF EXECUTIVE,MACE LTD,"8,737.50",CAPITAL PS (REGEN),CONSTRUCTION FEES,5902431699,1000067959
08.09.2020,CHIEF EXECUTIVE,MACE LTD,"9,087.00",CAPITAL PS (REGEN),CONSTRUCTION FEES,5902431697,1000067959
08.09.2020,CHIEF EXECUTIVE,TRITON BUILDING RESTORATION LTD,"81,420.19",CAPITAL PS (REGEN),CONSTRUCTION FEES  - EXTERNAL,2103141563,3000002061
08.09.2020,CHIEF EXECUTIVE,KN NETWORK SERVICES LTD,"196,831.74",CAPITAL PS (REGEN),CONSTRUCTION MAIN CONTRACT -CERTIFICATED,2103141566,3000002134
08.09.2020,CHIEF EXECUTIVE'S OFFICE,CATHERINE WILLIAMS,"2,300.00",DISCRETIONARY GRANTS,GRANTS,2103141318,1000085414
08.09.2020,CHIEF EXECUTIVE'S OFFICE,WHIRLD LTD.,"2,500.00",DISCRETIONARY GRANTS,GRANTS,2103141320,1000085417
08.09.2020,CHIEF EXECUTIVE'S OFFICE,BEATRIZ PLAZAS MENDEZ,"2,500.00",DISCRETIONARY GRANTS,GRANTS,2103141319,1000085418
08.09.2020,CHIEF EXECUTIVE'S OFFICE,PRATIMA GUPTA,780,DISCRETIONARY GRANTS,GRANTS,2103141557,1000085428
08.09.2020,CHIEF EXECUTIVE'S OFFICE,LAZIZ GADAEV,"1,980.00",DISCRETIONARY GRANTS,GRANTS,2103141558,1000085429
08.09.2020,CHIEF EXECUTIVE'S OFFICE,T & T CURTAINS LTD,"2,460.00",DISCRETIONARY GRANTS,GRANTS,2103141559,1000085430
08.09.2020,CHIEF EXECUTIVE'S OFFICE,GEOFFREY OJINNAKA,550,DISCRETIONARY GRANTS,GRANTS,2103141560,1000085431
08.09.2020,CHIEF EXECUTIVE'S OFFICE,ELISE JONES,"2,500.00",DISCRETIONARY GRANTS,GRANTS,2103141561,1000085433
08.09.2020,CHIEF EXECUTIVE'S OFFICE,KINO-MO LTD,"10,000.00",DISCRETIONARY GRANTS,GRANTS,2103141562,1000085434
08.09.2020,CHIEF EXECUTIVE'S OFFICE,PASSION HAIR UNISEX LTD,"5,000.00",SOUTHWARK PIONEER FUND,GRANTS,2103141323,1000085415
08.09.2020,CHIEF EXECUTIVE'S OFFICE,CHARLOTTE KINGSNORTH,"1,500.00",SOUTHWARK PIONEER FUND,GRANTS,2103141321,1000085416
08.09.2020,CHILDREN AND ADULT,CBS MAINTENANCE SERVICES LTD,"94,901.49",CAPITAL PS (EDUCATION),CONSTRUCTION MAIN CONTRACT,2103141565,3000001518
08.09.2020,CHILDREN AND ADULT,FARRANS CONSTRUCTION,"13,195.35",CAPITAL PS (EDUCATION),CONSTRUCTION MAIN CONTRACT -CERTIFICATED,2103141564,3000002159
08.09.2020,CHILDREN'S SERVICES,MAXIMUM POTENTIAL,"3,692.00",ADOPTION SUPP FUND,EXTERNAL AGENCIES AND BODIES,5902431854,1000080313
08.09.2020,CHILDREN'S SERVICES,BLERINA TAHIRAJ-PRITCHARD,"1,304.57",FAMILY GROUP CONF�S,PROFESSIONAL FEES,5902431786,1000083304
08.09.2020,CHILDREN'S SERVICES,BLERINA TAHIRAJ-PRITCHARD,"1,583.33",FAMILY GROUP CONF�S,PROFESSIONAL FEES,5902431849,1000083304
08.09.2020,CHILDREN'S SERVICES,REDACTED PERSONAL DATA,300,FURTHER EDUCATION SUPPORT,CLIENT TRANSPORT,REDACTED,REDACTED
08.09.2020,CHILDREN'S SERVICES,REDACTED PERSONAL DATA,300,FURTHER EDUCATION SUPPORT,CLIENT TRANSPORT,REDACTED,REDACTED
08.09.2020,CHILDREN'S SERVICES,LEAEFF LTD,"2,500.00",MANAGEMENT INFORMATION UNIT,PROFESSIONAL FEES,5902431820,1000083779
08.09.2020,CHILDREN'S SERVICES,LEAEFF LTD,"2,500.00",MANAGEMENT INFORMATION UNIT,PROFESSIONAL FEES,5902431823,1000083779
08.09.2020,CHILDREN'S SERVICES,LEAEFF LTD,"2,500.00",MANAGEMENT INFORMATION UNIT,PROFESSIONAL FEES,5902431826,1000083779
08.09.2020,CHILDREN'S SERVICES,LEAEFF LTD,"2,500.00",MANAGEMENT INFORMATION UNIT,PROFESSIONAL FEES,5902431829,1000083779
08.09.2020,CHILDREN'S SERVICES,LEAEFF LTD,"2,500.00",MANAGEMENT INFORMATION UNIT,PROFESSIONAL FEES,5902431831,1000083779
08.09.2020,CHILDREN'S SERVICES,LEAEFF LTD,"2,500.00",MANAGEMENT INFORMATION UNIT,PROFESSIONAL FEES,5902431833,1000083779
08.09.2020,CHILDREN'S SERVICES,LEAEFF LTD,"2,500.00",MANAGEMENT INFORMATION UNIT,PROFESSIONAL FEES,5902431836,1000083779
08.09.2020,CHILDREN'S SERVICES,LEAEFF LTD,"2,500.00",MANAGEMENT INFORMATION UNIT,PROFESSIONAL FEES,5902431837,1000083779
08.09.2020,CHILDREN'S SERVICES,LEAEFF LTD,"2,500.00",MANAGEMENT INFORMATION UNIT,PROFESSIONAL FEES,5902431839,1000083779
08.09.2020,CHILDREN'S SERVICES,SOUTHWARK INCLUSIVE LEARNING SERVICE,"13,170.00",PROPERTY MANAGEMENT,EQUIPMENT PURCHASE & REPAIR,5902431700,5001000105
08.09.2020,CHILDREN'S SERVICES,NEXT STEP CARE MANAGEMENT LTD,"2,967.14",SEMI INDEPENDENT CARE LEAVERS,EXTERNAL AGENCIES AND BODIES,2103141380,1825556
08.09.2020,CHILDREN'S SERVICES,NEXT STEP CARE MANAGEMENT LTD,"2,989.29",SEMI INDEPENDENT CARE LEAVERS,EXTERNAL AGENCIES AND BODIES,2103141360,1825556
08.09.2020,CHILDREN'S SERVICES,NETPEX LTD CORPORATE SERVICES,"2,435.67",SEMI INDEPENDENT CARE LEAVERS,EXTERNAL AGENCIES AND BODIES,2103141370,1000076073
08.09.2020,CHILDREN'S SERVICES,NETPEX LTD CORPORATE SERVICES,"2,700.85",SEMI INDEPENDENT CARE LEAVERS,EXTERNAL AGENCIES AND BODIES,2103141386,1000076073
08.09.2020,CHILDREN'S SERVICES,NETPEX LTD CORPORATE SERVICES,"2,767.99",SEMI INDEPENDENT CARE LEAVERS,EXTERNAL AGENCIES AND BODIES,2103141392,1000076073
08.09.2020,CHILDREN'S SERVICES,NETPEX LTD CORPORATE SERVICES,"3,055.67",SEMI INDEPENDENT CARE LEAVERS,EXTERNAL AGENCIES AND BODIES,2103141368,1000076073
08.09.2020,CHILDREN'S SERVICES,NETPEX LTD CORPORATE SERVICES,"3,077.99",SEMI INDEPENDENT CARE LEAVERS,EXTERNAL AGENCIES AND BODIES,2103141398,1000076073
08.09.2020,CHILDREN'S SERVICES,NETPEX LTD CORPORATE SERVICES,"3,321.34",SEMI INDEPENDENT CARE LEAVERS,EXTERNAL AGENCIES AND BODIES,2103141396,1000076073
08.09.2020,CHILDREN'S SERVICES,NETPEX LTD CORPORATE SERVICES,"4,207.32",SEMI INDEPENDENT CARE LEAVERS,EXTERNAL AGENCIES AND BODIES,2103141364,1000076073
08.09.2020,CHILDREN'S SERVICES,SANCTUARY CARE SERVICES LTD,"3,400.00",SEMI INDEPENDENT CARE LEAVERS,EXTERNAL AGENCIES AND BODIES,2103141358,1000078444
08.09.2020,CHILDREN'S SERVICES,HARVEST CARE GROUP LTD,"2,433.81",SEMI INDEPENDENT CARE LEAVERS,EXTERNAL AGENCIES AND BODIES,2103141362,1000079059
08.09.2020,CHILDREN'S SERVICES,HARVEST CARE GROUP LTD,"2,433.81",SEMI INDEPENDENT CARE LEAVERS,EXTERNAL AGENCIES AND BODIES,2103141400,1000079059
08.09.2020,CHILDREN'S SERVICES,HARVEST CARE GROUP LTD,"3,764.02",SEMI INDEPENDENT CARE LEAVERS,EXTERNAL AGENCIES AND BODIES,2103141394,1000079059
08.09.2020,CHILDREN'S SERVICES,HARVEST CARE GROUP LTD,"4,262.50",SEMI INDEPENDENT CARE LEAVERS,EXTERNAL AGENCIES AND BODIES,2103141356,1000079059
08.09.2020,CHILDREN'S SERVICES,HARVEST CARE GROUP LTD,"4,539.02",SEMI INDEPENDENT CARE LEAVERS,EXTERNAL AGENCIES AND BODIES,2103141382,1000079059
08.09.2020,CHILDREN'S SERVICES,GREATER LONDON FOSTERING,309.73,SEMI INDEPENDENT CARE LEAVERS,OTHER PAYMENTS FOR CLIENTS,2103141376,1000029184
08.09.2020,CHILDREN'S SERVICES,NETPEX LTD CORPORATE SERVICES,300,SEMI INDEPENDENT CARE LEAVERS,OTHER PAYMENTS FOR CLIENTS,2103141384,1000076073
08.09.2020,CHILDREN'S SERVICES,IDEAL CARE SOLUTIONS LTD,265.71,SEMI INDEPENDENT CARE LEAVERS,OTHER PAYMENTS FOR CLIENTS,2103141350,1000080804
08.09.2020,CHILDREN'S SERVICES,REAL LIFE CARE LTD,"4,760.67",SEMI INDEPENDENT LAC,EXTERNAL AGENCIES AND BODIES,2103141337,1000083556
08.09.2020,CHILDREN'S SERVICES,SOUTHWARK INCLUSIVE LEARNING SERVICE,"175,000.00",SILS,HIGH NEEDS - TOP UP FUNDING,5902431735,5001000105
08.09.2020,CHILDREN'S SERVICES,TACT,"1,549.69",STAYING PUT,EXTERNAL AGENCIES AND BODIES,2103141390,1000012941
08.09.2020,CHILDREN'S SERVICES,GREATER LONDON FOSTERING,"2,214.29",STAYING PUT,EXTERNAL AGENCIES AND BODIES,2103141374,1000029184
08.09.2020,CHILDREN'S SERVICES,NATIONAL FOSTERING AGENCY,"1,860.00",STAYING PUT,EXTERNAL AGENCIES AND BODIES,2103141378,1000038868
08.09.2020,CHILDREN'S SERVICES,SARAH HUMPHREYS,300,STUDENTS,GENERAL GOVERNMENT GRANTS,5902431844,1000083236
08.09.2020,CHILDREN'S SERVICES,NEXT STEP CARE MANAGEMENT LTD,"2,413.57",UASC CARE LEAVERS,EXTERNAL AGENCIES AND BODIES,2103141354,1825556
08.09.2020,CHILDREN'S SERVICES,NETPEX LTD CORPORATE SERVICES,"4,207.32",UASC CARE LEAVERS,EXTERNAL AGENCIES AND BODIES,2103141388,1000076073
08.09.2020,CHILDREN'S SERVICES,NETPEX LTD CORPORATE SERVICES,"4,406.65",UASC CARE LEAVERS,EXTERNAL AGENCIES AND BODIES,2103141352,1000076073
08.09.2020,CHILDREN'S SERVICES,NETPEX LTD CORPORATE SERVICES,289.5,UASC CARE LEAVERS,OTHER PAYMENTS FOR CLIENTS,2103141366,1000076073
08.09.2020,CHILDREN'S SERVICES,NETPEX LTD CORPORATE SERVICES,"4,406.34",UASC LAC,EXTERNAL AGENCIES AND BODIES,2103141347,1000076073
08.09.2020,CHILDREN'S SERVICES,SANCTUARY CARE SERVICES LTD,"3,400.00",UASC LAC,EXTERNAL AGENCIES AND BODIES,2103141335,1000078444
08.09.2020,CHILDREN'S SERVICES,EPIC CARE HOME LTD,"3,764.28",UASC LAC,EXTERNAL AGENCIES AND BODIES,2103141340,1000084192
08.09.2020,CHILDREN'S SERVICES,OWNLIFE LTD,302.9,UASC LAC,OTHER PAYMENTS FOR CLIENTS,2103141331,1000056219
08.09.2020,CHILDREN'S SERVICES,NETPEX LTD CORPORATE SERVICES,350,UASC LAC,OTHER PAYMENTS FOR CLIENTS,2103141334,1000076073
08.09.2020,CHILDREN'S SERVICES,EPIC CARE HOME LTD,310.01,UASC LAC,OTHER PAYMENTS FOR CLIENTS,2103141342,1000084192
08.09.2020,CHILDREN'S SERVICES,REDACTED PERSONAL DATA,300,UNIVERSITY SUPPORT,CLIENT TRANSPORT,REDACTED,REDACTED
08.09.2020,CHILDREN'S SERVICES,REDACTED PERSONAL DATA,300,UNIVERSITY SUPPORT,CLIENT TRANSPORT,REDACTED,REDACTED
08.09.2020,CHILDREN'S SERVICES,REDACTED PERSONAL DATA,800,UNIVERSITY SUPPORT,OTHER PAYMENTS FOR CLIENTS,REDACTED,REDACTED
08.09.2020,CHILDREN'S SERVICES,REDACTED PERSONAL DATA,800,UNIVERSITY SUPPORT,OTHER PAYMENTS FOR CLIENTS,REDACTED,REDACTED
08.09.2020,CHILDREN'S SERVICES,HIGHSHORE SCHOOL,"1,905.56",YPLA SCHL SIXTH FORM,"SCHOOLS CAPITATION, STANDARDS FUND",5902431730,5001000046
08.09.2020,CHILDREN'S SERVICES,THE ST THOMAS THE APOSTLE COLLEGE,"19,847.66",YPLA SCHL SIXTH FORM,"SCHOOLS CAPITATION, STANDARDS FUND",5902431731,5001000074
08.09.2020,CHILDREN'S SERVICES,ST SAVIOURS & ST OLAVES SCHOOL,"12,732.64",YPLA SCHL SIXTH FORM,"SCHOOLS CAPITATION, STANDARDS FUND",5902431732,5001000084
08.09.2020,CHILDREN'S SERVICES,TUKE SCHOOL,"1,167.93",YPLA SCHL SIXTH FORM,"SCHOOLS CAPITATION, STANDARDS FUND",5902431733,5001000097
08.09.2020,COMMUNITIES,BIKE TAXI LIMITED,774.67,C19 COMMUNITY HUB,DELIVERY CHARGES,5902431388,1000085112
08.09.2020,COMMUNITIES,SL CREATIVES LTD,"1,487.40",EAST CENTRAL,GRANTS,5902431775,1000085098
08.09.2020,CUSTOMER EXPERIENCE HGF,AMITY ESTATES LTD,"4,000.00",HOMELESS PROJECTS,GRANTS,5902431818,1000050384
08.09.2020,CUSTOMER EXPERIENCE HGF,HELP2SUPPORT LIMITED,"3,000.00",HOMELESS PROJECTS,GRANTS,5902431815,1000084604
08.09.2020,CUSTOMER EXPERIENCE HGF,HELP2SUPPORT LIMITED,"3,000.00",HOMELESS PROJECTS,GRANTS,5902431816,1000084604
08.09.2020,CUSTOMER EXPERIENCE HGF,TAAKSVALE HOUSING LTD,"1,712.00",NIGHTLY TA (NSC),EXTERNAL AGENCIES AND BODIES,5902431722,1000073665
08.09.2020,CUSTOMER EXPERIENCE HGF,TAAKSVALE HOUSING LTD,"63,292.85",NIGHTLY TA (NSC),EXTERNAL AGENCIES AND BODIES,5902431721,1000073665
08.09.2020,CUSTOMER EXPERIENCE HGF,REDACTED PERSONAL DATA,"2,480.00",NIGHTLY TA (NSC),EXTERNAL AGENCIES AND BODIES,REDACTED,REDACTED
08.09.2020,CUSTOMER EXPERIENCE HGF,ST MUNGO'S ASSOCIATION,1325.08,RAPID REHOUSING,EXTERNAL AGENCIES AND BODIES,5902431834,1000058785
08.09.2020,CUSTOMER EXPERIENCE HGF,ST MUNGO'S ASSOCIATION,"1,656.35",RAPID REHOUSING,EXTERNAL AGENCIES AND BODIES,5902431835,1000058785
08.09.2020,CUSTOMER EXPERIENCE HGF,ST MUNGO'S ASSOCIATION,"1,940.30",RAPID REHOUSING,EXTERNAL AGENCIES AND BODIES,5902431840,1000058785
08.09.2020,ENVIRONMENT AND LEISURE,DOCKLAND SETTLEMENT COMMUNITY,432,CAPITAL PS (LEISURE),CAPITAL GRANTS,5902431742,1000075662
08.09.2020,ENVIRONMENT AND LEISURE,DOCKLAND SETTLEMENT COMMUNITY,528,CAPITAL PS (LEISURE),CAPITAL GRANTS,5902431740,1000075662
08.09.2020,ENVIRONMENT DIRECTORATE,ECOLAB LTD,"3,125.00",STRUCTURES RECOVERABLE WORKS,OTHER CONTRACTORS,5902431724,1000051810
08.09.2020,HOUSING,OCO LIMITED,"851,091.57",PAYMENTS CONTROL ACCOUNT - OCO,I-WORLD CONTRACTORS HOLDING ACCOUNT,5902431696,1006066
08.09.2020,HOUSING GENERAL FUND,UNIFIED CONSULTANCY LTD,"9,746.00",CAPITAL PS (HOUSING GF),ICT ACQUISITION,5902431517,1000081827
08.09.2020,HOUSING HRA,CALFORD SEADEN LLP,"1,699.34",CAPITAL PS (HRA),CONSTRUCTION FEES  - EXTERNAL,5902431673,1061592
08.09.2020,HOUSING HRA,SALTASH ENTERPRISES LTD,"110,943.39",CAPITAL PS (HRA),CONSTRUCTION MAIN CONTRACT -CERTIFICATED,2103141567,4013605
08.09.2020,HOUSING HRA,SMS CONNECTIONS LTD,553.65,CAPITAL PS (HRA),UTILITIES INSTALLATION,5902431471,1000070264
08.09.2020,HOUSING HRA,CONRAN & PARTNERS LTD,"2,439.00",CAPITAL PS (REGEN),CONSTRUCTION FEES - ARCHITECT,5902431841,1000083025
08.09.2020,HOUSING HRA,MARTIN ARNOLD LTD,"6,911.72",CAPITAL PS (REGEN),CONSTRUCTION FEES - ENGINEER,5902431709,1000076993
08.09.2020,HOUSING HRA,RAPLEYS LLP,"5,850.00",CAPITAL PS (REGEN),CONSTRUCTION FEES - INTERNAL,5902431701,1000052157
08.09.2020,LEISURE DIRECTORATE,CASTLE WATER LTD,311.11,BURGESS SPORTS CENTRE,WATER,5902431737,1000078867
08.09.2020,LEISURE DIRECTORATE,UNIFIED CONSULTANCY LTD,854.56,CEMETERIES,OP LEASE/HIRE CHARGES:PLANT/EQUIP/FURNIT,5902430989,1000081827
08.09.2020,LEISURE DIRECTORATE,UNIFIED CONSULTANCY LTD,"4,772.58",CEMETERIES,OP LEASE/HIRE CHARGES:PLANT/EQUIP/FURNIT,5902430995,1000081827
08.09.2020,LEISURE DIRECTORATE,CASTLE WATER LTD,739.58,DULWICH AREA TEAM,WATER,5902431681,1000078867
08.09.2020,LEISURE DIRECTORATE,CASTLE WATER LTD,"1,437.77",DULWICH AREA TEAM,WATER,5902431679,1000078867
08.09.2020,LEISURE DIRECTORATE,CASTLE WATER LTD,"1,889.10",DULWICH AREA TEAM,WATER,5902431688,1000078867
08.09.2020,LEISURE DIRECTORATE,CASTLE WATER LTD,"4,686.34",DULWICH AREA TEAM,WATER,5902431683,1000078867
08.09.2020,LEISURE DIRECTORATE,MARICER - CARAVAN ELECTRICAL PARK SERVICES LTD,302.18,SDM BUDGET,MATERIALS,5902431703,1000069292
08.09.2020,LEISURE DIRECTORATE,CASTLE WATER LTD,"1,665.67",SDM BUDGET,WATER,5902431791,1000078867
08.09.2020,LEISURE DIRECTORATE,CASTLE WATER LTD,829.34,SOUTHWARK AREA TEAM,WATER,5902431678,1000078867
08.09.2020,LEISURE DIRECTORATE,CASTLE WATER LTD,"3,296.50",SOUTHWARK AREA TEAM,WATER,5902431677,1000078867
08.09.2020,MODERNISATION HGF,INCLUSIVE EMPLOYERS LTD,750,ORG TRANSFORMATION,TRAINING,5902431676,1000083490
08.09.2020,MODERNISATION HGF,INCLUSIVE EMPLOYERS LTD,"2,100.00",ORG TRANSFORMATION,TRAINING,5902431676,1000083490
08.09.2020,MODERNISATION HGF,KIER FACILITIES SERVICES LTD,"1,392.59",PLANNED FM SERVICES BY KIER,BUILDING R&M,5902431744,1000040603
08.09.2020,MODERNISATION HGF,KIER FACILITIES SERVICES LTD,"2,033.52",PLANNED FM SERVICES BY KIER,BUILDING R&M,5902431739,1000040603
08.09.2020,MODERNISATION HGF,KIER FACILITIES SERVICES LTD,"2,464.84",PLANNED FM SERVICES BY KIER,BUILDING R&M,5902431746,1000040603
08.09.2020,MODERNISATION HGF,KIER FACILITIES SERVICES LTD,"4,011.95",PLANNED FM SERVICES BY KIER,BUILDING R&M,5902431743,1000040603
08.09.2020,MODERNISATION HGF,KIER FACILITIES SERVICES LTD,"4,932.21",PLANNED FM SERVICES BY KIER,BUILDING R&M,5902431741,1000040603
08.09.2020,MODERNISATION HGF,KIER FACILITIES SERVICES LTD,"6,459.97",PLANNED FM SERVICES BY KIER,BUILDING R&M,5902431755,1000040603
08.09.2020,MODERNISATION HGF,KIER FACILITIES SERVICES LTD,"12,175.42",PLANNED FM SERVICES BY KIER,BUILDING R&M,5902431757,1000040603
08.09.2020,MODERNISATION HGF,KIER FACILITIES SERVICES LTD,789.49,PLANNED MAINTENANCE,BUILDING R&M,5902431751,1000040603
08.09.2020,MODERNISATION HGF,KIER FACILITIES SERVICES LTD,"2,769.93",PLANNED MAINTENANCE,BUILDING R&M,5902431750,1000040603
08.09.2020,MODERNISATION HGF,KIER FACILITIES SERVICES LTD,"3,400.88",PLANNED MAINTENANCE,BUILDING R&M,5902431748,1000040603
08.09.2020,MODERNISATION HGF,KIER FACILITIES SERVICES LTD,"3,846.15",PLANNED MAINTENANCE,BUILDING R&M,5902431753,1000040603
08.09.2020,MODERNISATION HGF,KIER FACILITIES SERVICES LTD,"12,801.93",PLANNED MAINTENANCE,BUILDING R&M,5902431759,1000040603
08.09.2020,MODERNISATION HGF,PULSE CORPORATION LTD,"3,462.50",REPAIR AND MAINTENANCE SERVICES,HARDWARE,5902431145,1000072911
08.09.2020,MODERNISATION HGF,PIONEER PRODUCTS,"24,900.00",TSFM CONTINGENCY,INTEGRATED FACILITIES MANAGEMENT CONTRACT,5902431693,1000084131
08.09.2020,NEW BUILD,1ST LINE DEFENCE LTD,950,DEVELOPMENT DELIVERY,PROFESSIONAL FEES,5902431720,1000074361
08.09.2020,PLANNING AND TRANSPORT,SOUTHWARK NEWSPAPER LTD,504,DEVELOPMENT CONTROL ADMINSTRATION,MARKETING & PUBLICITY SERVICES,5902431686,1556957
08.09.2020,PLANNING AND TRANSPORT,SOUTHWARK NEWSPAPER LTD,504,DEVELOPMENT CONTROL ADMINSTRATION,MARKETING & PUBLICITY SERVICES,5902431689,1556957
08.09.2020,REPORTING & TREASURY,THE BANK OF NEW YORK MELLON,894.89,CASH MANAGERS' COSTS,PROFESSIONAL FEES,5902431799,1000072540
08.09.2020,RESIDENT SERVICES,WILLOW ESTATE AGENTS (LONDON) LTD,384,TA PLACEMENTS,EXTERNAL AGENCIES AND BODIES,5902431745,1000060607
08.09.2020,RESIDENT SERVICES,SOUTH OF THE RIVER INVESTMENTS LTD,"4,991.00",TA PLACEMENTS,EXTERNAL AGENCIES AND BODIES,5902431832,1000073638
08.09.2020,RESIDENT SERVICES,STENFORD PROPERTY LTD,"7,277.80",TA PLACEMENTS,EXTERNAL AGENCIES AND BODIES,5902431846,1000074759
08.09.2020,RESIDENT SERVICES,NORBURY PROPERTY SERVICES (LONDON) LTD,"6,174.50",TA PLACEMENTS,EXTERNAL AGENCIES AND BODIES,5902431811,1000075566
08.09.2020,RESIDENT SERVICES,CYBERSTYLE LETTINGS LTD,"1,658.50",TA PLACEMENTS,EXTERNAL AGENCIES AND BODIES,5902431774,1000079319
08.09.2020,RESIDENT SERVICES,REDACTED PERSONAL DATA,"3,010.00",TA PLACEMENTS,EXTERNAL AGENCIES AND BODIES,REDACTED,REDACTED
09.09.2020,ADULT SOCIAL CARE,F A ALBIN AND SONS,"3,404.00",APPOINTEESHIPS,OTHER PAYMENTS FOR CLIENTS,2103142624,11313949
09.09.2020,ADULT SOCIAL CARE,INDEPENDENT PEOPLE HOMECARE LTD,"3,985.71",CARERS SERVICES,PLACEMENTS - RESPITE,2103142579,1000083488
09.09.2020,ADULT SOCIAL CARE,HEALTH ADVOCACY UK LTD,650,CHC ADVOCACY- OP/PD,EXTERNAL AGENCIES AND BODIES,5902431863,1000082156
09.09.2020,ADULT SOCIAL CARE,HEALTH ADVOCACY UK LTD,650,CHC ADVOCACY- OP/PD,EXTERNAL AGENCIES AND BODIES,5902431864,1000082156
09.09.2020,ADULT SOCIAL CARE,THE DRIVE CARE HOMES LTD,"14,872.87",DISABILITIES LAC,EXTERNAL AGENCIES AND BODIES,2103141613,1000003889
09.09.2020,ADULT SOCIAL CARE,CREATING CARE CHOICES LTD,600,DISABILITIES LAC,EXTERNAL AGENCIES AND BODIES,2103141621,1000076738
09.09.2020,ADULT SOCIAL CARE,AMELIA'S HOUSE LIMITED,"13,950.00",DISABILITIES LAC,EXTERNAL AGENCIES AND BODIES,2103141616,1000083007
09.09.2020,ADULT SOCIAL CARE,THE DRIVE CARE HOMES LTD,"14,126.52",DISABILITIES LAC,RESIDENTIAL CARE,2103141612,1000003889
09.09.2020,ADULT SOCIAL CARE,AMELIA'S HOUSE LIMITED,"16,986.45",DISABILITIES LAC,RESIDENTIAL CARE,2103141618,1000083007
09.09.2020,ADULT SOCIAL CARE,ELEANOR NURSING AND SOCIAL CARE LTD,"23,251.20",DISCHARGE TO ACCESS,HOMECARE - SPOT,2103142591,1000081695
09.09.2020,ADULT SOCIAL CARE,SWK DISABLEMENT ASSN,323.05,DISCHARGE TO ACCESS,SUPPORTED LIVING,2103142604,1000011698
09.09.2020,ADULT SOCIAL CARE,INSPIRE SUPPORT WORKERS LTD,"1,296.00",DISCHARGE TO ACCESS,SUPPORTED LIVING,2103142571,1000080725
09.09.2020,ADULT SOCIAL CARE,ELEANOR NURSING AND SOCIAL CARE LTD,"1,003.40",LD LTS 18-64,HOMECARE - SPOT,2103142592,1000081695
09.09.2020,ADULT SOCIAL CARE,CHOICE SUPPORT,293.92,LD LTS 18-64,SUPPORTED LIVING,2103142570,1104183
09.09.2020,ADULT SOCIAL CARE,CHOICE SUPPORT,293.92,LD LTS 18-64,SUPPORTED LIVING,2103142583,1104183
09.09.2020,ADULT SOCIAL CARE,CHOICE SUPPORT,367.4,LD LTS 18-64,SUPPORTED LIVING,2103142573,1104183
09.09.2020,ADULT SOCIAL CARE,CHOICE SUPPORT,367.4,LD LTS 18-64,SUPPORTED LIVING,2103142581,1104183
09.09.2020,ADULT SOCIAL CARE,CHOICE SUPPORT,367.4,LD LTS 18-64,SUPPORTED LIVING,2103142585,1104183
09.09.2020,ADULT SOCIAL CARE,CONTACT PROFESSIONALS,465,LD LTS 18-64,SUPPORTED LIVING,2103142575,1000057263
09.09.2020,ADULT SOCIAL CARE,MARCUS AND MARCUS LTD,"2,000.00",LD LTS 18-64,SUPPORTED LIVING,2103142563,1000065913
09.09.2020,ADULT SOCIAL CARE,MARCUS AND MARCUS LTD,"4,800.00",LD LTS 18-64,SUPPORTED LIVING,2103142569,1000065913
09.09.2020,ADULT SOCIAL CARE,INSPIRE SUPPORT WORKERS LTD,"3,850.00",LD LTS 18-64,SUPPORTED LIVING,2103142574,1000080725
09.09.2020,ADULT SOCIAL CARE,ROSEMONT CARE LTD,"1,123.50",LD LTS 18-64,SUPPORTED LIVING,2103142181,1000084219
09.09.2020,ADULT SOCIAL CARE,SUPPORT CARE SERVICE LTD,"1,782.00",LD LTS 18-64,SUPPORTED LIVING,2103142584,1000085390
09.09.2020,ADULT SOCIAL CARE,CHOICE SUPPORT,293.92,MH LTS 65+,SUPPORTED LIVING,2103142576,1104183
09.09.2020,ADULT SOCIAL CARE,SWK DISABLEMENT ASSN,"2,147.68",PHY LTS 18-64,HOMECARE - C&V,2103142603,1000011698
09.09.2020,ADULT SOCIAL CARE,ELEANOR NURSING AND SOCIAL CARE LTD,796.08,PHY LTS 18-64,HOMECARE - C&V,2103142600,1000081695
09.09.2020,ADULT SOCIAL CARE,ELEANOR NURSING AND SOCIAL CARE LTD,865,PHY LTS 18-64,HOMECARE - SPOT,2103142598,1000081695
09.09.2020,ADULT SOCIAL CARE,ELEANOR NURSING AND SOCIAL CARE LTD,"1,025.17",PHY LTS 18-64,HOMECARE - SPOT,2103142599,1000081695
09.09.2020,ADULT SOCIAL CARE,ELEANOR NURSING AND SOCIAL CARE LTD,"3,564.36",PHY LTS 18-64,HOMECARE - SPOT,2103142589,1000081695
09.09.2020,ADULT SOCIAL CARE,DRUGLINK LTD,"2,980.00",PHY LTS 18-64,PLACEMENTS - REHAB,2103142561,1000050942
09.09.2020,ADULT SOCIAL CARE,BLISSETT CARE LTD,695.76,PHY LTS 65+,HOMECARE - C&V,2103142612,1000042627
09.09.2020,ADULT SOCIAL CARE,SERVESOUL LTD,265.04,PHY LTS 65+,HOMECARE - SPOT,2103142183,1000081503
09.09.2020,ADULT SOCIAL CARE,SERVESOUL LTD,292.08,PHY LTS 65+,HOMECARE - SPOT,2103142186,1000081503
09.09.2020,ADULT SOCIAL CARE,SERVESOUL LTD,346.32,PHY LTS 65+,HOMECARE - SPOT,2103142199,1000081503
09.09.2020,ADULT SOCIAL CARE,SERVESOUL LTD,425.6,PHY LTS 65+,HOMECARE - SPOT,2103142198,1000081503
09.09.2020,ADULT SOCIAL CARE,SERVESOUL LTD,525.74,PHY LTS 65+,HOMECARE - SPOT,2103142175,1000081503
09.09.2020,ADULT SOCIAL CARE,SERVESOUL LTD,525.74,PHY LTS 65+,HOMECARE - SPOT,2103142177,1000081503
09.09.2020,ADULT SOCIAL CARE,SERVESOUL LTD,525.74,PHY LTS 65+,HOMECARE - SPOT,2103142179,1000081503
09.09.2020,ADULT SOCIAL CARE,SERVESOUL LTD,525.74,PHY LTS 65+,HOMECARE - SPOT,2103142196,1000081503
09.09.2020,ADULT SOCIAL CARE,SERVESOUL LTD,534.08,PHY LTS 65+,HOMECARE - SPOT,2103142176,1000081503
09.09.2020,ADULT SOCIAL CARE,SERVESOUL LTD,588.32,PHY LTS 65+,HOMECARE - SPOT,2103142182,1000081503
09.09.2020,ADULT SOCIAL CARE,SERVESOUL LTD,650.91,PHY LTS 65+,HOMECARE - SPOT,2103142189,1000081503
09.09.2020,ADULT SOCIAL CARE,SERVESOUL LTD,671.77,PHY LTS 65+,HOMECARE - SPOT,2103142192,1000081503
09.09.2020,ADULT SOCIAL CARE,SERVESOUL LTD,700.98,PHY LTS 65+,HOMECARE - SPOT,2103142195,1000081503
09.09.2020,ADULT SOCIAL CARE,ELEANOR NURSING AND SOCIAL CARE LTD,761.32,PHY LTS 65+,HOMECARE - SPOT,2103142588,1000081695
09.09.2020,ADULT SOCIAL CARE,ELEANOR NURSING AND SOCIAL CARE LTD,"1,193.84",PHY LTS 65+,HOMECARE - SPOT,2103142593,1000081695
09.09.2020,ADULT SOCIAL CARE,ELEANOR NURSING AND SOCIAL CARE LTD,"1,444.82",PHY LTS 65+,HOMECARE - SPOT,2103142590,1000081695
09.09.2020,ADULT SOCIAL CARE,ELEANOR NURSING AND SOCIAL CARE LTD,"2,076.12",PHY LTS 65+,HOMECARE - SPOT,2103142597,1000081695
09.09.2020,ADULT SOCIAL CARE,CHOICE SUPPORT,293.92,PHY LTS 65+,SUPPORTED LIVING,2103142568,1104183
09.09.2020,ADULT SOCIAL CARE,SAGECARE LTD,"1,705.20",PHY STS 18-64,HOMECARE - IC,2103142614,1000080924
09.09.2020,ADULT SOCIAL CARE,F A ALBIN AND SONS,"1,104.00",PUBLIC FUNERALS S.46,OTHER CONTRACTORS,5902432009,11313949
09.09.2020,ADULT SOCIAL CARE,F A ALBIN AND SONS,"1,186.00",PUBLIC FUNERALS S.46,OTHER CONTRACTORS,5902432021,11313949
09.09.2020,ADULT SOCIAL CARE,F A ALBIN AND SONS,"2,524.00",PUBLIC FUNERALS S.46,OTHER CONTRACTORS,5902432002,11313949
09.09.2020,ADULT SOCIAL CARE,F A ALBIN AND SONS,"3,704.00",PUBLIC FUNERALS S.46,OTHER CONTRACTORS,5902432017,11313949
09.09.2020,ADULT SOCIAL CARE,ELEANOR NURSING AND SOCIAL CARE LTD,917.04,SEN LTS 65+,HOMECARE - SPOT,2103142594,1000081695
09.09.2020,ADULT SOCIAL CARE,BRAIN-IN-HAND LTD,"11,958.00",SERVICE & PRACTICE DEVELOPMENT,SUBSCRIPTIONS,5902431906,1000082650
09.09.2020,ADULT SOCIAL CARE,INTERSERVE HEALTHCARE,"1,575.60",SPECIALIST CARE,SECTION 17 PAYMENTS TO AGENCIES/CARERS,2103142525,1000049612
09.09.2020,ADULT SOCIAL CARE,CONTACT PROFESSIONALS,266,SPECIALIST CARE,SECTION 17 PAYMENTS TO AGENCIES/CARERS,2103142471,1000057263
09.09.2020,ADULT SOCIAL CARE,CONTACT PROFESSIONALS,266,SPECIALIST CARE,SECTION 17 PAYMENTS TO AGENCIES/CARERS,2103142517,1000057263
09.09.2020,ADULT SOCIAL CARE,CONTACT PROFESSIONALS,266,SPECIALIST CARE,SECTION 17 PAYMENTS TO AGENCIES/CARERS,2103142551,1000057263
09.09.2020,ADULT SOCIAL CARE,CONTACT PROFESSIONALS,266,SPECIALIST CARE,SECTION 17 PAYMENTS TO AGENCIES/CARERS,2103142558,1000057263
09.09.2020,ADULT SOCIAL CARE,CONTACT PROFESSIONALS,285,SPECIALIST CARE,SECTION 17 PAYMENTS TO AGENCIES/CARERS,2103142442,1000057263
09.09.2020,ADULT SOCIAL CARE,CONTACT PROFESSIONALS,285,SPECIALIST CARE,SECTION 17 PAYMENTS TO AGENCIES/CARERS,2103142484,1000057263
09.09.2020,ADULT SOCIAL CARE,CONTACT PROFESSIONALS,285,SPECIALIST CARE,SECTION 17 PAYMENTS TO AGENCIES/CARERS,2103142494,1000057263
09.09.2020,ADULT SOCIAL CARE,CONTACT PROFESSIONALS,285,SPECIALIST CARE,SECTION 17 PAYMENTS TO AGENCIES/CARERS,2103142516,1000057263
09.09.2020,ADULT SOCIAL CARE,CONTACT PROFESSIONALS,285,SPECIALIST CARE,SECTION 17 PAYMENTS TO AGENCIES/CARERS,2103142557,1000057263
09.09.2020,ADULT SOCIAL CARE,CONTACT PROFESSIONALS,304,SPECIALIST CARE,SECTION 17 PAYMENTS TO AGENCIES/CARERS,2103142440,1000057263
09.09.2020,ADULT SOCIAL CARE,CONTACT PROFESSIONALS,304,SPECIALIST CARE,SECTION 17 PAYMENTS TO AGENCIES/CARERS,2103142465,1000057263
09.09.2020,ADULT SOCIAL CARE,CONTACT PROFESSIONALS,304,SPECIALIST CARE,SECTION 17 PAYMENTS TO AGENCIES/CARERS,2103142483,1000057263
09.09.2020,ADULT SOCIAL CARE,CONTACT PROFESSIONALS,304,SPECIALIST CARE,SECTION 17 PAYMENTS TO AGENCIES/CARERS,2103142507,1000057263
09.09.2020,ADULT SOCIAL CARE,CONTACT PROFESSIONALS,304,SPECIALIST CARE,SECTION 17 PAYMENTS TO AGENCIES/CARERS,2103142548,1000057263
09.09.2020,ADULT SOCIAL CARE,CONTACT PROFESSIONALS,304,SPECIALIST CARE,SECTION 17 PAYMENTS TO AGENCIES/CARERS,2103142559,1000057263
09.09.2020,ADULT SOCIAL CARE,CONTACT PROFESSIONALS,323,SPECIALIST CARE,SECTION 17 PAYMENTS TO AGENCIES/CARERS,2103142534,1000057263
09.09.2020,ADULT SOCIAL CARE,CONTACT PROFESSIONALS,323,SPECIALIST CARE,SECTION 17 PAYMENTS TO AGENCIES/CARERS,2103142544,1000057263
09.09.2020,ADULT SOCIAL CARE,CONTACT PROFESSIONALS,342,SPECIALIST CARE,SECTION 17 PAYMENTS TO AGENCIES/CARERS,2103142438,1000057263
09.09.2020,ADULT SOCIAL CARE,CONTACT PROFESSIONALS,342,SPECIALIST CARE,SECTION 17 PAYMENTS TO AGENCIES/CARERS,2103142535,1000057263
09.09.2020,ADULT SOCIAL CARE,CONTACT PROFESSIONALS,380,SPECIALIST CARE,SECTION 17 PAYMENTS TO AGENCIES/CARERS,2103142443,1000057263
09.09.2020,ADULT SOCIAL CARE,CONTACT PROFESSIONALS,380,SPECIALIST CARE,SECTION 17 PAYMENTS TO AGENCIES/CARERS,2103142476,1000057263
09.09.2020,ADULT SOCIAL CARE,CONTACT PROFESSIONALS,380,SPECIALIST CARE,SECTION 17 PAYMENTS TO AGENCIES/CARERS,2103142501,1000057263
09.09.2020,ADULT SOCIAL CARE,CONTACT PROFESSIONALS,380,SPECIALIST CARE,SECTION 17 PAYMENTS TO AGENCIES/CARERS,2103142519,1000057263
09.09.2020,ADULT SOCIAL CARE,CONTACT PROFESSIONALS,399,SPECIALIST CARE,SECTION 17 PAYMENTS TO AGENCIES/CARERS,2103142427,1000057263
09.09.2020,ADULT SOCIAL CARE,CONTACT PROFESSIONALS,399,SPECIALIST CARE,SECTION 17 PAYMENTS TO AGENCIES/CARERS,2103142489,1000057263
09.09.2020,ADULT SOCIAL CARE,HCP STAFFING SERVICES LTD,298.15,SPECIALIST CARE,SECTION 17 PAYMENTS TO AGENCIES/CARERS,2103141620,1000078329
09.09.2020,ADULT SOCIAL CARE,MOUNT CARMEL LTD,"2,310.00",SUB LTS 18-64,PLACEMENTS - REHAB,2103142562,11184946
09.09.2020,ADULT SOCIAL CARE,KAIROS COMMUNITY TRUST,"3,840.00",SUB LTS 18-64,PLACEMENTS - REHAB,2103142560,1000025479
09.09.2020,CHIEF EXECUTIVE'S OFFICE,BIO BLAST LTD,"5,000.00",SOUTHWARK PIONEER FUND,GRANTS,5902431996,1000084105
09.09.2020,CHILDREN'S SERVICES,REDACTED PERSONAL DATA,465.52,ADOPTION ALLOWANCES,PAYMENTS TO CARERS,REDACTED,REDACTED
09.09.2020,CHILDREN'S SERVICES,REDACTED PERSONAL DATA,559.06,ADOPTION ALLOWANCES,PAYMENTS TO CARERS,REDACTED,REDACTED
09.09.2020,CHILDREN'S SERVICES,REDACTED PERSONAL DATA,375.54,ADOPTION ALLOWANCES,PAYMENTS TO CARERS,REDACTED,REDACTED
09.09.2020,CHILDREN'S SERVICES,REDACTED PERSONAL DATA,375.54,ADOPTION ALLOWANCES,PAYMENTS TO CARERS,REDACTED,REDACTED
09.09.2020,CHILDREN'S SERVICES,REDACTED PERSONAL DATA,500,ADOPTION ALLOWANCES,PAYMENTS TO CARERS,REDACTED,REDACTED
09.09.2020,CHILDREN'S SERVICES,REDACTED PERSONAL DATA,635.34,ADOPTION ALLOWANCES,PAYMENTS TO CARERS,REDACTED,REDACTED
09.09.2020,CHILDREN'S SERVICES,REDACTED PERSONAL DATA,375.54,ADOPTION ALLOWANCES,PAYMENTS TO CARERS,REDACTED,REDACTED
09.09.2020,CHILDREN'S SERVICES,REDACTED PERSONAL DATA,653.06,ADOPTION ALLOWANCES,PAYMENTS TO CARERS,REDACTED,REDACTED
09.09.2020,CHILDREN'S SERVICES,REDACTED PERSONAL DATA,399.03,ADOPTION ALLOWANCES,PAYMENTS TO CARERS,REDACTED,REDACTED
09.09.2020,CHILDREN'S SERVICES,REDACTED PERSONAL DATA,465.54,ADOPTION ALLOWANCES,PAYMENTS TO CARERS,REDACTED,REDACTED
09.09.2020,CHILDREN'S SERVICES,REDACTED PERSONAL DATA,400.84,ADOPTION ALLOWANCES,PAYMENTS TO CARERS,REDACTED,REDACTED
09.09.2020,CHILDREN'S SERVICES,REDACTED PERSONAL DATA,375.54,ADOPTION ALLOWANCES,PAYMENTS TO CARERS,REDACTED,REDACTED
09.09.2020,CHILDREN'S SERVICES,REDACTED PERSONAL DATA,451.8,ADOPTION ALLOWANCES,PAYMENTS TO CARERS,REDACTED,REDACTED
09.09.2020,CHILDREN'S SERVICES,REDACTED PERSONAL DATA,359.44,ADOPTION ALLOWANCES,PAYMENTS TO CARERS,REDACTED,REDACTED
09.09.2020,CHILDREN'S SERVICES,REDACTED PERSONAL DATA,319.36,ADOPTION ALLOWANCES,PAYMENTS TO CARERS,REDACTED,REDACTED
09.09.2020,CHILDREN'S SERVICES,REDACTED PERSONAL DATA,465.48,ADOPTION ALLOWANCES,PAYMENTS TO CARERS,REDACTED,REDACTED
09.09.2020,CHILDREN'S SERVICES,REDACTED PERSONAL DATA,386,ADOPTION ALLOWANCES,PAYMENTS TO CARERS,REDACTED,REDACTED
09.09.2020,CHILDREN'S SERVICES,REDACTED PERSONAL DATA,465.54,ADOPTION ALLOWANCES,PAYMENTS TO CARERS,REDACTED,REDACTED
09.09.2020,CHILDREN'S SERVICES,REDACTED PERSONAL DATA,255.22,ADOPTION ALLOWANCES,PAYMENTS TO CARERS,REDACTED,REDACTED
09.09.2020,CHILDREN'S SERVICES,REDACTED PERSONAL DATA,269.22,ADOPTION ALLOWANCES,PAYMENTS TO CARERS,REDACTED,REDACTED
09.09.2020,CHILDREN'S SERVICES,REDACTED PERSONAL DATA,705.24,ADOPTION ALLOWANCES,PAYMENTS TO CARERS,REDACTED,REDACTED
09.09.2020,CHILDREN'S SERVICES,REDACTED PERSONAL DATA,777.36,ADOPTION ALLOWANCES,PAYMENTS TO CARERS,REDACTED,REDACTED
09.09.2020,CHILDREN'S SERVICES,REDACTED PERSONAL DATA,512.02,ADOPTION ALLOWANCES,PAYMENTS TO CARERS,REDACTED,REDACTED
09.09.2020,CHILDREN'S SERVICES,REDACTED PERSONAL DATA,717.14,ADOPTION ALLOWANCES,PAYMENTS TO CARERS,REDACTED,REDACTED
09.09.2020,CHILDREN'S SERVICES,REDACTED PERSONAL DATA,251.12,ADOPTION ALLOWANCES,PAYMENTS TO CARERS,REDACTED,REDACTED
09.09.2020,CHILDREN'S SERVICES,REDACTED PERSONAL DATA,375.54,ADOPTION ALLOWANCES,PAYMENTS TO CARERS,REDACTED,REDACTED
09.09.2020,CHILDREN'S SERVICES,REDACTED PERSONAL DATA,375.54,ADOPTION ALLOWANCES,PAYMENTS TO CARERS,REDACTED,REDACTED
09.09.2020,CHILDREN'S SERVICES,REDACTED PERSONAL DATA,457.14,ADOPTION ALLOWANCES,PAYMENTS TO CARERS,REDACTED,REDACTED
09.09.2020,CHILDREN'S SERVICES,REDACTED PERSONAL DATA,502,ADOPTION ALLOWANCES,PAYMENTS TO CARERS,REDACTED,REDACTED
09.09.2020,CHILDREN'S SERVICES,REDACTED PERSONAL DATA,375.54,ADOPTION ALLOWANCES,PAYMENTS TO CARERS,REDACTED,REDACTED
09.09.2020,CHILDREN'S SERVICES,REDACTED PERSONAL DATA,640.9,ADOPTION ALLOWANCES,PAYMENTS TO CARERS,REDACTED,REDACTED
09.09.2020,CHILDREN'S SERVICES,REDACTED PERSONAL DATA,382.3,ADOPTION ALLOWANCES,PAYMENTS TO CARERS,REDACTED,REDACTED
09.09.2020,CHILDREN'S SERVICES,REDACTED PERSONAL DATA,382.3,ADOPTION ALLOWANCES,PAYMENTS TO CARERS,REDACTED,REDACTED
09.09.2020,CHILDREN'S SERVICES,REDACTED PERSONAL DATA,375.54,ADOPTION ALLOWANCES,PAYMENTS TO CARERS,REDACTED,REDACTED
09.09.2020,CHILDREN'S SERVICES,REDACTED PERSONAL DATA,623.94,ADOPTION ALLOWANCES,PAYMENTS TO CARERS,REDACTED,REDACTED
09.09.2020,CHILDREN'S SERVICES,REDACTED PERSONAL DATA,278.54,ADOPTION ALLOWANCES,PAYMENTS TO CARERS,REDACTED,REDACTED
09.09.2020,CHILDREN'S SERVICES,REDACTED PERSONAL DATA,485.22,ADOPTION ALLOWANCES,PAYMENTS TO CARERS,REDACTED,REDACTED
09.09.2020,CHILDREN'S SERVICES,REDACTED PERSONAL DATA,368.52,ADOPTION ALLOWANCES,PAYMENTS TO CARERS,REDACTED,REDACTED
09.09.2020,CHILDREN'S SERVICES,REDACTED PERSONAL DATA,252.9,ADOPTION ALLOWANCES,PAYMENTS TO CARERS,REDACTED,REDACTED
09.09.2020,CHILDREN'S SERVICES,REDACTED PERSONAL DATA,253.56,ADOPTION ALLOWANCES,PAYMENTS TO CARERS,REDACTED,REDACTED
09.09.2020,CHILDREN'S SERVICES,REDACTED PERSONAL DATA,382.3,ADOPTION ALLOWANCES,PAYMENTS TO CARERS,REDACTED,REDACTED
09.09.2020,CHILDREN'S SERVICES,REDACTED PERSONAL DATA,382.3,ADOPTION ALLOWANCES,PAYMENTS TO CARERS,REDACTED,REDACTED
09.09.2020,CHILDREN'S SERVICES,REDACTED PERSONAL DATA,351.42,ADOPTION ALLOWANCES,PAYMENTS TO CARERS,REDACTED,REDACTED
09.09.2020,CHILDREN'S SERVICES,REDACTED PERSONAL DATA,484.92,ADOPTION ALLOWANCES,PAYMENTS TO CARERS,REDACTED,REDACTED
09.09.2020,CHILDREN'S SERVICES,REDACTED PERSONAL DATA,530,ADOPTION ALLOWANCES,PAYMENTS TO CARERS,REDACTED,REDACTED
09.09.2020,CHILDREN'S SERVICES,REDACTED PERSONAL DATA,908,ADOPTION ALLOWANCES,PAYMENTS TO CARERS,REDACTED,REDACTED
09.09.2020,CHILDREN'S SERVICES,REDACTED PERSONAL DATA,738.32,ADOPTION ALLOWANCES,PAYMENTS TO CARERS,REDACTED,REDACTED
09.09.2020,CHILDREN'S SERVICES,REDACTED PERSONAL DATA,695.12,ADOPTION ALLOWANCES,PAYMENTS TO CARERS,REDACTED,REDACTED
09.09.2020,CHILDREN'S SERVICES,REDACTED PERSONAL DATA,293.98,ADOPTION ALLOWANCES,PAYMENTS TO CARERS,REDACTED,REDACTED
09.09.2020,CHILDREN'S SERVICES,REDACTED PERSONAL DATA,251.94,ADOPTION ALLOWANCES,PAYMENTS TO CARERS,REDACTED,REDACTED
09.09.2020,CHILDREN'S SERVICES,REDACTED PERSONAL DATA,652.9,ADOPTION ALLOWANCES,PAYMENTS TO CARERS,REDACTED,REDACTED
09.09.2020,CHILDREN'S SERVICES,REDACTED PERSONAL DATA,652.9,ADOPTION ALLOWANCES,PAYMENTS TO CARERS,REDACTED,REDACTED
09.09.2020,CHILDREN'S SERVICES,REDACTED PERSONAL DATA,712.3,ADOPTION ALLOWANCES,PAYMENTS TO CARERS,REDACTED,REDACTED
09.09.2020,CHILDREN'S SERVICES,REDACTED PERSONAL DATA,767.68,ADOPTION ALLOWANCES,PAYMENTS TO CARERS,REDACTED,REDACTED
09.09.2020,CHILDREN'S SERVICES,REDACTED PERSONAL DATA,510.96,ADOPTION ALLOWANCES,PAYMENTS TO CARERS,REDACTED,REDACTED
09.09.2020,CHILDREN'S SERVICES,REDACTED PERSONAL DATA,682.3,ADOPTION ALLOWANCES,PAYMENTS TO CARERS,REDACTED,REDACTED
09.09.2020,CHILDREN'S SERVICES,REDACTED PERSONAL DATA,682.3,ADOPTION ALLOWANCES,PAYMENTS TO CARERS,REDACTED,REDACTED
09.09.2020,CHILDREN'S SERVICES,REDACTED PERSONAL DATA,588.42,ADOPTION ALLOWANCES,PAYMENTS TO CARERS,REDACTED,REDACTED
09.09.2020,CHILDREN'S SERVICES,REDACTED PERSONAL DATA,"1,053.20",ADOPTION ALLOWANCES,PAYMENTS TO CARERS,REDACTED,REDACTED
09.09.2020,CHILDREN'S SERVICES,REDACTED PERSONAL DATA,660,ADOPTION ALLOWANCES,PAYMENTS TO CARERS,REDACTED,REDACTED
09.09.2020,CHILDREN'S SERVICES,REDACTED PERSONAL DATA,386,ADOPTION ALLOWANCES,PAYMENTS TO CARERS,REDACTED,REDACTED
09.09.2020,CHILDREN'S SERVICES,REDACTED PERSONAL DATA,618.6,ADOPTION ALLOWANCES,PAYMENTS TO CARERS,REDACTED,REDACTED
09.09.2020,CHILDREN'S SERVICES,REDACTED PERSONAL DATA,660,ADOPTION ALLOWANCES,PAYMENTS TO CARERS,REDACTED,REDACTED
09.09.2020,CHILDREN'S SERVICES,AIDHOUR LIMITED,"4,452.50",ASSISSTANT DIRECTOR (CHILDREN),PROFESSIONAL FEES,5902431987,1000057345
09.09.2020,CHILDREN'S SERVICES,CASTOR & POLLUX LTD,"1,700.00",C&F GENERAL TRAINING,TRAINING,5902431908,1000079633
09.09.2020,CHILDREN'S SERVICES,JAGGED EDGE ACADEMY LTD,"2,164.17",CARE LEAVERS SERVICES 16+,OTHER PAYMENTS FOR CLIENTS,5902431869,1000085432
09.09.2020,CHILDREN'S SERVICES,DURHAM COUNTY COUNCIL,"32,705.00",CHILDREN�S RESID,EXTERNAL AGENCIES AND BODIES,2103141610,1000023294
09.09.2020,CHILDREN'S SERVICES,YOUNG FOUNDATIONS LTD,"20,760.00",CHILDREN�S RESID,EXTERNAL AGENCIES AND BODIES,2103142602,1000083666
09.09.2020,CHILDREN'S SERVICES,YOUNG FOUNDATIONS LTD,"21,452.00",CHILDREN�S RESID,EXTERNAL AGENCIES AND BODIES,2103142601,1000083666
09.09.2020,CHILDREN'S SERVICES,OWNLIFE RESIDENTIAL LTD,"18,600.00",CHILDREN�S RESID,RESIDENTIAL CARE,2103141611,1000085398
09.09.2020,CHILDREN'S SERVICES,OWNLIFE RESIDENTIAL LTD,"18,600.00",CHILDREN�S RESID,RESIDENTIAL CARE,2103141614,1000085398
09.09.2020,CHILDREN'S SERVICES,OWNLIFE RESIDENTIAL LTD,"18,600.00",CHILDREN�S RESID,RESIDENTIAL CARE,2103141615,1000085398
09.09.2020,CHILDREN'S SERVICES,JOHANNA KOSTER,420,CLINICAL SERVICE,PROFESSIONAL FEES,5902431880,1000084452
09.09.2020,CHILDREN'S SERVICES,JOHANNA KOSTER,455,CLINICAL SERVICE,PROFESSIONAL FEES,5902431879,1000084452
09.09.2020,CHILDREN'S SERVICES,REDACTED PERSONAL DATA,300,DISABILITY & HIV,ADDITIONAL PAYMENTS TO AGENCIES/CARERS,REDACTED,REDACTED
09.09.2020,CHILDREN'S SERVICES,REDACTED PERSONAL DATA,400,DISABILITY & HIV,ADDITIONAL PAYMENTS TO AGENCIES/CARERS,REDACTED,REDACTED
09.09.2020,CHILDREN'S SERVICES,REDACTED PERSONAL DATA,400,DISABILITY & HIV,ADDITIONAL PAYMENTS TO AGENCIES/CARERS,REDACTED,REDACTED
09.09.2020,CHILDREN'S SERVICES,REDACTED PERSONAL DATA,868.86,DISABILITY & HIV,PAYMENTS TO CARERS,REDACTED,REDACTED
09.09.2020,CHILDREN'S SERVICES,REDACTED PERSONAL DATA,989.43,DISABILITY & HIV,PAYMENTS TO CARERS,REDACTED,REDACTED
09.09.2020,CHILDREN'S SERVICES,REDACTED PERSONAL DATA,"1,014.00",DISABILITY & HIV,PAYMENTS TO CARERS,REDACTED,REDACTED
09.09.2020,CHILDREN'S SERVICES,REDACTED PERSONAL DATA,"1,014.00",DISABILITY & HIV,PAYMENTS TO CARERS,REDACTED,REDACTED
09.09.2020,CHILDREN'S SERVICES,REDACTED PERSONAL DATA,"1,042.00",DISABILITY & HIV,PAYMENTS TO CARERS,REDACTED,REDACTED
09.09.2020,CHILDREN'S SERVICES,REDACTED PERSONAL DATA,957.43,DISABILITY & HIV,PAYMENTS TO CARERS,REDACTED,REDACTED
09.09.2020,CHILDREN'S SERVICES,REDACTED PERSONAL DATA,989.43,DISABILITY & HIV,PAYMENTS TO CARERS,REDACTED,REDACTED
09.09.2020,CHILDREN'S SERVICES,REDACTED PERSONAL DATA,"1,100.86",DISABILITY & HIV,PAYMENTS TO CARERS,REDACTED,REDACTED
09.09.2020,CHILDREN'S SERVICES,REDACTED PERSONAL DATA,524.85,DISABILITY & HIV,PAYMENTS TO CARERS,REDACTED,REDACTED
09.09.2020,CHILDREN'S SERVICES,REDACTED PERSONAL DATA,"1,086.86",DISABILITY & HIV,PAYMENTS TO CARERS,REDACTED,REDACTED
09.09.2020,CHILDREN'S SERVICES,REDACTED PERSONAL DATA,"1,014.00",DISABILITY & HIV,PAYMENTS TO CARERS,REDACTED,REDACTED
09.09.2020,CHILDREN'S SERVICES,REDACTED PERSONAL DATA,-728.57,DISABILITY & HIV,PAYMENTS TO CARERS,REDACTED,REDACTED
09.09.2020,CHILDREN'S SERVICES,REDACTED PERSONAL DATA,932,DISABILITY & HIV,PAYMENTS TO CARERS,REDACTED,REDACTED
09.09.2020,CHILDREN'S SERVICES,REDACTED PERSONAL DATA,"1,046.00",DISABILITY & HIV,PAYMENTS TO CARERS,REDACTED,REDACTED
09.09.2020,CHILDREN'S SERVICES,REDACTED PERSONAL DATA,"1,700.00",DISABILITY & HIV,PAYMENTS TO CARERS,REDACTED,REDACTED
09.09.2020,CHILDREN'S SERVICES,REDACTED PERSONAL DATA,989.43,DISABILITY & HIV,PAYMENTS TO CARERS,REDACTED,REDACTED
09.09.2020,CHILDREN'S SERVICES,REDACTED PERSONAL DATA,989.43,DISABILITY & HIV,PAYMENTS TO CARERS,REDACTED,REDACTED
09.09.2020,CHILDREN'S SERVICES,REDACTED PERSONAL DATA,"1,046.00",DISABILITY & HIV,PAYMENTS TO CARERS,REDACTED,REDACTED
09.09.2020,CHILDREN'S SERVICES,REDACTED PERSONAL DATA,924.2,DISABILITY & HIV,PAYMENTS TO CARERS,REDACTED,REDACTED
09.09.2020,CHILDREN'S SERVICES,REDACTED PERSONAL DATA,712.3,DISABILITY & HIV,PAYMENTS TO CARERS,REDACTED,REDACTED
09.09.2020,CHILDREN'S SERVICES,REDACTED PERSONAL DATA,957.43,DISABILITY & HIV,PAYMENTS TO CARERS,REDACTED,REDACTED
09.09.2020,CHILDREN'S SERVICES,REDACTED PERSONAL DATA,959.43,DISABILITY & HIV,PAYMENTS TO CARERS,REDACTED,REDACTED
09.09.2020,CHILDREN'S SERVICES,REDACTED PERSONAL DATA,868.86,DISABILITY & HIV,PAYMENTS TO CARERS,REDACTED,REDACTED
09.09.2020,CHILDREN'S SERVICES,REDACTED PERSONAL DATA,868.86,DISABILITY & HIV,PAYMENTS TO CARERS,REDACTED,REDACTED
09.09.2020,CHILDREN'S SERVICES,REDACTED PERSONAL DATA,989.43,DISABILITY & HIV,PAYMENTS TO CARERS,REDACTED,REDACTED
09.09.2020,CHILDREN'S SERVICES,REDACTED PERSONAL DATA,989.43,DISABILITY & HIV,PAYMENTS TO CARERS,REDACTED,REDACTED
09.09.2020,CHILDREN'S SERVICES,REDACTED PERSONAL DATA,"1,104.00",DISABILITY & HIV,PAYMENTS TO CARERS,REDACTED,REDACTED
09.09.2020,CHILDREN'S SERVICES,REDACTED PERSONAL DATA,"1,104.00",DISABILITY & HIV,PAYMENTS TO CARERS,REDACTED,REDACTED
09.09.2020,CHILDREN'S SERVICES,REDACTED PERSONAL DATA,989.43,DISABILITY & HIV,PAYMENTS TO CARERS,REDACTED,REDACTED
09.09.2020,CHILDREN'S SERVICES,REDACTED PERSONAL DATA,"1,014.00",DISABILITY & HIV,PAYMENTS TO CARERS,REDACTED,REDACTED
09.09.2020,CHILDREN'S SERVICES,REDACTED PERSONAL DATA,899.43,DISABILITY & HIV,PAYMENTS TO CARERS,REDACTED,REDACTED
09.09.2020,CHILDREN'S SERVICES,REDACTED PERSONAL DATA,999,DISABILITY & HIV,PAYMENTS TO CARERS,REDACTED,REDACTED
09.09.2020,CHILDREN'S SERVICES,REDACTED PERSONAL DATA,"1,014.01",DISABILITY & HIV,PAYMENTS TO CARERS,REDACTED,REDACTED
09.09.2020,CHILDREN'S SERVICES,REDACTED PERSONAL DATA,"1,014.00",DISABILITY & HIV,PAYMENTS TO CARERS,REDACTED,REDACTED
09.09.2020,CHILDREN'S SERVICES,REDACTED PERSONAL DATA,"1,014.00",DISABILITY & HIV,PAYMENTS TO CARERS,REDACTED,REDACTED
09.09.2020,CHILDREN'S SERVICES,REDACTED PERSONAL DATA,989.43,DISABILITY & HIV,PAYMENTS TO CARERS,REDACTED,REDACTED
09.09.2020,CHILDREN'S SERVICES,REDACTED PERSONAL DATA,"1,104.00",DISABILITY & HIV,PAYMENTS TO CARERS,REDACTED,REDACTED
09.09.2020,CHILDREN'S SERVICES,REDACTED PERSONAL DATA,"2,635.29",DISABILITY & HIV,PAYMENTS TO CARERS,REDACTED,REDACTED
09.09.2020,CHILDREN'S SERVICES,REDACTED PERSONAL DATA,"1,159.43",DISABILITY & HIV,PAYMENTS TO CARERS,REDACTED,REDACTED
09.09.2020,CHILDREN'S SERVICES,REDACTED PERSONAL DATA,"1,014.00",DISABILITY & HIV,PAYMENTS TO CARERS,REDACTED,REDACTED
09.09.2020,CHILDREN'S SERVICES,REDACTED PERSONAL DATA,"1,014.00",DISABILITY & HIV,PAYMENTS TO CARERS,REDACTED,REDACTED
09.09.2020,CHILDREN'S SERVICES,REDACTED PERSONAL DATA,660,DISABILITY & HIV,PAYMENTS TO CARERS,REDACTED,REDACTED
09.09.2020,CHILDREN'S SERVICES,REDACTED PERSONAL DATA,989.43,DISABILITY & HIV,PAYMENTS TO CARERS,REDACTED,REDACTED
09.09.2020,CHILDREN'S SERVICES,REDACTED PERSONAL DATA,989.43,DISABILITY & HIV,PAYMENTS TO CARERS,REDACTED,REDACTED
09.09.2020,CHILDREN'S SERVICES,REDACTED PERSONAL DATA,"1,014.00",DISABILITY & HIV,PAYMENTS TO CARERS,REDACTED,REDACTED
09.09.2020,CHILDREN'S SERVICES,REDACTED PERSONAL DATA,"1,087.15",DISABILITY & HIV,PAYMENTS TO CARERS,REDACTED,REDACTED
09.09.2020,CHILDREN'S SERVICES,REDACTED PERSONAL DATA,818.85,DISABILITY & HIV,PAYMENTS TO CARERS,REDACTED,REDACTED
09.09.2020,CHILDREN'S SERVICES,REDACTED PERSONAL DATA,989.43,DISABILITY & HIV,PAYMENTS TO CARERS,REDACTED,REDACTED
09.09.2020,CHILDREN'S SERVICES,REDACTED PERSONAL DATA,989.43,DISABILITY & HIV,PAYMENTS TO CARERS,REDACTED,REDACTED
09.09.2020,CHILDREN'S SERVICES,REDACTED PERSONAL DATA,"1,044.00",DISABILITY & HIV,PAYMENTS TO CARERS,REDACTED,REDACTED
09.09.2020,CHILDREN'S SERVICES,REDACTED PERSONAL DATA,"1,044.00",DISABILITY & HIV,PAYMENTS TO CARERS,REDACTED,REDACTED
09.09.2020,CHILDREN'S SERVICES,REDACTED PERSONAL DATA,-407,DISABILITY & HIV,PAYMENTS TO CARERS,REDACTED,REDACTED
09.09.2020,CHILDREN'S SERVICES,REDACTED PERSONAL DATA,"1,014.00",DISABILITY & HIV,PAYMENTS TO CARERS,REDACTED,REDACTED
09.09.2020,CHILDREN'S SERVICES,REDACTED PERSONAL DATA,"1,721.72",DISABILITY & HIV,PAYMENTS TO CARERS,REDACTED,REDACTED
09.09.2020,CHILDREN'S SERVICES,REDACTED PERSONAL DATA,868.86,DISABILITY & HIV,PAYMENTS TO CARERS,REDACTED,REDACTED
09.09.2020,CHILDREN'S SERVICES,REDACTED PERSONAL DATA,"1,094.60",DISABILITY & HIV,PAYMENTS TO CARERS,REDACTED,REDACTED
09.09.2020,CHILDREN'S SERVICES,REDACTED PERSONAL DATA,865.14,DISABILITY & HIV,PAYMENTS TO CARERS,REDACTED,REDACTED
09.09.2020,CHILDREN'S SERVICES,REDACTED PERSONAL DATA,865.14,DISABILITY & HIV,PAYMENTS TO CARERS,REDACTED,REDACTED
09.09.2020,CHILDREN'S SERVICES,REDACTED PERSONAL DATA,798.85,DISABILITY & HIV,PAYMENTS TO CARERS,REDACTED,REDACTED
09.09.2020,CHILDREN'S SERVICES,REDACTED PERSONAL DATA,989.43,DISABILITY & HIV,PAYMENTS TO CARERS,REDACTED,REDACTED
09.09.2020,CHILDREN'S SERVICES,REDACTED PERSONAL DATA,989.43,DISABILITY & HIV,PAYMENTS TO CARERS,REDACTED,REDACTED
09.09.2020,CHILDREN'S SERVICES,REDACTED PERSONAL DATA,868.85,DISABILITY & HIV,PAYMENTS TO CARERS,REDACTED,REDACTED
09.09.2020,CHILDREN'S SERVICES,REDACTED PERSONAL DATA,868.86,DISABILITY & HIV,PAYMENTS TO CARERS,REDACTED,REDACTED
09.09.2020,CHILDREN'S SERVICES,REDACTED PERSONAL DATA,989.43,DISABILITY & HIV,PAYMENTS TO CARERS,REDACTED,REDACTED
09.09.2020,CHILDREN'S SERVICES,REDACTED PERSONAL DATA,"1,100.72",DISABILITY & HIV,PAYMENTS TO CARERS,REDACTED,REDACTED
09.09.2020,CHILDREN'S SERVICES,REDACTED PERSONAL DATA,818.85,DISABILITY & HIV,PAYMENTS TO CARERS,REDACTED,REDACTED
09.09.2020,CHILDREN'S SERVICES,REDACTED PERSONAL DATA,"1,044.00",DISABILITY & HIV,PAYMENTS TO CARERS,REDACTED,REDACTED
09.09.2020,CHILDREN'S SERVICES,REDACTED PERSONAL DATA,"1,632.00",DISABILITY & HIV,PAYMENTS TO CARERS,REDACTED,REDACTED
09.09.2020,CHILDREN'S SERVICES,REDACTED PERSONAL DATA,989.43,DISABILITY & HIV,PAYMENTS TO CARERS,REDACTED,REDACTED
09.09.2020,CHILDREN'S SERVICES,REDACTED PERSONAL DATA,989.43,DISABILITY & HIV,PAYMENTS TO CARERS,REDACTED,REDACTED
09.09.2020,CHILDREN'S SERVICES,REDACTED PERSONAL DATA,"1,104.00",DISABILITY & HIV,PAYMENTS TO CARERS,REDACTED,REDACTED
09.09.2020,CHILDREN'S SERVICES,REDACTED PERSONAL DATA,989.43,DISABILITY & HIV,PAYMENTS TO CARERS,REDACTED,REDACTED
09.09.2020,CHILDREN'S SERVICES,REDACTED PERSONAL DATA,"1,014.00",DISABILITY & HIV,PAYMENTS TO CARERS,REDACTED,REDACTED
09.09.2020,CHILDREN'S SERVICES,REDACTED PERSONAL DATA,"-1,202.86",DISABILITY & HIV,PAYMENTS TO CARERS,REDACTED,REDACTED
09.09.2020,CHILDREN'S SERVICES,REDACTED PERSONAL DATA,842,DISABILITY & HIV,PAYMENTS TO CARERS,REDACTED,REDACTED
09.09.2020,CHILDREN'S SERVICES,REDACTED PERSONAL DATA,"1,014.00",DISABILITY & HIV,PAYMENTS TO CARERS,REDACTED,REDACTED
09.09.2020,CHILDREN'S SERVICES,REDACTED PERSONAL DATA,818.85,DISABILITY & HIV,PAYMENTS TO CARERS,REDACTED,REDACTED
09.09.2020,CHILDREN'S SERVICES,REDACTED PERSONAL DATA,989.43,DISABILITY & HIV,PAYMENTS TO CARERS,REDACTED,REDACTED
09.09.2020,CHILDREN'S SERVICES,REDACTED PERSONAL DATA,989.43,DISABILITY & HIV,PAYMENTS TO CARERS,REDACTED,REDACTED
09.09.2020,CHILDREN'S SERVICES,REDACTED PERSONAL DATA,989.43,DISABILITY & HIV,PAYMENTS TO CARERS,REDACTED,REDACTED
09.09.2020,CHILDREN'S SERVICES,REDACTED PERSONAL DATA,818.85,DISABILITY & HIV,PAYMENTS TO CARERS,REDACTED,REDACTED
09.09.2020,CHILDREN'S SERVICES,REDACTED PERSONAL DATA,989.43,DISABILITY & HIV,PAYMENTS TO CARERS,REDACTED,REDACTED
09.09.2020,CHILDREN'S SERVICES,REDACTED PERSONAL DATA,989.43,DISABILITY & HIV,PAYMENTS TO CARERS,REDACTED,REDACTED
09.09.2020,CHILDREN'S SERVICES,REDACTED PERSONAL DATA,989.43,DISABILITY & HIV,PAYMENTS TO CARERS,REDACTED,REDACTED
09.09.2020,CHILDREN'S SERVICES,REDACTED PERSONAL DATA,"1,014.00",DISABILITY & HIV,PAYMENTS TO CARERS,REDACTED,REDACTED
09.09.2020,CHILDREN'S SERVICES,REDACTED PERSONAL DATA,989.43,DISABILITY & HIV,PAYMENTS TO CARERS,REDACTED,REDACTED
09.09.2020,CHILDREN'S SERVICES,REDACTED PERSONAL DATA,"1,014.01",DISABILITY & HIV,PAYMENTS TO CARERS,REDACTED,REDACTED
09.09.2020,CHILDREN'S SERVICES,REDACTED PERSONAL DATA,"1,014.01",DISABILITY & HIV,PAYMENTS TO CARERS,REDACTED,REDACTED
09.09.2020,CHILDREN'S SERVICES,REDACTED PERSONAL DATA,905.43,DISABILITY & HIV,PAYMENTS TO CARERS,REDACTED,REDACTED
09.09.2020,CHILDREN'S SERVICES,REDACTED PERSONAL DATA,"1,014.00",DISABILITY & HIV,PAYMENTS TO CARERS,REDACTED,REDACTED
09.09.2020,CHILDREN'S SERVICES,REDACTED PERSONAL DATA,-271.58,DISABILITY & HIV,PAYMENTS TO CARERS,REDACTED,REDACTED
09.09.2020,CHILDREN'S SERVICES,REDACTED PERSONAL DATA,818.85,DISABILITY & HIV,PAYMENTS TO CARERS,REDACTED,REDACTED
09.09.2020,CHILDREN'S SERVICES,REDACTED PERSONAL DATA,818.85,DISABILITY & HIV,PAYMENTS TO CARERS,REDACTED,REDACTED
09.09.2020,CHILDREN'S SERVICES,REDACTED PERSONAL DATA,959.43,DISABILITY & HIV,PAYMENTS TO CARERS,REDACTED,REDACTED
09.09.2020,CHILDREN'S SERVICES,REDACTED PERSONAL DATA,989.43,DISABILITY & HIV,PAYMENTS TO CARERS,REDACTED,REDACTED
09.09.2020,CHILDREN'S SERVICES,REDACTED PERSONAL DATA,985.14,DISABILITY & HIV,PAYMENTS TO CARERS,REDACTED,REDACTED
09.09.2020,CHILDREN'S SERVICES,REDACTED PERSONAL DATA,"1,014.00",DISABILITY & HIV,PAYMENTS TO CARERS,REDACTED,REDACTED
09.09.2020,CHILDREN'S SERVICES,REDACTED PERSONAL DATA,895.14,DISABILITY & HIV,PAYMENTS TO CARERS,REDACTED,REDACTED
09.09.2020,CHILDREN'S SERVICES,REDACTED PERSONAL DATA,989.43,DISABILITY & HIV,PAYMENTS TO CARERS,REDACTED,REDACTED
09.09.2020,CHILDREN'S SERVICES,REDACTED PERSONAL DATA,788.85,DISABILITY & HIV,PAYMENTS TO CARERS,REDACTED,REDACTED
09.09.2020,CHILDREN'S SERVICES,REDACTED PERSONAL DATA,838.86,DISABILITY & HIV,PAYMENTS TO CARERS,REDACTED,REDACTED
09.09.2020,CHILDREN'S SERVICES,REDACTED PERSONAL DATA,818.85,DISABILITY & HIV,PAYMENTS TO CARERS,REDACTED,REDACTED
09.09.2020,CHILDREN'S SERVICES,REDACTED PERSONAL DATA,989.43,DISABILITY & HIV,PAYMENTS TO CARERS,REDACTED,REDACTED
09.09.2020,CHILDREN'S SERVICES,REDACTED PERSONAL DATA,989.43,DISABILITY & HIV,PAYMENTS TO CARERS,REDACTED,REDACTED
09.09.2020,CHILDREN'S SERVICES,REDACTED PERSONAL DATA,"1,589.43",DISABILITY & HIV,PAYMENTS TO CARERS,REDACTED,REDACTED
09.09.2020,CHILDREN'S SERVICES,REDACTED PERSONAL DATA,879.71,DISABILITY & HIV,PAYMENTS TO CARERS,REDACTED,REDACTED
09.09.2020,CHILDREN'S SERVICES,REDACTED PERSONAL DATA,957.43,DISABILITY & HIV,PAYMENTS TO CARERS,REDACTED,REDACTED
09.09.2020,CHILDREN'S SERVICES,REDACTED PERSONAL DATA,959.43,DISABILITY & HIV,PAYMENTS TO CARERS,REDACTED,REDACTED
09.09.2020,CHILDREN'S SERVICES,REDACTED PERSONAL DATA,818.85,DISABILITY & HIV,PAYMENTS TO CARERS,REDACTED,REDACTED
09.09.2020,CHILDREN'S SERVICES,REDACTED PERSONAL DATA,868.86,DISABILITY & HIV,PAYMENTS TO CARERS,REDACTED,REDACTED
09.09.2020,CHILDREN'S SERVICES,REDACTED PERSONAL DATA,989.43,DISABILITY & HIV,PAYMENTS TO CARERS,REDACTED,REDACTED
09.09.2020,CHILDREN'S SERVICES,REDACTED PERSONAL DATA,763.13,DISABILITY & HIV,PAYMENTS TO CARERS,REDACTED,REDACTED
09.09.2020,CHILDREN'S SERVICES,REDACTED PERSONAL DATA,973,DISABILITY & HIV,PAYMENTS TO CARERS,REDACTED,REDACTED
09.09.2020,CHILDREN'S SERVICES,REDACTED PERSONAL DATA,989.43,DISABILITY & HIV,PAYMENTS TO CARERS,REDACTED,REDACTED
09.09.2020,CHILDREN'S SERVICES,REDACTED PERSONAL DATA,959.43,DISABILITY & HIV,PAYMENTS TO CARERS,REDACTED,REDACTED
09.09.2020,CHILDREN'S SERVICES,REDACTED PERSONAL DATA,868.86,DISABILITY & HIV,PAYMENTS TO CARERS,REDACTED,REDACTED
09.09.2020,CHILDREN'S SERVICES,REDACTED PERSONAL DATA,989.43,DISABILITY & HIV,PAYMENTS TO CARERS,REDACTED,REDACTED
09.09.2020,CHILDREN'S SERVICES,REDACTED PERSONAL DATA,989.43,DISABILITY & HIV,PAYMENTS TO CARERS,REDACTED,REDACTED
09.09.2020,CHILDREN'S SERVICES,REDACTED PERSONAL DATA,959.43,DISABILITY & HIV,PAYMENTS TO CARERS,REDACTED,REDACTED
09.09.2020,CHILDREN'S SERVICES,REDACTED PERSONAL DATA,959.43,DISABILITY & HIV,PAYMENTS TO CARERS,REDACTED,REDACTED
09.09.2020,CHILDREN'S SERVICES,REDACTED PERSONAL DATA,959.43,DISABILITY & HIV,PAYMENTS TO CARERS,REDACTED,REDACTED
09.09.2020,CHILDREN'S SERVICES,REDACTED PERSONAL DATA,838.86,DISABILITY & HIV,PAYMENTS TO CARERS,REDACTED,REDACTED
09.09.2020,CHILDREN'S SERVICES,REDACTED PERSONAL DATA,"1,014.00",DISABILITY & HIV,PAYMENTS TO CARERS,REDACTED,REDACTED
09.09.2020,CHILDREN'S SERVICES,REDACTED PERSONAL DATA,"1,033.71",DISABILITY & HIV,PAYMENTS TO CARERS,REDACTED,REDACTED
09.09.2020,CHILDREN'S SERVICES,REDACTED PERSONAL DATA,838.86,DISABILITY & HIV,PAYMENTS TO CARERS,REDACTED,REDACTED
09.09.2020,CHILDREN'S SERVICES,REDACTED PERSONAL DATA,838.86,DISABILITY & HIV,PAYMENTS TO CARERS,REDACTED,REDACTED
09.09.2020,CHILDREN'S SERVICES,REDACTED PERSONAL DATA,"1,600.00",DISABILITY & HIV,PAYMENTS TO CARERS,REDACTED,REDACTED
09.09.2020,CHILDREN'S SERVICES,REDACTED PERSONAL DATA,776.08,DISABILITY & HIV,PAYMENTS TO CARERS,REDACTED,REDACTED
09.09.2020,CHILDREN'S SERVICES,REDACTED PERSONAL DATA,"1,014.00",DISABILITY & HIV,PAYMENTS TO CARERS,REDACTED,REDACTED
09.09.2020,CHILDREN'S SERVICES,REDACTED PERSONAL DATA,"1,088.29",DISABILITY & HIV,PAYMENTS TO CARERS,REDACTED,REDACTED
09.09.2020,CHILDREN'S SERVICES,REDACTED PERSONAL DATA,818.85,DISABILITY & HIV,PAYMENTS TO CARERS,REDACTED,REDACTED
09.09.2020,CHILDREN'S SERVICES,REDACTED PERSONAL DATA,953.43,DISABILITY & HIV,PAYMENTS TO CARERS,REDACTED,REDACTED
09.09.2020,CHILDREN'S SERVICES,REDACTED PERSONAL DATA,782.43,DISABILITY & HIV,PAYMENTS TO CARERS,REDACTED,REDACTED
09.09.2020,CHILDREN'S SERVICES,REDACTED PERSONAL DATA,832.43,DISABILITY & HIV,PAYMENTS TO CARERS,REDACTED,REDACTED
09.09.2020,CHILDREN'S SERVICES,REDACTED PERSONAL DATA,818.85,DISABILITY & HIV,PAYMENTS TO CARERS,REDACTED,REDACTED
09.09.2020,CHILDREN'S SERVICES,REDACTED PERSONAL DATA,957.43,DISABILITY & HIV,PAYMENTS TO CARERS,REDACTED,REDACTED
09.09.2020,CHILDREN'S SERVICES,REDACTED PERSONAL DATA,989.43,DISABILITY & HIV,PAYMENTS TO CARERS,REDACTED,REDACTED
09.09.2020,CHILDREN'S SERVICES,REDACTED PERSONAL DATA,782.43,DISABILITY & HIV,PAYMENTS TO CARERS,REDACTED,REDACTED
09.09.2020,CHILDREN'S SERVICES,REDACTED PERSONAL DATA,957.43,DISABILITY & HIV,PAYMENTS TO CARERS,REDACTED,REDACTED
09.09.2020,CHILDREN'S SERVICES,REDACTED PERSONAL DATA,"1,571.43",DISABILITY & HIV,PAYMENTS TO CARERS,REDACTED,REDACTED
09.09.2020,CHILDREN'S SERVICES,REDACTED PERSONAL DATA,"1,014.00",DISABILITY & HIV,PAYMENTS TO CARERS,REDACTED,REDACTED
09.09.2020,CHILDREN'S SERVICES,REDACTED PERSONAL DATA,868.86,DISABILITY & HIV,PAYMENTS TO CARERS,REDACTED,REDACTED
09.09.2020,CHILDREN'S SERVICES,REDACTED PERSONAL DATA,868.86,DISABILITY & HIV,PAYMENTS TO CARERS,REDACTED,REDACTED
09.09.2020,CHILDREN'S SERVICES,REDACTED PERSONAL DATA,803.14,DISABILITY & HIV,PAYMENTS TO CARERS,REDACTED,REDACTED
09.09.2020,CHILDREN'S SERVICES,REDACTED PERSONAL DATA,"1,014.00",DISABILITY & HIV,PAYMENTS TO CARERS,REDACTED,REDACTED
09.09.2020,CHILDREN'S SERVICES,REDACTED PERSONAL DATA,"3,362.86",DISABILITY & HIV,PAYMENTS TO CARERS,REDACTED,REDACTED
09.09.2020,CHILDREN'S SERVICES,REDACTED PERSONAL DATA,959.43,DISABILITY & HIV,PAYMENTS TO CARERS,REDACTED,REDACTED
09.09.2020,CHILDREN'S SERVICES,REDACTED PERSONAL DATA,957.43,DISABILITY & HIV,PAYMENTS TO CARERS,REDACTED,REDACTED
09.09.2020,CHILDREN'S SERVICES,REDACTED PERSONAL DATA,838.86,DISABILITY & HIV,PAYMENTS TO CARERS,REDACTED,REDACTED
09.09.2020,CHILDREN'S SERVICES,REDACTED PERSONAL DATA,909.71,DISABILITY & HIV,PAYMENTS TO CARERS,REDACTED,REDACTED
09.09.2020,CHILDREN'S SERVICES,REDACTED PERSONAL DATA,788.85,DISABILITY & HIV,PAYMENTS TO CARERS,REDACTED,REDACTED
09.09.2020,CHILDREN'S SERVICES,WILLISPALMER,"6,600.00",FAMILY ASSESS RESID,RESIDENTIAL CARE,5902432069,1000056409
09.09.2020,CHILDREN'S SERVICES,BLERINA TAHIRAJ-PRITCHARD,"1,460.42",FAMILY GROUP CONF�S,PROFESSIONAL FEES,5902431921,1000083304
09.09.2020,CHILDREN'S SERVICES,HERA SOCIAL CARE LTD,312,FAMILY GROUP CONF�S,PROFESSIONAL FEES,5902431918,1000084935
09.09.2020,CHILDREN'S SERVICES,REDACTED PERSONAL DATA,389.35,FAMILY GROUP CONF�S,PROFESSIONAL FEES,REDACTED,REDACTED
09.09.2020,CHILDREN'S SERVICES,REDACTED PERSONAL DATA,502.66,FAMILY GROUP CONF�S,PROFESSIONAL FEES,REDACTED,REDACTED
09.09.2020,CHILDREN'S SERVICES,BANYA FAMILY PLACEMENT AGENCY LTD,"3,607.47",FRIENDS & FAMILY FOSTERING,EXTERNAL AGENCIES AND BODIES,2103141641,11328315
09.09.2020,CHILDREN'S SERVICES,BANYA FAMILY PLACEMENT AGENCY LTD,"3,929.87",FRIENDS & FAMILY FOSTERING,EXTERNAL AGENCIES AND BODIES,2103141639,11328315
09.09.2020,CHILDREN'S SERVICES,BANYA FAMILY PLACEMENT AGENCY LTD,"3,929.87",FRIENDS & FAMILY FOSTERING,EXTERNAL AGENCIES AND BODIES,2103141643,11328315
09.09.2020,CHILDREN'S SERVICES,BANYA FAMILY PLACEMENT AGENCY LTD,"3,929.87",FRIENDS & FAMILY FOSTERING,EXTERNAL AGENCIES AND BODIES,2103141646,11328315
09.09.2020,CHILDREN'S SERVICES,BANYA FAMILY PLACEMENT AGENCY LTD,"4,509.26",FRIENDS & FAMILY FOSTERING,EXTERNAL AGENCIES AND BODIES,2103141640,11328315
09.09.2020,CHILDREN'S SERVICES,BANYA FAMILY PLACEMENT AGENCY LTD,"4,509.26",FRIENDS & FAMILY FOSTERING,EXTERNAL AGENCIES AND BODIES,2103141645,11328315
09.09.2020,CHILDREN'S SERVICES,BANYA FAMILY PLACEMENT AGENCY LTD,"4,538.71",FRIENDS & FAMILY FOSTERING,EXTERNAL AGENCIES AND BODIES,2103141644,11328315
09.09.2020,CHILDREN'S SERVICES,BANYA FAMILY PLACEMENT AGENCY LTD,"4,715.72",FRIENDS & FAMILY FOSTERING,EXTERNAL AGENCIES AND BODIES,2103141642,11328315
09.09.2020,CHILDREN'S SERVICES,TACT,"3,162.00",FRIENDS & FAMILY FOSTERING,EXTERNAL AGENCIES AND BODIES,2103141627,1000012941
09.09.2020,CHILDREN'S SERVICES,TACT,"6,417.00",FRIENDS & FAMILY FOSTERING,EXTERNAL AGENCIES AND BODIES,2103141634,1000012941
09.09.2020,CHILDREN'S SERVICES,GREATER LONDON FOSTERING,"1,213.00",FRIENDS & FAMILY FOSTERING,EXTERNAL AGENCIES AND BODIES,2103141635,1000029184
09.09.2020,CHILDREN'S SERVICES,GREATER LONDON FOSTERING,"3,286.00",FRIENDS & FAMILY FOSTERING,EXTERNAL AGENCIES AND BODIES,2103141629,1000029184
09.09.2020,CHILDREN'S SERVICES,GREATER LONDON FOSTERING,"3,286.00",FRIENDS & FAMILY FOSTERING,EXTERNAL AGENCIES AND BODIES,2103141632,1000029184
09.09.2020,CHILDREN'S SERVICES,GREATER LONDON FOSTERING,"4,645.35",FRIENDS & FAMILY FOSTERING,EXTERNAL AGENCIES AND BODIES,2103141628,1000029184
09.09.2020,CHILDREN'S SERVICES,NATIONAL FOSTERING AGENCY,"1,163.10",FRIENDS & FAMILY FOSTERING,EXTERNAL AGENCIES AND BODIES,2103141637,1000038868
09.09.2020,CHILDREN'S SERVICES,NATIONAL FOSTERING AGENCY,"2,967.01",FRIENDS & FAMILY FOSTERING,EXTERNAL AGENCIES AND BODIES,2103141631,1000038868
09.09.2020,CHILDREN'S SERVICES,NATIONAL FOSTERING AGENCY,"3,317.00",FRIENDS & FAMILY FOSTERING,EXTERNAL AGENCIES AND BODIES,2103141630,1000038868
09.09.2020,CHILDREN'S SERVICES,NATIONAL FOSTERING AGENCY,"3,317.00",FRIENDS & FAMILY FOSTERING,EXTERNAL AGENCIES AND BODIES,2103141636,1000038868
09.09.2020,CHILDREN'S SERVICES,NATIONAL FOSTERING AGENCY,"4,557.00",FRIENDS & FAMILY FOSTERING,EXTERNAL AGENCIES AND BODIES,2103141625,1000038868
09.09.2020,CHILDREN'S SERVICES,CHILDREN FIRST FOSTERING AGENCY LTD,"3,981.33",FRIENDS & FAMILY FOSTERING,EXTERNAL AGENCIES AND BODIES,2103141623,1000060081
09.09.2020,CHILDREN'S SERVICES,PILGRIMS CORNER LIMITED,"4,424.63",FRIENDS & FAMILY FOSTERING,EXTERNAL AGENCIES AND BODIES,2103141626,1000084708
09.09.2020,CHILDREN'S SERVICES,FLOURISH FOSTERING LTD,"4,674.27",FRIENDS & FAMILY FOSTERING,EXTERNAL AGENCIES AND BODIES,2103141638,1000084796
09.09.2020,CHILDREN'S SERVICES,FLOURISH FOSTERING LTD,"4,805.49",FRIENDS & FAMILY FOSTERING,EXTERNAL AGENCIES AND BODIES,2103141622,1000084796
09.09.2020,CHILDREN'S SERVICES,FLOURISH FOSTERING LTD,"4,805.49",FRIENDS & FAMILY FOSTERING,EXTERNAL AGENCIES AND BODIES,2103141633,1000084796
09.09.2020,CHILDREN'S SERVICES,REDACTED PERSONAL DATA,400,FRIENDS &FAMILY FOST,ADDITIONAL PAYMENTS TO AGENCIES/CARERS,REDACTED,REDACTED
09.09.2020,CHILDREN'S SERVICES,REDACTED PERSONAL DATA,500,FRIENDS &FAMILY FOST,COMPUTER CONSUMABLES,REDACTED,REDACTED
09.09.2020,CHILDREN'S SERVICES,REDACTED PERSONAL DATA,910,FRIENDS &FAMILY FOST,PAYMENTS TO CARERS,REDACTED,REDACTED
09.09.2020,CHILDREN'S SERVICES,REDACTED PERSONAL DATA,310,FRIENDS &FAMILY FOST,PAYMENTS TO CARERS,REDACTED,REDACTED
09.09.2020,CHILDREN'S SERVICES,REDACTED PERSONAL DATA,348,FRIENDS &FAMILY FOST,PAYMENTS TO CARERS,REDACTED,REDACTED
09.09.2020,CHILDREN'S SERVICES,REDACTED PERSONAL DATA,394,FRIENDS &FAMILY FOST,PAYMENTS TO CARERS,REDACTED,REDACTED
09.09.2020,CHILDREN'S SERVICES,REDACTED PERSONAL DATA,476.08,FRIENDS &FAMILY FOST,PAYMENTS TO CARERS,REDACTED,REDACTED
09.09.2020,CHILDREN'S SERVICES,REDACTED PERSONAL DATA,900,FRIENDS &FAMILY FOST,PAYMENTS TO CARERS,REDACTED,REDACTED
09.09.2020,CHILDREN'S SERVICES,REDACTED PERSONAL DATA,812,FRIENDS &FAMILY FOST,PAYMENTS TO CARERS,REDACTED,REDACTED
09.09.2020,CHILDREN'S SERVICES,REDACTED PERSONAL DATA,812,FRIENDS &FAMILY FOST,PAYMENTS TO CARERS,REDACTED,REDACTED
09.09.2020,CHILDREN'S SERVICES,REDACTED PERSONAL DATA,810,FRIENDS &FAMILY FOST,PAYMENTS TO CARERS,REDACTED,REDACTED
09.09.2020,CHILDREN'S SERVICES,REDACTED PERSONAL DATA,716,FRIENDS &FAMILY FOST,PAYMENTS TO CARERS,REDACTED,REDACTED
09.09.2020,CHILDREN'S SERVICES,REDACTED PERSONAL DATA,812,FRIENDS &FAMILY FOST,PAYMENTS TO CARERS,REDACTED,REDACTED
09.09.2020,CHILDREN'S SERVICES,REDACTED PERSONAL DATA,812,FRIENDS &FAMILY FOST,PAYMENTS TO CARERS,REDACTED,REDACTED
09.09.2020,CHILDREN'S SERVICES,REDACTED PERSONAL DATA,812,FRIENDS &FAMILY FOST,PAYMENTS TO CARERS,REDACTED,REDACTED
09.09.2020,CHILDREN'S SERVICES,REDACTED PERSONAL DATA,716,FRIENDS &FAMILY FOST,PAYMENTS TO CARERS,REDACTED,REDACTED
09.09.2020,CHILDREN'S SERVICES,REDACTED PERSONAL DATA,812,FRIENDS &FAMILY FOST,PAYMENTS TO CARERS,REDACTED,REDACTED
09.09.2020,CHILDREN'S SERVICES,REDACTED PERSONAL DATA,810,FRIENDS &FAMILY FOST,PAYMENTS TO CARERS,REDACTED,REDACTED
09.09.2020,CHILDREN'S SERVICES,REDACTED PERSONAL DATA,842,FRIENDS &FAMILY FOST,PAYMENTS TO CARERS,REDACTED,REDACTED
09.09.2020,CHILDREN'S SERVICES,REDACTED PERSONAL DATA,842,FRIENDS &FAMILY FOST,PAYMENTS TO CARERS,REDACTED,REDACTED
09.09.2020,CHILDREN'S SERVICES,REDACTED PERSONAL DATA,716,FRIENDS &FAMILY FOST,PAYMENTS TO CARERS,REDACTED,REDACTED
09.09.2020,CHILDREN'S SERVICES,REDACTED PERSONAL DATA,812,FRIENDS &FAMILY FOST,PAYMENTS TO CARERS,REDACTED,REDACTED
09.09.2020,CHILDREN'S SERVICES,REDACTED PERSONAL DATA,394,FRIENDS &FAMILY FOST,PAYMENTS TO CARERS,REDACTED,REDACTED
09.09.2020,CHILDREN'S SERVICES,REDACTED PERSONAL DATA,298,FRIENDS &FAMILY FOST,PAYMENTS TO CARERS,REDACTED,REDACTED
09.09.2020,CHILDREN'S SERVICES,REDACTED PERSONAL DATA,394,FRIENDS &FAMILY FOST,PAYMENTS TO CARERS,REDACTED,REDACTED
09.09.2020,CHILDREN'S SERVICES,REDACTED PERSONAL DATA,394,FRIENDS &FAMILY FOST,PAYMENTS TO CARERS,REDACTED,REDACTED
09.09.2020,CHILDREN'S SERVICES,REDACTED PERSONAL DATA,462,FRIENDS &FAMILY FOST,PAYMENTS TO CARERS,REDACTED,REDACTED
09.09.2020,CHILDREN'S SERVICES,REDACTED PERSONAL DATA,812,FRIENDS &FAMILY FOST,PAYMENTS TO CARERS,REDACTED,REDACTED
09.09.2020,CHILDREN'S SERVICES,REDACTED PERSONAL DATA,716,FRIENDS &FAMILY FOST,PAYMENTS TO CARERS,REDACTED,REDACTED
09.09.2020,CHILDREN'S SERVICES,REDACTED PERSONAL DATA,812,FRIENDS &FAMILY FOST,PAYMENTS TO CARERS,REDACTED,REDACTED
09.09.2020,CHILDREN'S SERVICES,REDACTED PERSONAL DATA,716,FRIENDS &FAMILY FOST,PAYMENTS TO CARERS,REDACTED,REDACTED
09.09.2020,CHILDREN'S SERVICES,REDACTED PERSONAL DATA,716,FRIENDS &FAMILY FOST,PAYMENTS TO CARERS,REDACTED,REDACTED
09.09.2020,CHILDREN'S SERVICES,REDACTED PERSONAL DATA,812,FRIENDS &FAMILY FOST,PAYMENTS TO CARERS,REDACTED,REDACTED
09.09.2020,CHILDREN'S SERVICES,REDACTED PERSONAL DATA,666,FRIENDS &FAMILY FOST,PAYMENTS TO CARERS,REDACTED,REDACTED
09.09.2020,CHILDREN'S SERVICES,REDACTED PERSONAL DATA,462,FRIENDS &FAMILY FOST,PAYMENTS TO CARERS,REDACTED,REDACTED
09.09.2020,CHILDREN'S SERVICES,REDACTED PERSONAL DATA,394,FRIENDS &FAMILY FOST,PAYMENTS TO CARERS,REDACTED,REDACTED
09.09.2020,CHILDREN'S SERVICES,REDACTED PERSONAL DATA,900,FRIENDS &FAMILY FOST,PAYMENTS TO CARERS,REDACTED,REDACTED
09.09.2020,CHILDREN'S SERVICES,REDACTED PERSONAL DATA,812,FRIENDS &FAMILY FOST,PAYMENTS TO CARERS,REDACTED,REDACTED
09.09.2020,CHILDREN'S SERVICES,REDACTED PERSONAL DATA,812,FRIENDS &FAMILY FOST,PAYMENTS TO CARERS,REDACTED,REDACTED
09.09.2020,CHILDREN'S SERVICES,REDACTED PERSONAL DATA,812,FRIENDS &FAMILY FOST,PAYMENTS TO CARERS,REDACTED,REDACTED
09.09.2020,CHILDREN'S SERVICES,REDACTED PERSONAL DATA,716,FRIENDS &FAMILY FOST,PAYMENTS TO CARERS,REDACTED,REDACTED
09.09.2020,CHILDREN'S SERVICES,REDACTED PERSONAL DATA,812,FRIENDS &FAMILY FOST,PAYMENTS TO CARERS,REDACTED,REDACTED
09.09.2020,CHILDREN'S SERVICES,REDACTED PERSONAL DATA,666,FRIENDS &FAMILY FOST,PAYMENTS TO CARERS,REDACTED,REDACTED
09.09.2020,CHILDREN'S SERVICES,REDACTED PERSONAL DATA,666,FRIENDS &FAMILY FOST,PAYMENTS TO CARERS,REDACTED,REDACTED
09.09.2020,CHILDREN'S SERVICES,REDACTED PERSONAL DATA,394,FRIENDS &FAMILY FOST,PAYMENTS TO CARERS,REDACTED,REDACTED
09.09.2020,CHILDREN'S SERVICES,REDACTED PERSONAL DATA,"1,104.00",FRIENDS &FAMILY FOST,PAYMENTS TO CARERS,REDACTED,REDACTED
09.09.2020,CHILDREN'S SERVICES,REDACTED PERSONAL DATA,310,FRIENDS &FAMILY FOST,PAYMENTS TO CARERS,REDACTED,REDACTED
09.09.2020,CHILDREN'S SERVICES,REDACTED PERSONAL DATA,348,FRIENDS &FAMILY FOST,PAYMENTS TO CARERS,REDACTED,REDACTED
09.09.2020,CHILDREN'S SERVICES,REDACTED PERSONAL DATA,750,FRIENDS &FAMILY FOST,PAYMENTS TO CARERS,REDACTED,REDACTED
09.09.2020,CHILDREN'S SERVICES,REDACTED PERSONAL DATA,394,FRIENDS &FAMILY FOST,PAYMENTS TO CARERS,REDACTED,REDACTED
09.09.2020,CHILDREN'S SERVICES,REDACTED PERSONAL DATA,394,FRIENDS &FAMILY FOST,PAYMENTS TO CARERS,REDACTED,REDACTED
09.09.2020,CHILDREN'S SERVICES,REDACTED PERSONAL DATA,394,FRIENDS &FAMILY FOST,PAYMENTS TO CARERS,REDACTED,REDACTED
09.09.2020,CHILDREN'S SERVICES,REDACTED PERSONAL DATA,394,FRIENDS &FAMILY FOST,PAYMENTS TO CARERS,REDACTED,REDACTED
09.09.2020,CHILDREN'S SERVICES,REDACTED PERSONAL DATA,304,FRIENDS &FAMILY FOST,PAYMENTS TO CARERS,REDACTED,REDACTED
09.09.2020,CHILDREN'S SERVICES,REDACTED PERSONAL DATA,298,FRIENDS &FAMILY FOST,PAYMENTS TO CARERS,REDACTED,REDACTED
09.09.2020,CHILDREN'S SERVICES,REDACTED PERSONAL DATA,444,FRIENDS &FAMILY FOST,PAYMENTS TO CARERS,REDACTED,REDACTED
09.09.2020,CHILDREN'S SERVICES,REDACTED PERSONAL DATA,298,FRIENDS &FAMILY FOST,PAYMENTS TO CARERS,REDACTED,REDACTED
09.09.2020,CHILDREN'S SERVICES,REDACTED PERSONAL DATA,298,FRIENDS &FAMILY FOST,PAYMENTS TO CARERS,REDACTED,REDACTED
09.09.2020,CHILDREN'S SERVICES,REDACTED PERSONAL DATA,348,FRIENDS &FAMILY FOST,PAYMENTS TO CARERS,REDACTED,REDACTED
09.09.2020,CHILDREN'S SERVICES,REDACTED PERSONAL DATA,348,FRIENDS &FAMILY FOST,PAYMENTS TO CARERS,REDACTED,REDACTED
09.09.2020,CHILDREN'S SERVICES,REDACTED PERSONAL DATA,336,FRIENDS &FAMILY FOST,PAYMENTS TO CARERS,REDACTED,REDACTED
09.09.2020,CHILDREN'S SERVICES,REDACTED PERSONAL DATA,380,FRIENDS &FAMILY FOST,PAYMENTS TO CARERS,REDACTED,REDACTED
09.09.2020,CHILDREN'S SERVICES,REDACTED PERSONAL DATA,336,FRIENDS &FAMILY FOST,PAYMENTS TO CARERS,REDACTED,REDACTED
09.09.2020,CHILDREN'S SERVICES,SYDNEY CARE LTD,"5,314.28",SEMI INDEPENDENT CARE LEAVERS,EXTERNAL AGENCIES AND BODIES,2103142609,1000081598
09.09.2020,CHILDREN'S SERVICES,HOLISTIC SUPPORTED LIVING LTD,"4,700.00",SEMI INDEPENDENT CARE LEAVERS,EXTERNAL AGENCIES AND BODIES,2103142611,1000082130
09.09.2020,CHILDREN'S SERVICES,SYDNEY CARE LTD,"3,985.71",SEMI INDEPENDENT LAC,EXTERNAL AGENCIES AND BODIES,2103142606,1000081598
09.09.2020,CHILDREN'S SERVICES,BRANCH OUT SUPPORT SERVICES LTD,"19,500.00",SEMI INDEPENDENT LAC,EXTERNAL AGENCIES AND BODIES,2103142605,1000083874
09.09.2020,CHILDREN'S SERVICES,FAMILY FOSTERING LTD,"1,360.00",SEMI INDEPENDENT LAC,OTHER PAYMENTS FOR CLIENTS,5902431871,1000075179
09.09.2020,CHILDREN'S SERVICES,SYDNEY CARE LTD,310,SEMI INDEPENDENT LAC,OTHER PAYMENTS FOR CLIENTS,2103142607,1000081598
09.09.2020,CHILDREN'S SERVICES,REDACTED PERSONAL DATA,388.04,SPECIAL GUARDIANSHIP,PAYMENTS TO CARERS,REDACTED,REDACTED
09.09.2020,CHILDREN'S SERVICES,REDACTED PERSONAL DATA,342.45,SPECIAL GUARDIANSHIP,PAYMENTS TO CARERS,REDACTED,REDACTED
09.09.2020,CHILDREN'S SERVICES,REDACTED PERSONAL DATA,389.34,SPECIAL GUARDIANSHIP,PAYMENTS TO CARERS,REDACTED,REDACTED
09.09.2020,CHILDREN'S SERVICES,REDACTED PERSONAL DATA,356.15,SPECIAL GUARDIANSHIP,PAYMENTS TO CARERS,REDACTED,REDACTED
09.09.2020,CHILDREN'S SERVICES,REDACTED PERSONAL DATA,403.04,SPECIAL GUARDIANSHIP,PAYMENTS TO CARERS,REDACTED,REDACTED
09.09.2020,CHILDREN'S SERVICES,REDACTED PERSONAL DATA,343.05,SPECIAL GUARDIANSHIP,PAYMENTS TO CARERS,REDACTED,REDACTED
09.09.2020,CHILDREN'S SERVICES,REDACTED PERSONAL DATA,525,SPECIAL GUARDIANSHIP,PAYMENTS TO CARERS,REDACTED,REDACTED
09.09.2020,CHILDREN'S SERVICES,REDACTED PERSONAL DATA,525,SPECIAL GUARDIANSHIP,PAYMENTS TO CARERS,REDACTED,REDACTED
09.09.2020,CHILDREN'S SERVICES,REDACTED PERSONAL DATA,395,SPECIAL GUARDIANSHIP,PAYMENTS TO CARERS,REDACTED,REDACTED
09.09.2020,CHILDREN'S SERVICES,REDACTED PERSONAL DATA,341.15,SPECIAL GUARDIANSHIP,PAYMENTS TO CARERS,REDACTED,REDACTED
09.09.2020,CHILDREN'S SERVICES,HORIZON FOSTERING SERVICES LTD,"2,271.99",STAYING PUT,EXTERNAL AGENCIES AND BODIES,2103142608,1000075679
09.09.2020,CHILDREN'S SERVICES,REDACTED PERSONAL DATA,500,STAYING PUT,PAYMENTS TO CARERS,REDACTED,REDACTED
09.09.2020,CHILDREN'S SERVICES,REDACTED PERSONAL DATA,500,STAYING PUT,PAYMENTS TO CARERS,REDACTED,REDACTED
09.09.2020,CHILDREN'S SERVICES,REDACTED PERSONAL DATA,942,STAYING PUT,PAYMENTS TO CARERS,REDACTED,REDACTED
09.09.2020,CHILDREN'S SERVICES,REDACTED PERSONAL DATA,500,STAYING PUT,PAYMENTS TO CARERS,REDACTED,REDACTED
09.09.2020,CHILDREN'S SERVICES,REDACTED PERSONAL DATA,500,STAYING PUT,PAYMENTS TO CARERS,REDACTED,REDACTED
09.09.2020,CHILDREN'S SERVICES,REDACTED PERSONAL DATA,500,STAYING PUT,PAYMENTS TO CARERS,REDACTED,REDACTED
09.09.2020,CHILDREN'S SERVICES,REDACTED PERSONAL DATA,500,STAYING PUT,PAYMENTS TO CARERS,REDACTED,REDACTED
09.09.2020,CHILDREN'S SERVICES,REDACTED PERSONAL DATA,832,STAYING PUT,PAYMENTS TO CARERS,REDACTED,REDACTED
09.09.2020,CHILDREN'S SERVICES,REDACTED PERSONAL DATA,285.72,STAYING PUT,PAYMENTS TO CARERS,REDACTED,REDACTED
09.09.2020,CHILDREN'S SERVICES,REDACTED PERSONAL DATA,500,STAYING PUT,PAYMENTS TO CARERS,REDACTED,REDACTED
09.09.2020,CHILDREN'S SERVICES,REDACTED PERSONAL DATA,500,STAYING PUT,PAYMENTS TO CARERS,REDACTED,REDACTED
09.09.2020,CHILDREN'S SERVICES,REDACTED PERSONAL DATA,500,STAYING PUT,PAYMENTS TO CARERS,REDACTED,REDACTED
09.09.2020,CHILDREN'S SERVICES,REDACTED PERSONAL DATA,500,STAYING PUT,PAYMENTS TO CARERS,REDACTED,REDACTED
09.09.2020,CHILDREN'S SERVICES,REDACTED PERSONAL DATA,500,STAYING PUT,PAYMENTS TO CARERS,REDACTED,REDACTED
09.09.2020,CHILDREN'S SERVICES,REDACTED PERSONAL DATA,500,STAYING PUT,PAYMENTS TO CARERS,REDACTED,REDACTED
09.09.2020,CHILDREN'S SERVICES,REDACTED PERSONAL DATA,500,STAYING PUT,PAYMENTS TO CARERS,REDACTED,REDACTED
09.09.2020,CHILDREN'S SERVICES,REDACTED PERSONAL DATA,500,STAYING PUT,PAYMENTS TO CARERS,REDACTED,REDACTED
09.09.2020,CHILDREN'S SERVICES,REDACTED PERSONAL DATA,500,STAYING PUT,PAYMENTS TO CARERS,REDACTED,REDACTED
09.09.2020,CHILDREN'S SERVICES,REDACTED PERSONAL DATA,500,STAYING PUT,PAYMENTS TO CARERS,REDACTED,REDACTED
09.09.2020,CHILDREN'S SERVICES,REDACTED PERSONAL DATA,500,STAYING PUT,PAYMENTS TO CARERS,REDACTED,REDACTED
09.09.2020,CHILDREN'S SERVICES,REDACTED PERSONAL DATA,500,STAYING PUT,PAYMENTS TO CARERS,REDACTED,REDACTED
09.09.2020,CHILDREN'S SERVICES,REDACTED PERSONAL DATA,500,STAYING PUT,PAYMENTS TO CARERS,REDACTED,REDACTED
09.09.2020,CHILDREN'S SERVICES,REDACTED PERSONAL DATA,852,STAYING PUT,PAYMENTS TO CARERS,REDACTED,REDACTED
09.09.2020,CHILDREN'S SERVICES,REDACTED PERSONAL DATA,500,STAYING PUT,PAYMENTS TO CARERS,REDACTED,REDACTED
09.09.2020,CHILDREN'S SERVICES,REDACTED PERSONAL DATA,500,STAYING PUT,PAYMENTS TO CARERS,REDACTED,REDACTED
09.09.2020,CHILDREN'S SERVICES,REDACTED PERSONAL DATA,500,STAYING PUT,PAYMENTS TO CARERS,REDACTED,REDACTED
09.09.2020,CHILDREN'S SERVICES,REDACTED PERSONAL DATA,500,STAYING PUT,PAYMENTS TO CARERS,REDACTED,REDACTED
09.09.2020,CHILDREN'S SERVICES,REDACTED PERSONAL DATA,500,STAYING PUT,PAYMENTS TO CARERS,REDACTED,REDACTED
09.09.2020,CHILDREN'S SERVICES,REDACTED PERSONAL DATA,832,STAYING PUT,PAYMENTS TO CARERS,REDACTED,REDACTED
09.09.2020,CHILDREN'S SERVICES,REDACTED PERSONAL DATA,784,STAYING PUT,PAYMENTS TO CARERS,REDACTED,REDACTED
09.09.2020,CHILDREN'S SERVICES,REDACTED PERSONAL DATA,430,STAYING PUT,PAYMENTS TO CARERS,REDACTED,REDACTED
09.09.2020,CHILDREN'S SERVICES,REDACTED PERSONAL DATA,500,STAYING PUT,PAYMENTS TO CARERS,REDACTED,REDACTED
09.09.2020,CHILDREN'S SERVICES,REDACTED PERSONAL DATA,700,STAYING PUT,PAYMENTS TO CARERS,REDACTED,REDACTED
09.09.2020,CHILDREN'S SERVICES,REDACTED PERSONAL DATA,500,STAYING PUT,PAYMENTS TO CARERS,REDACTED,REDACTED
09.09.2020,CHILDREN'S SERVICES,REDACTED PERSONAL DATA,"1,000.00",STAYING PUT,PAYMENTS TO CARERS,REDACTED,REDACTED
09.09.2020,CHILDREN'S SERVICES,SMART KIDS DAY NURSERY,433.33,TEAM C,OTHER PAYMENTS FOR CLIENTS,5902432071,1000074580
09.09.2020,CHILDREN'S SERVICES,REDACTED PERSONAL DATA,"2,733.34",TEAM C,OTHER PAYMENTS FOR CLIENTS,REDACTED,REDACTED
09.09.2020,CHILDREN'S SERVICES,SOUTH OF THE RIVER INVESTMENTS LTD,"2,253.70",TEMP ACCOM FOR IH,EXTERNAL AGENCIES AND BODIES,5902431932,1000073638
09.09.2020,CHILDREN'S SERVICES,NORBURY PROPERTY SERVICES (LONDON) LTD,"1,178.00",TEMP ACCOM FOR IH,EXTERNAL AGENCIES AND BODIES,5902431895,1000075566
09.09.2020,COMMUNITIES,ST GEORGE THE MARTYR WITH ST ALPHEGE & ST JUDE,"6,000.00",C19 COMMUNITY HUB,GRANTS,5902431924,1000054328
09.09.2020,COMMUNITIES,SOUTHSIDE PARTNERSHIP LTD,"3,493.70",NO RECOURSE TO PUBLIC FUNDS,ACCOMMODATION CHARGES,5902431865,1716624
09.09.2020,COMMUNITIES,SOUTHSIDE PARTNERSHIP LTD,"3,521.29",NO RECOURSE TO PUBLIC FUNDS,ACCOMMODATION CHARGES,5902431866,1716624
09.09.2020,COMMUNITIES,TURNING POINT,"1,378.08",NO RECOURSE TO PUBLIC FUNDS,ACCOMMODATION CHARGES,5902431870,11321523
09.09.2020,COMMUNITIES,A & M PROPERTY AND CONSTRUCTION LTD,"2,927.00",NO RECOURSE TO PUBLIC FUNDS,ACCOMMODATION CHARGES,5902432047,1000014564
09.09.2020,COMMUNITIES,CITYGLEN LTD,"12,046.00",NO RECOURSE TO PUBLIC FUNDS,ACCOMMODATION CHARGES,5902432066,1000026239
09.09.2020,COMMUNITIES,METROPOLITAN SUPPORT TRUST,953.2,NO RECOURSE TO PUBLIC FUNDS,ACCOMMODATION CHARGES,5902432059,1000047547
09.09.2020,COMMUNITIES,METROPOLITAN SUPPORT TRUST,953.2,NO RECOURSE TO PUBLIC FUNDS,ACCOMMODATION CHARGES,5902432060,1000047547
09.09.2020,COMMUNITIES,METROPOLITAN SUPPORT TRUST,953.2,NO RECOURSE TO PUBLIC FUNDS,ACCOMMODATION CHARGES,5902432062,1000047547
09.09.2020,COMMUNITIES,VENTURE HOUSING (LONDON) LTD,"4,045.00",NO RECOURSE TO PUBLIC FUNDS,ACCOMMODATION CHARGES,5902432031,1000056686
09.09.2020,COMMUNITIES,KINDLY PROPERTIES LTD,"11,423.00",NO RECOURSE TO PUBLIC FUNDS,ACCOMMODATION CHARGES,5902431889,1000060734
09.09.2020,COMMUNITIES,CYBERSTYLE LETTINGS LTD,"6,998.00",NO RECOURSE TO PUBLIC FUNDS,ACCOMMODATION CHARGES,5902432058,1000079319
09.09.2020,COMMUNITIES,SECURENT LTD,"1,240.00",NO RECOURSE TO PUBLIC FUNDS,ACCOMMODATION CHARGES,5902432065,1000079400
09.09.2020,COMMUNITIES,APEX HOUSING SOLUTIONS LTD,"1,395.00",NO RECOURSE TO PUBLIC FUNDS,ACCOMMODATION CHARGES,5902432035,1000079786
09.09.2020,COMMUNITIES,DMS PROPERTIES SERVICES LTD,"3,410.00",NO RECOURSE TO PUBLIC FUNDS,ACCOMMODATION CHARGES,5902432019,1000081522
09.09.2020,COMMUNITIES,REDACTED PERSONAL DATA,"9,912.00",NO RECOURSE TO PUBLIC FUNDS,ACCOMMODATION CHARGES,REDACTED,REDACTED
09.09.2020,COMMUNITIES,ROSEMONT CARE LTD,883.5,NO RECOURSE TO PUBLIC FUNDS,HOMECARE - C&V,2103142180,1000084219
09.09.2020,COMMUNITIES,WILSON SOLICITORS LLP,675,NO RECOURSE TO PUBLIC FUNDS,LEGAL FEES & COURT COSTS,5902432056,1000084191
09.09.2020,COMMUNITIES,WILSON SOLICITORS LLP,800,NO RECOURSE TO PUBLIC FUNDS,LEGAL FEES & COURT COSTS,5902432049,1000084191
09.09.2020,COMMUNITIES,HOMELY HOUSING LETS LTD,"1,590.30",NO RECOURSE TO PUBLIC FUNDS,OTHER PAYMENTS FOR CLIENTS,5902432007,1000050013
09.09.2020,COMMUNITIES,SURREY DOCKS FARM PROVIDENT SOCIETY,900,NORTH EAST,GRANTS,5902432012,1000000958
09.09.2020,CUSTOMER EXPERIENCE HGF,ZFA ACCOMMODATION LTD,"35,490.00",COVID-19 SUPPORT,EXTERNAL AGENCIES AND BODIES,5902432013,1000082620
09.09.2020,CUSTOMER EXPERIENCE HGF,REST UP,"8,400.00",COVID-19 SUPPORT,EXTERNAL AGENCIES AND BODIES,5902431936,1000084299
09.09.2020,CUSTOMER EXPERIENCE HGF,REST UP,"39,900.00",COVID-19 SUPPORT,EXTERNAL AGENCIES AND BODIES,5902431939,1000084299
09.09.2020,CUSTOMER EXPERIENCE HGF,AMITY ESTATES LTD,"4,000.00",HOMELESS PROJECTS,GRANTS,5902432016,1000050384
09.09.2020,CUSTOMER EXPERIENCE HGF,GALAXY LETTINGS LTD,"53,929.09",NIGHTLY TA (NSC),EXTERNAL AGENCIES AND BODIES,5902431965,1000055897
09.09.2020,CUSTOMER EXPERIENCE HGF,NATIONWIDE ACCOMMODATION,"135,901.45",NIGHTLY TA (NSC),EXTERNAL AGENCIES AND BODIES,5902432067,1000076112
09.09.2020,CUSTOMER EXPERIENCE HGF,MX ESTATES LTD,"1,332.00",NIGHTLY TA (NSC),EXTERNAL AGENCIES AND BODIES,5902432015,1000083639
09.09.2020,CUSTOMER EXPERIENCE HGF,LODGISTICS ESTATES,"5,398.79",PSL PLACEMENTS,EXTERNAL AGENCIES AND BODIES,5902432037,1000080324
09.09.2020,CUSTOMER EXPERIENCE HGF,LTA DIRECT LTD,"5,366.42",PSL PLACEMENTS,EXTERNAL AGENCIES AND BODIES,5902431933,1000085314
09.09.2020,CUSTOMER EXPERIENCE HGF,LTA DIRECT LTD,"16,000.00",PSL PLACEMENTS,GRANTS,5902431935,1000085314
09.09.2020,CUSTOMER EXPERIENCE HGF,HELP2SUPPORT LIMITED,481,RAPID REHOUSING,GRANTS,5902431878,1000084604
09.09.2020,CUSTOMER EXPERIENCE HGF,HELP2SUPPORT LIMITED,912,RAPID REHOUSING,GRANTS,5902431873,1000084604
09.09.2020,CUSTOMER EXPERIENCE HGF,HELP2SUPPORT LIMITED,"1,302.00",RAPID REHOUSING,GRANTS,5902431876,1000084604
09.09.2020,ENVIRONMENT AND LEISURE,CRESPO DESIGN LTD,400,CAPITAL PS (LEISURE),CONSTRUCTION FEES  - EXTERNAL,5902431881,1000075973
09.09.2020,ENVIRONMENT AND LEISURE,CONWAY AECOM LTD,"16,420.98",CAPITAL PS (LEISURE),CONSTRUCTION SUB CONTRACT -CERTIFICATED,2103142625,3000001595
09.09.2020,ENVIRONMENT AND LEISURE,CONWAY AECOM LTD,"19,802.30",CAPITAL PS (LEISURE),CONSTRUCTION SUB CONTRACT -CERTIFICATED,2103142625,3000001595
09.09.2020,ENVIRONMENT DIRECTORATE,MARSTON GROUP LTD,278,CAR LEASING CTRL A/C,PARKING CHARGES,5902432024,1000011313
09.09.2020,ENVIRONMENT DIRECTORATE,TRANSPORT FOR LONDON,500,COMMERCIAL VEH CTRL A/C,CONGESTION CHARGE,5902431934,1000023986
09.09.2020,ENVIRONMENT DIRECTORATE,SCOT GROUP LIMITED,385.56,COMMERCIAL VEH CTRL A/C,HIRED VEHICLES,5902431938,1709512
09.09.2020,ENVIRONMENT DIRECTORATE,SCOT GROUP LIMITED,468,COMMERCIAL VEH CTRL A/C,HIRED VEHICLES,5902431937,1709512
09.09.2020,ENVIRONMENT DIRECTORATE,NORTHGATE VEHICLE HIRE (SOUTH EAST),427.84,COMMERCIAL VEH CTRL A/C,HIRED VEHICLES,5902431940,1000044807
09.09.2020,ENVIRONMENT DIRECTORATE,ACCESS HIRE NATIONWIDE LTD,332.2,COMMERCIAL VEH CTRL A/C,HIRED VEHICLES,5902431899,1000048527
09.09.2020,ENVIRONMENT DIRECTORATE,ACCESS HIRE NATIONWIDE LTD,"1,914.95",COMMERCIAL VEH CTRL A/C,HIRED VEHICLES,5902431898,1000048527
09.09.2020,ENVIRONMENT DIRECTORATE,LEEDS COMMERCIAL LIMITED T/A LC VEHICLE HIRE,"2,990.00",COMMERCIAL VEH CTRL A/C,HIRED VEHICLES,5902431948,1000082730
09.09.2020,ENVIRONMENT DIRECTORATE,E. H. ROBERTS - PENET GROUP LTD,426.25,COMMERCIAL VEH CTRL A/C,HIRED VEHICLES,5902431942,1000082787
09.09.2020,ENVIRONMENT DIRECTORATE,E. H. ROBERTS - PENET GROUP LTD,"1,725.00",COMMERCIAL VEH CTRL A/C,HIRED VEHICLES,5902431945,1000082787
09.09.2020,ENVIRONMENT DIRECTORATE,STANFORD COACHWORKS & MOBILTY,"4,550.00",COMMERCIAL VEH CTRL A/C,VEHICLE REPAIRS & MAINTENANCE,5902432055,1000062932
09.09.2020,ENVIRONMENT DIRECTORATE,QUARTERMAN WINDSCREENS LTD,272.8,FLEET INSURANCE WORKS,TRANSPORT INSURANCE COSTS,5902431953,1043709
09.09.2020,ENVIRONMENT DIRECTORATE,QUARTERMAN WINDSCREENS LTD,387.6,FLEET INSURANCE WORKS,TRANSPORT INSURANCE COSTS,5902431958,1043709
09.09.2020,ENVIRONMENT DIRECTORATE,QUARTERMAN WINDSCREENS LTD,858.02,FLEET INSURANCE WORKS,TRANSPORT INSURANCE COSTS,5902431961,1043709
09.09.2020,ENVIRONMENT DIRECTORATE,M H COACHWORKS & SONS LTD,269.19,FLEET INSURANCE WORKS,TRANSPORT INSURANCE COSTS,5902432053,1000033495
09.09.2020,ENVIRONMENT DIRECTORATE,M H COACHWORKS & SONS LTD,293.61,FLEET INSURANCE WORKS,TRANSPORT INSURANCE COSTS,5902432044,1000033495
09.09.2020,ENVIRONMENT DIRECTORATE,M H COACHWORKS & SONS LTD,839.27,FLEET INSURANCE WORKS,TRANSPORT INSURANCE COSTS,5902432034,1000033495
09.09.2020,ENVIRONMENT DIRECTORATE,M H COACHWORKS & SONS LTD,"1,225.09",FLEET INSURANCE WORKS,TRANSPORT INSURANCE COSTS,5902432046,1000033495
09.09.2020,ENVIRONMENT DIRECTORATE,M H COACHWORKS & SONS LTD,"1,270.39",FLEET INSURANCE WORKS,TRANSPORT INSURANCE COSTS,5902432061,1000033495
09.09.2020,ENVIRONMENT DIRECTORATE,M H COACHWORKS & SONS LTD,"1,311.28",FLEET INSURANCE WORKS,TRANSPORT INSURANCE COSTS,5902432041,1000033495
09.09.2020,ENVIRONMENT DIRECTORATE,M H COACHWORKS & SONS LTD,"1,739.75",FLEET INSURANCE WORKS,TRANSPORT INSURANCE COSTS,5902432023,1000033495
09.09.2020,ENVIRONMENT DIRECTORATE,M H COACHWORKS & SONS LTD,"2,110.00",FLEET INSURANCE WORKS,TRANSPORT INSURANCE COSTS,5902432057,1000033495
09.09.2020,ENVIRONMENT DIRECTORATE,FUTURE GARMENTS LTD T/A EUROX,549.6,MANAGEMENT TEAM,"CLOTHING, UNIFORMS & LAUNDRY",5902431902,1000080983
09.09.2020,ENVIRONMENT DIRECTORATE,GO PRO CHEMICALS LTD,"1,420.00",MANAGEMENT TEAM,MATERIALS,5902431888,1000079528
09.09.2020,ENVIRONMENT DIRECTORATE,GO PRO CHEMICALS LTD,"1,538.05",MANAGEMENT TEAM,MATERIALS,5902431886,1000079528
09.09.2020,ENVIRONMENT DIRECTORATE,ANTALIS LTD,292,MANAGEMENT TEAM,STATIONERY,5902431913,1000066919
09.09.2020,ENVIRONMENT DIRECTORATE,APCOA PARKING (UK) LTD,"48,553.41",PARKING OVERHEADS,OTHER CONTRACTORS,5902431929,1718645
09.09.2020,ENVIRONMENT DIRECTORATE,WATERMAN ASPEN LTD,"4,256.00",TRANSPORT PROJECTS,OTHER CONTRACTORS,5902431860,1000082725
09.09.2020,ENVIRONMENT DIRECTORATE,WATERMAN ASPEN LTD,"4,288.00",TRANSPORT PROJECTS,OTHER CONTRACTORS,5902431858,1000082725
09.09.2020,ENVIRONMENT DIRECTORATE,WATERMAN ASPEN LTD,"4,536.00",TRANSPORT PROJECTS,OTHER CONTRACTORS,5902431859,1000082725
09.09.2020,ENVIRONMENT DIRECTORATE,WATERMAN ASPEN LTD,"5,376.00",TRANSPORT PROJECTS,OTHER CONTRACTORS,5902431861,1000082725
09.09.2020,ENVIRONMENT DIRECTORATE,WATERMAN ASPEN LTD,"6,176.00",TRANSPORT PROJECTS,OTHER CONTRACTORS,5902431862,1000082725
09.09.2020,ENVIRONMENT DIRECTORATE,VEOLIA ES SOUTHWARK LTD,"343,164.84",WASTE PFI,PFI/PPP PAYMENTS,5902431856,1000056979
09.09.2020,HOUSING,BUILDTRUST LTD,"98,895.88",BUILD TRUST,MANUAL CREDITORS,2103142623,3000002010
09.09.2020,HOUSING,PRB ESTATES LTD,"21,391.45",PRBE,I-WORLD CONTRACTORS HOLDING ACCOUNT,2103141575,3000001691
09.09.2020,HOUSING,PRB ESTATES LTD,"38,738.28",PRBE,I-WORLD CONTRACTORS HOLDING ACCOUNT,2103141574,3000001691
09.09.2020,HOUSING,SMITH & BYFORD LTD,"601,953.91",SMITH AND BYFORD,I-WORLD CONTRACTORS HOLDING ACCOUNT,2103141569,3000000520
09.09.2020,HOUSING GENERAL FUND,STAR LEISURE,"1,500.00",CAPITAL PS (HOUSING GF),CONSTRUCTION FEES - INTERNAL,5902431930,1000080966
09.09.2020,HOUSING HRA,PRB ESTATES LTD,"49,555.92",CAPITAL PS (HRA),CONSTRUCTION MAIN CONTRACT,2103141573,3000001691
09.09.2020,HOUSING HRA,ENGIE REGENERATION (APOLLO) LTD,"131,019.08",CAPITAL PS (HRA),CONSTRUCTION MAIN CONTRACT -CERTIFICATED,2103141568,4000449
09.09.2020,HOUSING HRA,SHERCURITY LTD,"3,360.00",CAPITAL PS (REGEN),CONSTRUCTION SITE COSTS,5902431980,1000067090
09.09.2020,HOUSING HRA,SHERCURITY LTD,"3,360.00",CAPITAL PS (REGEN),CONSTRUCTION SITE COSTS,5902431982,1000067090
09.09.2020,HOUSING HRA,SHERCURITY LTD,"3,360.00",CAPITAL PS (REGEN),CONSTRUCTION SITE COSTS,5902431983,1000067090
09.09.2020,LEISURE DIRECTORATE,APPLY4 TECHNOLOGY LTD,"2,780.00",ADMINISTRATION,PROFESSIONAL FEES,5902431877,1000045365
09.09.2020,LEISURE DIRECTORATE,VIVEDIA LIMITED,830,CREMATORIUM,SUBSCRIPTIONS,5902431003,1000064867
09.09.2020,LEISURE DIRECTORATE,QUADRON SERVICES LIMITED,"2,470.00",DULWICH AREA TEAM,GROUNDS MAINTENANCE,5902432063,1000066528
09.09.2020,LEISURE DIRECTORATE,LOST ART LIMITED,"2,545.05",DULWICH AREA TEAM,OTHER R&M,5902431904,1000052586
09.09.2020,MODERNISATION HGF,EDUFOCUS LIMITED,"4,999.00",CFM OPERATIONAL BUDGET,SOFTWARE,5902431903,1000061731
09.09.2020,MODERNISATION HGF,INTERSERVE (FACILITIES MANAGEMENT),"25,546.81",FM SERVICES BY INTERSERVE,BUILDING R&M,5902431872,1000070792
09.09.2020,PH DIRECTORS TEAM,LONDON BOROUGH OF LAMBETH,"105,921.24",PH DIRECTOR'S TEAM,SEVERANCE & REDUNDANCY PAYMENTS,5902431874,1000082496
09.09.2020,PLANNING AND TRANSPORT,SOUTHWARK NEWSPAPER LTD,336,DEVELOPMENT CONTROL ADMINSTRATION,MARKETING & PUBLICITY SERVICES,5902431946,1556957
09.09.2020,RESIDENT SERVICES,CASTLE WATER LTD,750.93,TA HOSTELS,ELECTRICITY,5902431909,1000078867
09.09.2020,RESIDENT SERVICES,GALAXY LETTINGS LTD,"2,972.90",TA PLACEMENTS,EXTERNAL AGENCIES AND BODIES,5902431887,1000055897
09.09.2020,RESIDENT SERVICES,DMS PROPERTIES SERVICES LTD,"4,464.00",TA PLACEMENTS,EXTERNAL AGENCIES AND BODIES,5902431698,1000081522
09.09.2020,SBS SUPPORT,MULTI-INSTALLATIONS LTD,"1,193.32",SBS - HOLDING ACCOUNT,OTHER CONTRACTORS,2103141572,3000000595
09.09.2020,SBS SUPPORT,FRANKLYN SHAW ASSOCIATES LTD,"4,572.06",SBS - HOLDING ACCOUNT,OTHER CONTRACTORS,2103141571,3000001465
09.09.2020,SBS SUPPORT,ACCLAIM HANDLING PLC,346.66,STORES / LOGISTICS,"CLOTHING, UNIFORMS & LAUNDRY",5902431952,1000008515
09.09.2020,SBS SUPPORT,RTS WASTE MANAGEMENT LTD,"3,699.10",VOIDS OVERHEADS,WASTE DISPOSAL CONTRACT,5902431927,1000061248
09.09.2020,SOUTHWARK SCHOOL FOR FUTURE,FAITHFUL & GOULD,"5,103.25",CAPITAL PS (REGEN),CONSTRUCTION FEES,5902431922,1000061390
09.09.2020,SOUTHWARK SCHOOL FOR FUTURE,JOHN BURKE ASSOCIATES,640,CAPITAL PS (REGEN),CONSTRUCTION MAIN CONTRACT,5902431907,1000026411
10.09.2020,ADULT SOCIAL CARE,DERWENT RESIDENTIAL CARE LTD,459,APPOINTEESHIPS,OTHER PAYMENTS FOR CLIENTS,5902432579,1000069967
10.09.2020,ADULT SOCIAL CARE,REDACTED PERSONAL DATA,500,APPOINTEESHIPS,OTHER PAYMENTS FOR CLIENTS,REDACTED,REDACTED
10.09.2020,ADULT SOCIAL CARE,SIGNIS LTD,600,ASW - PROFESSIONAL DEVELOPMENT,TRAINING,5902432514,1000075765
10.09.2020,ADULT SOCIAL CARE,JUDGE AND PRIESTLEY SOLICITORS,"2,680.50",DEBT TASK FORCE,PAYMENTS FOR LEGAL SERVICES,5902432606,1472217
10.09.2020,ADULT SOCIAL CARE,BLISSETT CARE LTD,"1,307.54",DISCHARGE TO ACCESS,HOMECARE - C&V,2103142867,1000042627
10.09.2020,ADULT SOCIAL CARE,TRUECARE HAVEN SUPPORT LTD,"2,920.20",DISCHARGE TO ACCESS,SUPPORTED LIVING,2103142844,1000078974
10.09.2020,ADULT SOCIAL CARE,BLISSETT CARE LTD,473.97,LD LTS 18-64,HOMECARE - C&V,2103142880,1000042627
10.09.2020,ADULT SOCIAL CARE,TRUECARE HAVEN SUPPORT LTD,"1,520.00",LD LTS 18-64,HOMECARE - SPOT,2103142843,1000078974
10.09.2020,ADULT SOCIAL CARE,CONTACT PROFESSIONALS,7720.6,LD LTS 18-64,SUPPORTED LIVING,2103142737,1000057263
10.09.2020,ADULT SOCIAL CARE,TRUECARE HAVEN SUPPORT LTD,"3,460.80",LD LTS 18-64,SUPPORTED LIVING,2103142845,1000078974
10.09.2020,ADULT SOCIAL CARE,REMARK LIVING,288,LD LTS 18-64,SUPPORTED LIVING,2103142842,1000081741
10.09.2020,ADULT SOCIAL CARE,BLISSETT CARE LTD,"2,199.05",MEM LTS 65+,HOMECARE - C&V,2103142875,1000042627
10.09.2020,ADULT SOCIAL CARE,BLISSETT CARE LTD,640.69,MH LTS 65+,HOMECARE - C&V,2103142863,1000042627
10.09.2020,ADULT SOCIAL CARE,BLISSETT CARE LTD,909.56,MH LTS 65+,HOMECARE - C&V,2103142882,1000042627
10.09.2020,ADULT SOCIAL CARE,BUDDI LTD,420,PHY LTS 18-64,EQUIPMENT PURCHASE & REPAIR,2103142847,1000067243
10.09.2020,ADULT SOCIAL CARE,BLISSETT CARE LTD,488.25,PHY LTS 18-64,HOMECARE - C&V,2103142864,1000042627
10.09.2020,ADULT SOCIAL CARE,BLISSETT CARE LTD,601.41,PHY LTS 18-64,HOMECARE - C&V,2103142848,1000042627
10.09.2020,ADULT SOCIAL CARE,BLISSETT CARE LTD,692.84,PHY LTS 18-64,HOMECARE - C&V,2103142859,1000042627
10.09.2020,ADULT SOCIAL CARE,BLISSETT CARE LTD,714.78,PHY LTS 18-64,HOMECARE - C&V,2103142874,1000042627
10.09.2020,ADULT SOCIAL CARE,BLISSETT CARE LTD,892.43,PHY LTS 18-64,HOMECARE - C&V,2103142878,1000042627
10.09.2020,ADULT SOCIAL CARE,BLISSETT CARE LTD,"1,037.32",PHY LTS 18-64,HOMECARE - C&V,2103142858,1000042627
10.09.2020,ADULT SOCIAL CARE,MEDACS HOMECARE,"48,152.35",PHY LTS 65+,HOMECARE - C&V,5902432580,11287415
10.09.2020,ADULT SOCIAL CARE,MEDACS HOMECARE,"60,779.76",PHY LTS 65+,HOMECARE - C&V,5902432580,11287415
10.09.2020,ADULT SOCIAL CARE,BLISSETT CARE LTD,274.68,PHY LTS 65+,HOMECARE - C&V,2103142856,1000042627
10.09.2020,ADULT SOCIAL CARE,BLISSETT CARE LTD,277.55,PHY LTS 65+,HOMECARE - C&V,2103142885,1000042627
10.09.2020,ADULT SOCIAL CARE,BLISSETT CARE LTD,339.89,PHY LTS 65+,HOMECARE - C&V,2103142883,1000042627
10.09.2020,ADULT SOCIAL CARE,BLISSETT CARE LTD,348.56,PHY LTS 65+,HOMECARE - C&V,2103142884,1000042627
10.09.2020,ADULT SOCIAL CARE,BLISSETT CARE LTD,357.26,PHY LTS 65+,HOMECARE - C&V,2103142855,1000042627
10.09.2020,ADULT SOCIAL CARE,BLISSETT CARE LTD,466.86,PHY LTS 65+,HOMECARE - C&V,2103142849,1000042627
10.09.2020,ADULT SOCIAL CARE,BLISSETT CARE LTD,510.03,PHY LTS 65+,HOMECARE - C&V,2103142860,1000042627
10.09.2020,ADULT SOCIAL CARE,BLISSETT CARE LTD,562.19,PHY LTS 65+,HOMECARE - C&V,2103142888,1000042627
10.09.2020,ADULT SOCIAL CARE,BLISSETT CARE LTD,649.34,PHY LTS 65+,HOMECARE - C&V,2103142877,1000042627
10.09.2020,ADULT SOCIAL CARE,BLISSETT CARE LTD,651.97,PHY LTS 65+,HOMECARE - C&V,2103142869,1000042627
10.09.2020,ADULT SOCIAL CARE,BLISSETT CARE LTD,671.13,PHY LTS 65+,HOMECARE - C&V,2103142851,1000042627
10.09.2020,ADULT SOCIAL CARE,BLISSETT CARE LTD,701.63,PHY LTS 65+,HOMECARE - C&V,2103142868,1000042627
10.09.2020,ADULT SOCIAL CARE,BLISSETT CARE LTD,815.57,PHY LTS 65+,HOMECARE - C&V,2103142881,1000042627
10.09.2020,ADULT SOCIAL CARE,BLISSETT CARE LTD,828.18,PHY LTS 65+,HOMECARE - C&V,2103142873,1000042627
10.09.2020,ADULT SOCIAL CARE,BLISSETT CARE LTD,837.04,PHY LTS 65+,HOMECARE - C&V,2103142871,1000042627
10.09.2020,ADULT SOCIAL CARE,BLISSETT CARE LTD,858.62,PHY LTS 65+,HOMECARE - C&V,2103142886,1000042627
10.09.2020,ADULT SOCIAL CARE,BLISSETT CARE LTD,884.72,PHY LTS 65+,HOMECARE - C&V,2103142865,1000042627
10.09.2020,ADULT SOCIAL CARE,BLISSETT CARE LTD,910.94,PHY LTS 65+,HOMECARE - C&V,2103142861,1000042627
10.09.2020,ADULT SOCIAL CARE,BLISSETT CARE LTD,949.99,PHY LTS 65+,HOMECARE - C&V,2103142887,1000042627
10.09.2020,ADULT SOCIAL CARE,BLISSETT CARE LTD,"1,045.93",PHY LTS 65+,HOMECARE - C&V,2103142862,1000042627
10.09.2020,ADULT SOCIAL CARE,BLISSETT CARE LTD,"1,094.21",PHY LTS 65+,HOMECARE - C&V,2103142866,1000042627
10.09.2020,ADULT SOCIAL CARE,BLISSETT CARE LTD,"1,120.18",PHY LTS 65+,HOMECARE - C&V,2103142853,1000042627
10.09.2020,ADULT SOCIAL CARE,BLISSETT CARE LTD,"1,882.69",PHY LTS 65+,HOMECARE - C&V,2103142852,1000042627
10.09.2020,ADULT SOCIAL CARE,BLISSETT CARE LTD,"2,493.22",PHY LTS 65+,HOMECARE - C&V,2103142879,1000042627
10.09.2020,ADULT SOCIAL CARE,SERVESOUL LTD,265.04,PHY LTS 65+,HOMECARE - SPOT,2103142809,1000081503
10.09.2020,ADULT SOCIAL CARE,SERVESOUL LTD,265.04,PHY LTS 65+,HOMECARE - SPOT,2103142840,1000081503
10.09.2020,ADULT SOCIAL CARE,SERVESOUL LTD,292.08,PHY LTS 65+,HOMECARE - SPOT,2103142808,1000081503
10.09.2020,ADULT SOCIAL CARE,SERVESOUL LTD,292.08,PHY LTS 65+,HOMECARE - SPOT,2103142824,1000081503
10.09.2020,ADULT SOCIAL CARE,SERVESOUL LTD,346.32,PHY LTS 65+,HOMECARE - SPOT,2103142810,1000081503
10.09.2020,ADULT SOCIAL CARE,SERVESOUL LTD,346.32,PHY LTS 65+,HOMECARE - SPOT,2103142828,1000081503
10.09.2020,ADULT SOCIAL CARE,SERVESOUL LTD,425.6,PHY LTS 65+,HOMECARE - SPOT,2103142813,1000081503
10.09.2020,ADULT SOCIAL CARE,SERVESOUL LTD,425.6,PHY LTS 65+,HOMECARE - SPOT,2103142835,1000081503
10.09.2020,ADULT SOCIAL CARE,SERVESOUL LTD,525.74,PHY LTS 65+,HOMECARE - SPOT,2103142819,1000081503
10.09.2020,ADULT SOCIAL CARE,SERVESOUL LTD,525.74,PHY LTS 65+,HOMECARE - SPOT,2103142837,1000081503
10.09.2020,ADULT SOCIAL CARE,SERVESOUL LTD,588.32,PHY LTS 65+,HOMECARE - SPOT,2103142811,1000081503
10.09.2020,ADULT SOCIAL CARE,SERVESOUL LTD,588.32,PHY LTS 65+,HOMECARE - SPOT,2103142834,1000081503
10.09.2020,ADULT SOCIAL CARE,SERVESOUL LTD,650.91,PHY LTS 65+,HOMECARE - SPOT,2103142823,1000081503
10.09.2020,ADULT SOCIAL CARE,SERVESOUL LTD,650.91,PHY LTS 65+,HOMECARE - SPOT,2103142826,1000081503
10.09.2020,ADULT SOCIAL CARE,SERVESOUL LTD,671.77,PHY LTS 65+,HOMECARE - SPOT,2103142817,1000081503
10.09.2020,ADULT SOCIAL CARE,SERVESOUL LTD,671.77,PHY LTS 65+,HOMECARE - SPOT,2103142838,1000081503
10.09.2020,ADULT SOCIAL CARE,SERVESOUL LTD,700.98,PHY LTS 65+,HOMECARE - SPOT,2103142812,1000081503
10.09.2020,ADULT SOCIAL CARE,SERVESOUL LTD,700.98,PHY LTS 65+,HOMECARE - SPOT,2103142836,1000081503
10.09.2020,ADULT SOCIAL CARE,CARE O LINE,"1,897.50",TRANSITIONS 14-18YRS,SECTION 17 PAYMENTS TO AGENCIES/CARERS,2103142806,11241743
10.09.2020,ASSET MANAGEMENT,STANNAH LIFT SERVICES LTD,"2,158.00",ADAPTATIONS,BUILDING R&M,5902432539,1063595
10.09.2020,ASSET MANAGEMENT,LPS CONSULTING (LONDON) LIMITED,"13,425.00",COMMERCIAL (QS),PROFESSIONAL FEES,5902431910,1000084208
10.09.2020,ASSET MANAGEMENT,LONDON FIRE BRIGADE,346,ENG CONTRACTS (NORTH),LIFTS,5902432217,1000083629
10.09.2020,ASSET MANAGEMENT,LONDON FIRE BRIGADE,346,ENG CONTRACTS (NORTH),LIFTS,5902432220,1000083629
10.09.2020,ASSET MANAGEMENT,LONDON FIRE BRIGADE,346,ENG CONTRACTS (NORTH),LIFTS,5902432221,1000083629
10.09.2020,ASSET MANAGEMENT,LONDON FIRE BRIGADE,346,ENG CONTRACTS (NORTH),LIFTS,5902432223,1000083629
10.09.2020,ASSET MANAGEMENT,LONDON FIRE BRIGADE,346,ENG CONTRACTS (NORTH),LIFTS,5902432225,1000083629
10.09.2020,ASSET MANAGEMENT,CAMERON CONSULTING (UK) LTD,"1,662.50",INVESTMENT MANAGER,PROFESSIONAL FEES,5902431527,1000064510
10.09.2020,ASSET MANAGEMENT,CAMERON CONSULTING (UK) LTD,"2,137.50",INVESTMENT MANAGER,PROFESSIONAL FEES,5902431584,1000064510
10.09.2020,ASSET MANAGEMENT,CAMERON CONSULTING (UK) LTD,"1,375.00",REPAIRS OPERATIONS,PROFESSIONAL FEES,5902432553,1000064510
10.09.2020,CENTRAL FUNCTIONS,BRESLIN CONSTRUCTION LTD,"1,650.00",COMMERCIAL PROPERTIES,BUILDING R&M,2103143314,3000001948
10.09.2020,CENTRAL FUNCTIONS,CALFORD SEADEN LLP,"15,300.00",LEDBURY ESTATE,PLANNED MAINTENANCE,5902432566,1061592
10.09.2020,CENTRAL FUNCTIONS,ETC VENUES LTD,672,OPERATIONAL TEAM,TRAINING,5902432591,1000045226
10.09.2020,CHIEF EXECUTIVE,CONWAY AECOM LTD,"21,576.81",CAPITAL PS (REGEN),CONSTR'N SUB CONTRACT - NON CERTIFICATED,2103143321,3000001595
10.09.2020,CHIEF EXECUTIVE,MORRIS + COMPANY LTD,"3,873.00",CAPITAL PS (REGEN),CONSTRUCTION FEES,5902431356,1000084228
10.09.2020,CHIEF EXECUTIVE,MORRIS + COMPANY LTD,"7,296.00",CAPITAL PS (REGEN),CONSTRUCTION FEES,5902431357,1000084228
10.09.2020,CHIEF EXECUTIVE'S OFFICE,TREE SHEPHERD LTD,"9,043.00",BUSINESS SUPPORT,FREELANCE SPECIALISTS,5902431636,1000076895
10.09.2020,CHIEF EXECUTIVE'S OFFICE,THIS IS EMBRACE LTD,"25,000.00",DISCRETIONARY GRANTS,GRANTS,2103142900,1000045180
10.09.2020,CHIEF EXECUTIVE'S OFFICE,RIAS ATLAS T/A THE CHURCH ST HOTEL,"25,000.00",DISCRETIONARY GRANTS,GRANTS,2103136073,1000085291
10.09.2020,CHIEF EXECUTIVE'S OFFICE,FIVE STAR CATERING LTD,"25,000.00",DISCRETIONARY GRANTS,GRANTS,2103142892,1000085364
10.09.2020,CHIEF EXECUTIVE'S OFFICE,EXCEL LONDON 2020 LTD,"5,000.00",DISCRETIONARY GRANTS,GRANTS,2103142894,1000085407
10.09.2020,CHIEF EXECUTIVE'S OFFICE,CATHERINE MCGINTY,"2,500.00",DISCRETIONARY GRANTS,GRANTS,2103142891,1000085411
10.09.2020,CHIEF EXECUTIVE'S OFFICE,ALI MUSTAFA,"2,500.00",DISCRETIONARY GRANTS,GRANTS,2103142893,1000085421
10.09.2020,CHIEF EXECUTIVE'S OFFICE,MAINSTAGE FESTIVALS LIMITED,"10,000.00",DISCRETIONARY GRANTS,GRANTS,2103142896,1000085438
10.09.2020,CHIEF EXECUTIVE'S OFFICE,ORCAN INTELLIGENCE LIMITED,"10,000.00",DISCRETIONARY GRANTS,GRANTS,2103142897,1000085439
10.09.2020,CHIEF EXECUTIVE'S OFFICE,WORKPLACE CREATIONS LTD,"25,000.00",DISCRETIONARY GRANTS,GRANTS,2103142902,1000085442
10.09.2020,CHIEF EXECUTIVE'S OFFICE,CLICK PRODUCTIONS LTD,"2,500.00",DISCRETIONARY GRANTS,GRANTS,2103142901,1000085443
10.09.2020,CHIEF EXECUTIVE'S OFFICE,ILLUMINATE DIGITAL LTD,"5,000.00",DISCRETIONARY GRANTS,GRANTS,2103142899,1000085445
10.09.2020,CHIEF EXECUTIVE'S OFFICE,FP COMMUNICATIIONS GROUP LIMITED,"25,000.00",DISCRETIONARY GRANTS,GRANTS,2103142895,1000085446
10.09.2020,CHIEF EXECUTIVE'S OFFICE,PAUL SCOTT-COOMBS LTD,440,DISCRETIONARY GRANTS,GRANTS,2103142889,1000085450
10.09.2020,CHIEF EXECUTIVE'S OFFICE,ROSLYN MILLAR,"2,500.00",DISCRETIONARY GRANTS,GRANTS,2103142890,1000085452
10.09.2020,CHIEF EXECUTIVE'S OFFICE,THRALE ST CAFE LTD,"25,000.00",DISCRETIONARY GRANTS,GRANTS,2103142898,1000085453
10.09.2020,CHILDREN'S SERVICES,ALBION PRIMARY SCHOOL,"191,065.00",ALBION PRIMARY SCHOOL,SCHOOLS CAPITATION,5902432276,5001000000
10.09.2020,CHILDREN'S SERVICES,ASSN FOR ADULT EDUCATION & TRAINING ORGANISATIONS,820,ALC MANAGEMENT AND SUPPORT,TRAINING,5902432074,11040792
10.09.2020,CHILDREN'S SERVICES,ALFRED SALTER PRIMARY SCHOOL,"170,539.00",ALFRED SALTER PRIMARY SCHOOL,SCHOOLS CAPITATION,5902432279,5001000005
10.09.2020,CHILDREN'S SERVICES,ANN BERNADT NURSERY SCHOOL,"48,173.00",ANN BERNADT (SUMNER),EARLY YEARS - 3 AND 4 YEAR OLDS,5902432446,5001000085
10.09.2020,CHILDREN'S SERVICES,THE APPROPRIATE ADULT SERVICE LTD,"1,240.00",APPROPRIATE ADULT CO-ORDINATOR,EXTERNAL AGENCIES AND BODIES,5902432081,1000047682
10.09.2020,CHILDREN'S SERVICES,BELLENDEN PRIMARY SCHOOL,"102,650.00",BELLENDEN PRIMARY SCHOOL,SCHOOLS CAPITATION,5902432282,5001000007
10.09.2020,CHILDREN'S SERVICES,BEORMUND PRIMARY SCHOOL,"69,155.00",BEORMUND PRIMARY SCHOOL,HIGH NEEDS - TOP UP FUNDING,5902432285,5001000008
10.09.2020,CHILDREN'S SERVICES,BESSEMER GRANGE PRIMARY SCHOOL,"247,363.00",BESSEMER GRANGE PRIMARY SCHOOL,SCHOOLS CAPITATION,5902432286,5001000009
10.09.2020,CHILDREN'S SERVICES,BOUCHER C OF E PRIMARY SCHOOL,"96,207.00",BOUTCHER CE PRIMARY SCHOOL,SCHOOLS CAPITATION,5902432290,5001000011
10.09.2020,CHILDREN'S SERVICES,BRUNSWICK PARK PRIMARY SCHOOL,"175,907.00",BRUNSWICK PARK PRIMARY SCHOOL,SCHOOLS CAPITATION,5902432292,5001000013
10.09.2020,CHILDREN'S SERVICES,CAMELOT PRIMARY SCHOOL,"161,506.00",CAMELOT PRIMARY SCHOOL,SCHOOLS CAPITATION,5902432295,5001000014
10.09.2020,CHILDREN'S SERVICES,DISCLOSURE & BARRING SERVICE,"5,824.00",CENTRAL SUPPORT,EXTERNAL AGENCIES AND BODIES,5902431634,1000027861
10.09.2020,CHILDREN'S SERVICES,CHERRY GARDEN SCHOOL,"178,560.00",CHERRY GARDEN PRIMARY SCHOOL,HIGH NEEDS - TOP UP FUNDING,5902432306,5001000020
10.09.2020,CHILDREN'S SERVICES,COBOURG PRIMARY SCHOOL,"144,891.00",COBOURG PRIMARY SCHOOL,SCHOOLS CAPITATION,5902432307,5001000021
10.09.2020,CHILDREN'S SERVICES,COMBER GROVE PRIMARY SCHOOL,"130,936.00",COMBER GROVE PRIMARY SCHOOL,SCHOOLS CAPITATION,5902432310,5001000022
10.09.2020,CHILDREN'S SERVICES,CRAMPTON PRIMARY SCHOOL,"98,889.00",CRAMPTON PRIMARY SCHOOL,SCHOOLS CAPITATION,5902432313,5001000023
10.09.2020,CHILDREN'S SERVICES,CRAWFORD PRIMARY SCHOOL,"222,697.00",CRAWFORD PRIMARY SCHOOL,SCHOOLS CAPITATION,5902432315,5001000024
10.09.2020,CHILDREN'S SERVICES,DOG KENNEL HILL PRIMARY SCHOOL,"161,068.00",DOG KENNEL HILL PRIMARY SCHOOL,SCHOOLS CAPITATION,5902432318,5001000025
10.09.2020,CHILDREN'S SERVICES,DULWICH VILLAGE CE INFANTS SCHOOL,"112,361.00",DULWICH VILLAGE CE INFANTS' SCHOOL,SCHOOLS CAPITATION,5902432321,5001000027
10.09.2020,CHILDREN'S SERVICES,DULWICH WOOD CHILDRENS CENTRE,"57,561.00",DULWICH WOOD NURSERY SCHOOL,EARLY YEARS - 3 AND 4 YEAR OLDS,5902432463,5001000099
10.09.2020,CHILDREN'S SERVICES,DULWICH WOOD PRIMARY SCHOOL,"151,457.00",DULWICH WOOD PRIMARY SCHOOL,SCHOOLS CAPITATION,5902432357,5001000042
10.09.2020,CHILDREN'S SERVICES,ENGLISH MARTYRS RC PRIMARY SCHOOL,"138,986.00",ENGLISH MARTYRS RC PRIMARY SCHOOL,SCHOOLS CAPITATION,5902432329,5001000030
10.09.2020,CHILDREN'S SERVICES,EVELINA HOSPITAL SCHOOL,"87,569.00",EVELINA HOSPITAL SCHOOL,HIGH NEEDS - TOP UP FUNDING,5902432332,5001000031
10.09.2020,CHILDREN'S SERVICES,FRIARS PRIMARY SCHOOL,"85,268.00",FRIARS FOUNDATION PRIMARY SCHOOL,SCHOOLS CAPITATION,5902432336,5001000033
10.09.2020,CHILDREN'S SERVICES,SUNBEAM FOSTERING AGENCY LTD,"3,432.14",FRIENDS & FAMILY FOSTERING,EXTERNAL AGENCIES AND BODIES,2103142731,1000041457
10.09.2020,CHILDREN'S SERVICES,FOSTERING LONDON LTD,"4,650.00",FRIENDS & FAMILY FOSTERING,EXTERNAL AGENCIES AND BODIES,2103142729,1000077541
10.09.2020,CHILDREN'S SERVICES,FOSTERING LONDON LTD,"5,092.68",FRIENDS & FAMILY FOSTERING,EXTERNAL AGENCIES AND BODIES,2103142735,1000077541
10.09.2020,CHILDREN'S SERVICES,LIGHTHOUSE FOSTERING LTD,"5,766.89",FRIENDS & FAMILY FOSTERING,EXTERNAL AGENCIES AND BODIES,2103142733,1000080372
10.09.2020,CHILDREN'S SERVICES,GOODRICH PRIMARY SCHOOL,"230,541.00",GOODRICH PRIMARY SCHOOL,SCHOOLS CAPITATION,5902432323,5001000028
10.09.2020,CHILDREN'S SERVICES,GRANGE PRIMARY SCHOOL,"173,974.00",GRANGE PRIMARY SCHOOL,SCHOOLS CAPITATION,5902432326,5001000029
10.09.2020,CHILDREN'S SERVICES,HAYMERLE SCHOOL,"153,516.00",HAYMERLE PRIMARY SCHOOL,HIGH NEEDS - TOP UP FUNDING,5902432362,5001000045
10.09.2020,CHILDREN'S SERVICES,HEBER PRIMARY SCHOOL,"154,146.00",HEBER PRIMARY SCHOOL,SCHOOLS CAPITATION,5902432339,5001000035
10.09.2020,CHILDREN'S SERVICES,HIGHSHORE SCHOOL,"251,249.00",HIGHSHORE,HIGH NEEDS - TOP UP FUNDING,5902432363,5001000046
10.09.2020,CHILDREN'S SERVICES,HOLLYDALE PRIMARY SCHOOL,"91,078.00",HOLLYDALE PRIMARY SCHOOL,SCHOOLS CAPITATION,5902432342,5001000036
10.09.2020,CHILDREN'S SERVICES,ILDERTON PRIMARY SCHOOL,"154,642.00",ILDERTON PRIMARY SCHOOL,SCHOOLS CAPITATION,5902432344,5001000037
10.09.2020,CHILDREN'S SERVICES,ALBION PRIMARY SCHOOL,"9,174.00",IN YEAR STATEMENTS,SCHOOLS CAPITATION,5902432278,5001000000
10.09.2020,CHILDREN'S SERVICES,ALFRED SALTER PRIMARY SCHOOL,"15,372.00",IN YEAR STATEMENTS,SCHOOLS CAPITATION,5902432281,5001000005
10.09.2020,CHILDREN'S SERVICES,BELLENDEN PRIMARY SCHOOL,"2,927.00",IN YEAR STATEMENTS,SCHOOLS CAPITATION,5902432284,5001000007
10.09.2020,CHILDREN'S SERVICES,BESSEMER GRANGE PRIMARY SCHOOL,"7,726.00",IN YEAR STATEMENTS,SCHOOLS CAPITATION,5902432288,5001000009
10.09.2020,CHILDREN'S SERVICES,BOUCHER C OF E PRIMARY SCHOOL,"2,351.00",IN YEAR STATEMENTS,SCHOOLS CAPITATION,5902432291,5001000011
10.09.2020,CHILDREN'S SERVICES,BRUNSWICK PARK PRIMARY SCHOOL,"9,165.00",IN YEAR STATEMENTS,SCHOOLS CAPITATION,5902432294,5001000013
10.09.2020,CHILDREN'S SERVICES,CAMELOT PRIMARY SCHOOL,"8,752.00",IN YEAR STATEMENTS,SCHOOLS CAPITATION,5902432297,5001000014
10.09.2020,CHILDREN'S SERVICES,CHARLOTTE  SHARMAN PRIMARY SCHOOL,"1,190.00",IN YEAR STATEMENTS,SCHOOLS CAPITATION,5902432299,5001000016
10.09.2020,CHILDREN'S SERVICES,ST JOSEPHS RC JUNIOR  SCHOOL,603,IN YEAR STATEMENTS,SCHOOLS CAPITATION,5902432301,5001000017
10.09.2020,CHILDREN'S SERVICES,ST JUDES CHURCH OF ENGLAND PRIMARY,"1,060.00",IN YEAR STATEMENTS,SCHOOLS CAPITATION,5902432305,5001000019
10.09.2020,CHILDREN'S SERVICES,COBOURG PRIMARY SCHOOL,"3,831.00",IN YEAR STATEMENTS,SCHOOLS CAPITATION,5902432309,5001000021
10.09.2020,CHILDREN'S SERVICES,COMBER GROVE PRIMARY SCHOOL,"3,000.00",IN YEAR STATEMENTS,SCHOOLS CAPITATION,5902432312,5001000022
10.09.2020,CHILDREN'S SERVICES,CRAMPTON PRIMARY SCHOOL,"2,374.00",IN YEAR STATEMENTS,SCHOOLS CAPITATION,5902432314,5001000023
10.09.2020,CHILDREN'S SERVICES,CRAWFORD PRIMARY SCHOOL,"6,268.00",IN YEAR STATEMENTS,SCHOOLS CAPITATION,5902432317,5001000024
10.09.2020,CHILDREN'S SERVICES,DOG KENNEL HILL PRIMARY SCHOOL,"3,767.00",IN YEAR STATEMENTS,SCHOOLS CAPITATION,5902432320,5001000025
10.09.2020,CHILDREN'S SERVICES,DULWICH VILLAGE CE INFANTS SCHOOL,715,IN YEAR STATEMENTS,SCHOOLS CAPITATION,5902432322,5001000027
10.09.2020,CHILDREN'S SERVICES,GOODRICH PRIMARY SCHOOL,"4,831.00",IN YEAR STATEMENTS,SCHOOLS CAPITATION,5902432325,5001000028
10.09.2020,CHILDREN'S SERVICES,GRANGE PRIMARY SCHOOL,439,IN YEAR STATEMENTS,SCHOOLS CAPITATION,5902432328,5001000029
10.09.2020,CHILDREN'S SERVICES,ENGLISH MARTYRS RC PRIMARY SCHOOL,"4,091.00",IN YEAR STATEMENTS,SCHOOLS CAPITATION,5902432331,5001000030
10.09.2020,CHILDREN'S SERVICES,PHOENIX PRIMARY SCHOOL,"9,542.00",IN YEAR STATEMENTS,SCHOOLS CAPITATION,5902432335,5001000032
10.09.2020,CHILDREN'S SERVICES,FRIARS PRIMARY SCHOOL,"4,593.00",IN YEAR STATEMENTS,SCHOOLS CAPITATION,5902432338,5001000033
10.09.2020,CHILDREN'S SERVICES,HEBER PRIMARY SCHOOL,"7,145.00",IN YEAR STATEMENTS,SCHOOLS CAPITATION,5902432341,5001000035
10.09.2020,CHILDREN'S SERVICES,HOLLYDALE PRIMARY SCHOOL,836,IN YEAR STATEMENTS,SCHOOLS CAPITATION,5902432343,5001000036
10.09.2020,CHILDREN'S SERVICES,ILDERTON PRIMARY SCHOOL,"3,188.00",IN YEAR STATEMENTS,SCHOOLS CAPITATION,5902432346,5001000037
10.09.2020,CHILDREN'S SERVICES,IVYDALE PRIMARY SCHOOL,"7,995.00",IN YEAR STATEMENTS,SCHOOLS CAPITATION,5902432349,5001000038
10.09.2020,CHILDREN'S SERVICES,JOHN RUSKIN PRIMARY SCHOOL,"9,238.00",IN YEAR STATEMENTS,SCHOOLS CAPITATION,5902432353,5001000040
10.09.2020,CHILDREN'S SERVICES,JOHN RUSKIN PRIMARY SCHOOL,"22,012.00",IN YEAR STATEMENTS,SCHOOLS CAPITATION,5902432352,5001000040
10.09.2020,CHILDREN'S SERVICES,KEYWORTH PRIMARY SCHOOL,"4,789.00",IN YEAR STATEMENTS,SCHOOLS CAPITATION,5902432356,5001000041
10.09.2020,CHILDREN'S SERVICES,DULWICH WOOD PRIMARY SCHOOL,"2,831.00",IN YEAR STATEMENTS,SCHOOLS CAPITATION,5902432358,5001000042
10.09.2020,CHILDREN'S SERVICES,LYNDHURST PRIMARY SCHOOL,"2,314.00",IN YEAR STATEMENTS,SCHOOLS CAPITATION,5902432361,5001000043
10.09.2020,CHILDREN'S SERVICES,KINTORE WAY CHILDRENS CENTRE,"3,523.00",IN YEAR STATEMENTS,SCHOOLS CAPITATION,5902432365,5001000047
10.09.2020,CHILDREN'S SERVICES,MICHAEL FARADAY PRIMARY SCHOOL,"4,926.00",IN YEAR STATEMENTS,SCHOOLS CAPITATION,5902432368,5001000048
10.09.2020,CHILDREN'S SERVICES,NELL GWYNN NURSERY SCHOOL,314,IN YEAR STATEMENTS,SCHOOLS CAPITATION,5902432370,5001000049
10.09.2020,CHILDREN'S SERVICES,NOTRE DAME RC GIRLS SCHOOL,"9,618.00",IN YEAR STATEMENTS,SCHOOLS CAPITATION,5902432372,5001000050
10.09.2020,CHILDREN'S SERVICES,OLIVER GOLDSMITH PRIMARY SCHOOL,"3,726.00",IN YEAR STATEMENTS,SCHOOLS CAPITATION,5902432375,5001000051
10.09.2020,CHILDREN'S SERVICES,PETER HILLS CE SCHOOL,"1,752.00",IN YEAR STATEMENTS,SCHOOLS CAPITATION,5902432378,5001000053
10.09.2020,CHILDREN'S SERVICES,PILGRIM'S WAY PRIMARY SCHOOL,"4,640.00",IN YEAR STATEMENTS,SCHOOLS CAPITATION,5902432381,5001000054
10.09.2020,CHILDREN'S SERVICES,RIVERSIDE PRIMARY SCHOOL,"8,630.00",IN YEAR STATEMENTS,SCHOOLS CAPITATION,5902432384,5001000056
10.09.2020,CHILDREN'S SERVICES,ROBERT BROWNING PRIMARY SCHOOL,"2,419.00",IN YEAR STATEMENTS,SCHOOLS CAPITATION,5902432387,5001000057
10.09.2020,CHILDREN'S SERVICES,ROTHERHITHE PRIMARY SCHOOL,"9,781.00",IN YEAR STATEMENTS,SCHOOLS CAPITATION,5902432390,5001000058
10.09.2020,CHILDREN'S SERVICES,RYE OAK PRIMARY SCHOOL,"1,974.00",IN YEAR STATEMENTS,SCHOOLS CAPITATION,5902432393,5001000059
10.09.2020,CHILDREN'S SERVICES,SNOWSFIELDS PRIMARY SCHOOL,"6,032.00",IN YEAR STATEMENTS,SCHOOLS CAPITATION,5902432396,5001000061
10.09.2020,CHILDREN'S SERVICES,SOUTHWARK PARK PRIMARY SCHOOL,"6,589.00",IN YEAR STATEMENTS,SCHOOLS CAPITATION,5902432399,5001000062
10.09.2020,CHILDREN'S SERVICES,ST ANTHONYS RC SCHOOL,"4,269.00",IN YEAR STATEMENTS,SCHOOLS CAPITATION,5902432402,5001000064
10.09.2020,CHILDREN'S SERVICES,ST FRANCESCA CABRINI PRIMARY SCHOOL,"4,238.00",IN YEAR STATEMENTS,SCHOOLS CAPITATION,5902432405,5001000065
10.09.2020,CHILDREN'S SERVICES,ST FRANCIS'S RC PRIMARY SCHOOL,"3,512.00",IN YEAR STATEMENTS,SCHOOLS CAPITATION,5902432408,5001000067
10.09.2020,CHILDREN'S SERVICES,ST GEORGES RC SCHOOL,"2,543.00",IN YEAR STATEMENTS,SCHOOLS CAPITATION,5902432411,5001000068
10.09.2020,CHILDREN'S SERVICES,ST GEORGES CE SCHOOL,"2,220.00",IN YEAR STATEMENTS,SCHOOLS CAPITATION,5902432413,5001000069
10.09.2020,CHILDREN'S SERVICES,ST JAMES CE SCHOOL,"7,188.00",IN YEAR STATEMENTS,SCHOOLS CAPITATION,5902432416,5001000070
10.09.2020,CHILDREN'S SERVICES,ST JAMES THE GREAT RC SCHOOL,"7,452.00",IN YEAR STATEMENTS,SCHOOLS CAPITATION,5902432419,5001000071
10.09.2020,CHILDREN'S SERVICES,ST JOHNS WALWORTH CE SCHOOL,"3,936.00",IN YEAR STATEMENTS,SCHOOLS CAPITATION,5902432421,5001000072
10.09.2020,CHILDREN'S SERVICES,ST JOHNS & ST CLEMENTS CE SCHOOL,"6,982.00",IN YEAR STATEMENTS,SCHOOLS CAPITATION,5902432424,5001000073
10.09.2020,CHILDREN'S SERVICES,ST JOHNS & ST CLEMENTS CE SCHOOL,"16,685.00",IN YEAR STATEMENTS,SCHOOLS CAPITATION,5902432423,5001000073
10.09.2020,CHILDREN'S SERVICES,THE ST THOMAS THE APOSTLE COLLEGE,"13,243.00",IN YEAR STATEMENTS,SCHOOLS CAPITATION,5902432426,5001000074
10.09.2020,CHILDREN'S SERVICES,ST JOHNS RC PRIMARY SCHOOL,"3,119.00",IN YEAR STATEMENTS,SCHOOLS CAPITATION,5902432429,5001000075
10.09.2020,CHILDREN'S SERVICES,ST JOSEPHS CATHOLIC SCHOOL,"2,786.00",IN YEAR STATEMENTS,SCHOOLS CAPITATION,5902432432,5001000076
10.09.2020,CHILDREN'S SERVICES,ST JOSEPHS RC PRIMARY SCHOOL,"6,297.00",IN YEAR STATEMENTS,SCHOOLS CAPITATION,5902432435,5001000077
10.09.2020,CHILDREN'S SERVICES,ST JOSEPHS CATHOLIC PRIMARY SCHOOL,667,IN YEAR STATEMENTS,SCHOOLS CAPITATION,5902432438,5001000078
10.09.2020,CHILDREN'S SERVICES,ST MARY MAGDALENE CE SCHOOL,"3,059.00",IN YEAR STATEMENTS,SCHOOLS CAPITATION,5902432440,5001000080
10.09.2020,CHILDREN'S SERVICES,ST PETERS CE SCHOOL,"1,707.00",IN YEAR STATEMENTS,SCHOOLS CAPITATION,5902432443,5001000083
10.09.2020,CHILDREN'S SERVICES,ST SAVIOURS & ST OLAVES SCHOOL,"1,086.00",IN YEAR STATEMENTS,SCHOOLS CAPITATION,5902432445,5001000084
10.09.2020,CHILDREN'S SERVICES,ANN BERNADT NURSERY SCHOOL,756,IN YEAR STATEMENTS,SCHOOLS CAPITATION,5902432447,5001000085
10.09.2020,CHILDREN'S SERVICES,CATHEDRAL SCHOOL OF ST SAVIOUR & MARY,"1,000.00",IN YEAR STATEMENTS,SCHOOLS CAPITATION,5902432450,5001000088
10.09.2020,CHILDREN'S SERVICES,THE GROVE CHILDRENS CENTRE,"4,582.00",IN YEAR STATEMENTS,SCHOOLS CAPITATION,5902432452,5001000090
10.09.2020,CHILDREN'S SERVICES,TOWER BRIDGE PRIMARY SCHOOL,"5,119.00",IN YEAR STATEMENTS,SCHOOLS CAPITATION,5902432455,5001000095
10.09.2020,CHILDREN'S SERVICES,TOWNSEND PRIMARY SCHOOL,"4,178.00",IN YEAR STATEMENTS,SCHOOLS CAPITATION,5902432458,5001000096
10.09.2020,CHILDREN'S SERVICES,VICTORY SCHOOL,906,IN YEAR STATEMENTS,SCHOOLS CAPITATION,5902432462,5001000098
10.09.2020,CHILDREN'S SERVICES,DULWICH WOOD CHILDRENS CENTRE,636,IN YEAR STATEMENTS,SCHOOLS CAPITATION,5902432464,5001000099
10.09.2020,CHILDREN'S SERVICES,IVYDALE PRIMARY SCHOOL,"220,255.00",IVYDALE PRIMARY SCHOOL,SCHOOLS CAPITATION,5902432347,5001000038
10.09.2020,CHILDREN'S SERVICES,JOHN RUSKIN PRIMARY SCHOOL,"195,146.00",JOHN RUSKIN PRIMARY SCHOOL,SCHOOLS CAPITATION,5902432350,5001000040
